Workbook

Sheet CalorieCalc
A1: Calorie intake in Europe
A3: Background information | B3: Source | C3: Comment
A4: Country-specific calorie intake in the world | B4: http://faostat3.fao.org/browse/FB/*/E | C4: Adjust time interval after when EXIOBASE data is from. Comes in kcal/person & day --> need population.
A5: USDA Nutrient Database | B5: https://ndb.nal.usda.gov/ndb/foods?format=&count=&max=35&sort=&fgcd=Cereal+Grains+and+Pasta&manu=&lfacet=&qlookup=rice&offset=0&order=desc
A6: National Institute for Health and Welfare, Finland | B6: https://www.thl.fi/en/web/thlfi-en
A7: Population in Europe | B7: http://europa.eu/rapid/press-release_STAT-08-119_en.htm
A8: Composition of crops | B8: https://www.researchgate.net/publication/222582301_Global_Potential_bioethanol_Production_from_Wasted_Crops_and_Crop_Residues | C8: Used to know many calories raw crops contain
A10: Dietary intake in Europe in 2008, lowest (Republic of Moldova) | B10: =2586*365.25 -> 944536.5 | C10: kcal/capita/yr | D10: =B10/365.25 -> 2586 | E10: kcal/capitaday
A11: Dietary intake in Europe in 2008, highest (Austria) | B11: =3784*365.25 -> 1382106 | C11: kcal/capita/yr | D11: =B11/365.25 -> 3784 | E11: kcal/capitaday
A12: Dietary intake in Europe in 2008, average | B12: =3370*365.25 -> 1230892.5 | C12: kcal/capita/yr | D12: =B12/365.25 -> 3370 | E12: kcal/capitaday
A13: Population in Europe (from EXIOBASE info) | B13: 592950628 | C13: capita
A14: Dietary intake in Europe in 2008, lowest (EU total) | B14: =B10*B13 -> 560063510843922 | C14: kcal/yr | D14: =B14/365.25/B13 -> 2586 | E14: kcal/personday
A15: Dietary intake in Europe in 2008, highest (EU total) | B15: =B11*B13 -> 819520620662568 | C15: kcal/yr | D15: =B15/365.25/B13 -> 3784 | E15: kcal/personday
A16: Dietary intake in Europe in 2008, average (EU total) | B16: =B12*B13 -> 729858480875490 | C16: kcal/yr | D16: =B16/365.25/B13 -> 3370 | E16: kcal/personday
A17: Estimated calories in food bought by EU households (HH FD) | B17: =Q84 -> 1.023730233e+15 | C17: kcal/yr | D17: =B17/365.25/B13 -> 4726.903881 | E17: kcal/personday
A18: Estimated calories in food bought by EU households in hotel/restaurant (HH FD) | B18: =S84 -> 1.274492583e+14 | C18: kcal/yr
A19: Estimated calories in total food output in EU (x) | B19: =P84 -> 2793227568672327 | C19: kcal/yr
A20: Per person dietary intake in EU, from HH FD of calories (15) | B20: =(B17+B18)/365.25/B13 -> 5315.379608 | C20: kcal | D20: (but some is probably wasted)
A22: Share of calorie output that is consumed (assuming high dietary intake) | B22: =B15/B17 -> 0.8005239995
A23: Share of calorie output that is consumed (assuming low intake) | B23: =B14/B17 -> 0.5470811477
A24: Share of calorie output that is consumed (assuming average EU intake) | B24: =B16/B17 -> 0.7129402427
A25: Share of calorie output that is wasted (avg EU intake) | B25: =1-B24 -> 0.2870597573
A26: Share of calories going to HHFD as part of total output | B26: =B17/B19 -> 0.366504414
A27: The avoidable consumer food waste in EU | B27: 0.12 | H27: http://iopscience.iop.org/article/10.1088/1748-9326/10/8/084008/pdf
A28: Total amount of food bought by European households | B28: =T84 -> 772448188.2 | C28: tons/yr
A29: Weight of avoidable consumer food waste in EU | B29: =B27*B28 -> 92693782.59 | C29: tons/yr
A30: Weight of avoidable consumer food waste in EU | B30: =B29*1000/B13 -> 156.3263081 | C30: kg/cap/yr
H33: From x = L*Y | I33: From IO.x | L33: NOT USED
H34: Calc | I34: Calc | J34: Calc | K34: Cal | L34: Prices_EU
C35: Equivalent product(s) | D35: Calories | E35: Eatible ratio | F35: Adjustment | G35: Calorie content | H35: Total output 1 | I35: Total output 2 | J35: HH FD | K35: HH FD | L35: Demand | M35: Price | N35: Price | O35: Calories per demand | P35: Total output | Q35: Total output from HH FD | R35: Total output from HH FD | S35: Total output from HH FD of HR | T35: Total output | U35: Share of total output | V35: Weight in avoidable food waste | W35: Calories in avoidable food waste | Y35: Comment | Z35: Source
D36: kcal/g | G36: kcal/g | H36: Million Euro | I36: Million Euro | J36: Million Euro | K36: % | L36: Million Euro | M36: Million Euro / ton | N36: Million Euro / g | O36: kcal / Million Euro | P36: kcal | Q36: kcal | R36: kcal % | S36: kcal | T36: ton | U36: weight% | V36: ton | W36: calories
A37: Paddy rice | B37: Raw rice. Natural, unprocessed stage. From paddy fields. | C37: Wild rice, raw | D37: 3.57 | E37: 0.9 | F37: 1 | G37: =E37*SUM(D37:D38)*$F$37/2 -> 3.2265 | H37: 7009.852283 | I37: 1192.224678 | J37: 535.6609006 | K37: =J37/$J$84 -> 0.0007656161932 | L37: 942.5484245 | M37: 0.000340176119 | N37: =M37/1000000 -> 3.40176119e-10 | O37: =G37/N37 -> 9484792788 | P37: =O37*I37 -> 1.130800402e+13 | Q37: =O37*J37 -> 5.080632646e+12 | R37: =Q37/$Q$84 -> 0.004962862756 | S37: 2485763524 | T37: =J37/M37 -> 1574657.569 | U37: =T37/$T$84 -> 0.0020385284 | V37: =U37*$B$29 -> 188958.9083 | W37: =G37*V37*1000000 -> 6.096759176e+11 | Y37: Assume 90% of raw rice can be consumed | Z37: https://ndb.nal.usda.gov/ndb/foods/show/6550?fgcd=Cereal+Grains+and+Pasta&manu=&lfacet=&format=&count=&max=35&offset=&sort=&qlookup=raw+rice
C38: Rice, white, medium-grain, raw, unenriched | D38: 3.6 | K38: =J38/$J$84 -> 0 | W38: 0 | Z38: https://ndb.nal.usda.gov/ndb/foods/show/6617?fgcd=Cereal+Grains+and+Pasta&manu=&lfacet=&format=&count=&max=35&offset=&sort=&qlookup=raw+rice
A39: Wheat | B39: Raw wheat | C39: Wheat, durum | D39: 3.39 | E39: 0.4 | G39: =D39*E39*$F$37 -> 1.356 | H39: 37061.7605 | I39: 33394.15643 | J39: 8411.348056 | K39: 0.01202227803 | L39: 29703.07602 | M39: 0.0002469829995 | N39: =M39/1000000 -> 2.469829995e-10 | O39: =G39/N39 -> 5490256426 | P39: =O39*I39 -> 1.833424819e+14 | Q39: =O39*J39 -> 4.618045771e+13 | R39: =Q39/$Q$84 -> 0.0451099872 | S39: 4.564176214e+12 | T39: =J39/M39 -> 34056384.74 | U39: =T39/$T$84 -> 0.044088892 | V39: =U39*$B$29 -> 4086766.169 | W39: 5.541654926e+12 | Y39: Assume 40% of raw wheat can be consumed | Z39: https://ndb.nal.usda.gov/ndb/foods/show/6540?fgcd=Cereal+Grains+and+Pasta&manu=&lfacet=&format=&count=&max=35&offset=0&sort=&qlookup=wheat
A40: Cereal grains nec | B40: Raw rye, barley, oats, maize, rice, etc | C40: Rye, grain | D40: 3.38 | E40: 0.7 | G40: =E40*SUM(D40:D43)*$F$37/4 -> 2.5305 | H40: 40915.12151 | I40: 35492.18139 | J40: 4250.562998 | K40: 0.006075298492 | L40: 31885.11921 | M40: 0.0002294611137 | N40: =M40/1000000 -> 2.294611137e-10 | O40: =G40/N40 -> 1.102801237e+10 | P40: =O40*I40 -> 3.914082153e+14 | Q40: =O40*J40 -> 4.687526131e+13 | R40: 0.04578868514 | S40: 2.604518808e+13 | T40: 18524110.38 | U40: =T40/$T$84 -> 0.02398103933 | V40: 2222893.246 | W40: 5.625031358e+12 | Y40: Assume 70% of cereal grains can be consumed | Z40: https://ndb.nal.usda.gov/ndb/foods/show/6526?fgcd=Cereal+Grains+and+Pasta&manu=&lfacet=&format=&count=&max=35&offset=&sort=&qlookup=cereal+grain
C41: Barley, hulled | D41: 3.54 | K41: 0 | Q41: 0 | W41: 0 | Z41: https://ndb.nal.usda.gov/ndb/foods/show/6476?fgcd=Cereal+Grains+and+Pasta&manu=&lfacet=&format=&count=&max=35&offset=&sort=&qlookup=barley
C42: Oats | D42: 3.89 | K42: 0 | Q42: 0 | W42: 0 | Z42: https://ndb.nal.usda.gov/ndb/foods/show/6507?fgcd=Cereal+Grains+and+Pasta&manu=&lfacet=&format=&count=&max=35&offset=&sort=&qlookup=oat
C43: Corn grain, yellow | D43: 3.65 | K43: 0 | Q43: 0 | W43: 0 | Z43: https://ndb.nal.usda.gov/ndb/foods/show/6485?fgcd=&manu=&lfacet=&format=&count=&max=35&offset=&sort=&qlookup=corn
A44: Vegetables, fruit, nuts | B44: Vegetables (tomatoes, cabbage, beans, sweet corn, etc), edible nuts incl. coconut, fruit (apples, berries, bananas, etc). | C44: Average selection of vegetables | D44: 0.4 | E44: 0.9 | G44: =(D44*0.5+D45*0.2+D46*0.3)*E44*$F$37 -> 1.0485 | H44: 107670.6729 | I44: 97126.7581 | J44: 65533.98446 | K44: 0.09366724294 | L44: 87851.99592 | M44: 0.0002294611137 | N44: 2.294611137e-10 | O44: =G44/N44 -> 4569401687 | P44: =O44*I44 -> 4.438111723e+14 | Q44: 2.994510991e+14 | R44: 0.292509774 | S44: 1.012647976e+13 | T44: 285599522.3 | U44: =T44/$T$84 -> 0.3697329176 | V44: 34271942.68 | W44: 3.59341319e+13 | Y44: Assume that of total spending on 'vegetables, fruits, nuts' we spend 20% on nuts, 50% on vegetables, 30% on fruits. Assume 90% can be consumed. | Z44: https://ndb.nal.usda.gov/ndb/foods?format=&count=&max=35&sort=&fgcd=Vegetables+and+Vegetable+Products&manu=&lfacet=&qlookup=&offset=0&order=desc
C45: Average selection of raw nuts | D45: 4 | K45: 0 | Q45: 0 | W45: 0 | Z45: https://ndb.nal.usda.gov/ndb/foods?qlookup=nuts+raw&fgcd=&manu=&SYNCHRONIZER_TOKEN=26754dab-8f62-4e89-b591-f7604cef81c6&SYNCHRONIZER_URI=%2Fndb%2Ffoods
C46: Average selection of fruits | D46: 0.55 | K46: 0 | Q46: 0 | W46: 0 | Z46: https://ndb.nal.usda.gov/ndb/foods?qlookup=&fgcd=Fruits+and+Fruit+Juices&manu=&SYNCHRONIZER_TOKEN=7ea1a625-0e52-40d9-8424-0d1b8c8f4a5e&SYNCHRONIZER_URI=%2Fndb%2Ffoods
A47: Oil seeds | B47: Raw peanuts, soya, colza | C47: Peanuts, all types, raw | D47: 5.67 | E47: 0.8 | G47: =E47*SUM(D47:D48)*$F$37/2 -> 4.052 | H47: 33665.96724 | I47: 23769.77749 | J47: 3876.322872 | K47: 0.005540399827 | L47: 21893.72076 | M47: 0.0005746329557 | N47: 5.746329557e-10 | O47: =G47/N47 -> 7051457734 | P47: =O47*I47 -> 1.676115814e+14 | Q47: 2.73337269e+13 | R47: 0.02670012666 | S47: 4.286658162e+12 | T47: 6745737.141 | U47: =T47/$T$84 -> 0.008732931534 | V47: 809488.4569 | W47: 3.280047227e+12 | Y47: Assume 80% can be consumed, rest are shells and scrap products | Z47: https://ndb.nal.usda.gov/ndb/foods/show/4825?fgcd=&manu=&lfacet=&format=&count=&max=35&offset=&sort=&qlookup=peanuts%2C+raw
C48: Soybeans, mature seeds, raw | D48: 4.46 | K48: 0 | Q48: 0 | W48: 0 | Z48: https://ndb.nal.usda.gov/ndb/foods/show/4845?fgcd=Legumes+and+Legume+Products&manu=&lfacet=&format=&count=&max=35&offset=&sort=&qlookup=soybean
A49: Sugar cane, sugar beet | B49: Raw sugar cane and sugar beet | C49: Syrup, Cane | D49: 2.69 | E49: 0.7 | G49: =D49*E49*$F$37 -> 1.883 | H49: 8790.510847 | I49: 5081.463128 | J49: 0 | K49: 0 | L49: 4228.15763 | M49: 3.693492818e-05 | N49: 3.693492818e-11 | O49: =G49/N49 -> 5.098155304e+10 | P49: =O49*I49 -> 2.59060882e+14 | Q49: 0 | S49: 1.477929534e+12 | T49: 0 | U49: =T49/$T$84 -> 0 | V49: 0 | W49: 0 | Y49: Assume 70% can be consumed | Z49: https://ndb.nal.usda.gov/ndb/foods/show/8787?fgcd=&manu=&lfacet=&format=&count=&max=35&offset=&sort=&qlookup=cane
A50: Crops nec | B50: Other crops | C50: Assume average for potato, pumpkin, sugar beet | D50: 0.5 | E50: 0.9 | G50: =D50*E50*$F$37 -> 0.45 | H50: 48815.95622 | I50: 31039.85213 | J50: 10394.21528 | K50: 0.0148563756 | L50: 26887.59208 | M50: 0.0003765370619 | N50: 3.765370619e-10 | O50: =G50/N50 -> 1195101480 | P50: =O50*I50 -> 3.709577322e+13 | Q50: 1.242214206e+13 | R50: 0.01213419479 | S50: 5.248378484e+11 | T50: 27604760.14 | U50: =T50/$T$84 -> 0.03573671421 | V50: 3312571.217 | W50: 1.490657048e+12 | Y50: Assume 90% can be consumed | Z50: https://ndb.nal.usda.gov/ndb/foods/show/3090?fgcd=&manu=&lfacet=&format=&count=&max=35&offset=&sort=&qlookup=potato+raw
A51: Cattle | B51: Cattle | C51: Beef, carcass, separable lean and fat, select, raw | D51: 2.78 | E51: 0.5 | G51: =D51*E51*$F$37 -> 1.39 | H51: 34662.45755 | I51: 33275.44113 | J51: 0 | K51: 0 | L51: 28625.26352 | M51: 0.0020981736 | N51: 2.0981736e-09 | O51: =G51/N51 -> 662480931.2 | P51: =O51*I51 -> 2.204434523e+13 | Q51: 0 | R51: 0 | S51: 5.68544786e+10 | T51: 0 | U51: =T51/$T$84 -> 0 | V51: 0 | W51: 0 | Y51: Assume 55% of cattle can be turned to edible products, disregard that people probably also buy cattle for milk production | Z51: https://ndb.nal.usda.gov/ndb/foods/show/3745?fgcd=Beef+Products&manu=&lfacet=&format=Abridged&count=&max=35&offset=&sort=&qlookup=carcass
A52: Pigs | B52: Swine (pigs) | C52: Pork, fresh, carcass, separable lean and fat, raw | D52: 3.76 | E52: 0.5 | G52: =D52*E52*$F$37 -> 1.88 | H52: 48077.98598 | I52: 43303.10554 | J52: 0 | K52: 0 | L52: 38191.94234 | M52: 0.001177880761 | N52: 1.177880761e-09 | O52: =G52/N52 -> 1596086855 | P52: =O52*I52 -> 6.911551754e+13 | Q52: 0 | R52: 0 | S52: 1.94198779e+12 | T52: 0 | U52: =T52/$T$84 -> 0 | V52: 0 | W52: 0 | Y52: Assume 55% of pig can be turned to edible products | Z52: https://ndb.nal.usda.gov/ndb/foods/show/2480?fgcd=Pork+Products&manu=&lfacet=&format=Abridged&count=&max=35&offset=&sort=&qlookup=
A53: Poultry | B53: Eggs, turkeys, ducks, chickens, geese and guinea fowl or guinea hens | C53: Average selection of chicken | D53: 1.5 | E53: 0.6 | G53: =SUM(D53:D54)*E53*$F$37/2 -> 0.879 | H53: 41664.77285 | I53: 34054.6401 | J53: 16123.48914 | K53: 0.02304518468 | L53: 29888.72701 | M53: 0.001343493454 | N53: 1.343493454e-09 | O53: =G53/N53 -> 654264445.8 | P53: =O53*I53 -> 2.228074023e+13 | Q53: 1.054902569e+13 | R53: 0.01030449756 | S53: 1.071348723e+12 | T53: 12001166.88 | U53: =T53/$T$84 -> 0.01553653315 | V53: 1440140.026 | W53: 1.265883083e+12 | Y53: Assume 60% of chicken can be turned to edible products | Z53: https://ndb.nal.usda.gov/ndb/foods?fgcd=&manu=&lfacet=&count=&max=35&sort=&qlookup=chicken+raw&offset=&format=Abridged&new=&measureby=
C54: Egg, whole, raw, fresh | D54: 1.43 | K54: 0 | Q54: 0 | W54: 0 | Z54: https://ndb.nal.usda.gov/ndb/foods/show/112?fgcd=Dairy+and+Egg+Products&manu=&lfacet=&format=&count=&max=35&offset=&sort=&qlookup=egg
A55: Meat animals nec | B55: ISIC: For meat; horses and other equines, camels, sheep, goats. Ostriches, emus, non-puoltry birds, insects, rabbits and other fur animals. | C55: Average selection of meat animals nec | D55: 1.5 | E55: 0.5 | G55: =D55*E55*$F$37 -> 0.75 | H55: 21138.14986 | I55: 11232.53624 | J55: 8690.264754 | K55: 0.01242093162 | L55: 10318.79477 | M55: 0.002615075158 | N55: 2.615075158e-09 | O55: =G55/N55 -> 286798640.4 | P55: =O55*I55 -> 3.221476123e+12 | Q55: 2.492356116e+12 | R55: 0.002434582897 | S55: 3.210411797e+10 | T55: 3323141.489 | U55: =T55/$T$84 -> 0.004302089822 | V55: 398776.9786 | W55: 2.99082734e+11 | Y55: Assume 55% of meat animals nec can be turned to edible products | Z55: https://ndb.nal.usda.gov/ndb/foods/show/5269?fgcd=&manu=&lfacet=&format=&count=&max=35&offset=&sort=&qlookup=horse
A56: Animal products nec | B56: ISIC: Other crude, primary animal products. Animal oils. | C56: Lard | D56: 9.02 | E56: 0.9 | G56: =SUM(D56:D57)*E56*$F$37/2 -> 4.293 | H56: 3674.942283 | I56: 1630.141361 | J56: 1084.278133 | K56: 0.001549750776 | L56: 1025.463339 | M56: 0.004200824788 | N56: 4.200824788e-09 | O56: =G56/N56 -> 1021942170 | P56: =O56*I56 -> 1.6659102e+12 | Q56: 1.108069548e+12 | R56: 0.001082384316 | S56: 1.057956826e+11 | T56: 258110.7728 | U56: =T56/$T$84 -> 0.000334146389 | V56: 30973.29274 | W56: 1.329683457e+11 | Y56: Assume 90% can be consumed | Z56: https://ndb.nal.usda.gov/ndb/foods/show/635?fgcd=&manu=&lfacet=&format=&count=&max=35&offset=&sort=&qlookup=lard
C57: Blood | D57: 0.52 | K57: 0 | Q57: 0 | W57: 0 | Z57: https://fineli.fi/fineli/en/elintarvikkeet/794?q=blod&foodType=ANY&portionUnit=G&portionSize=100&sortByColumn=name&sortOrder=asc&component=2331&
A58: Raw milk | B58: ISIC: Raw milk from cows, buffaloes, sheep, goat, camels, horses, asses, etc. | C58: Milk, Raw Milk, 4.4 % Fat, Without Added Vitamin D | D58: 0.71 | E58: 1 | G58: =D58*$F$37 -> 0.71 | H58: 70256.90563 | I58: 69741.89381 | J58: 6477.909342 | K58: 0.009258828271 | L58: 61108.83955 | M58: 0.0003995573071 | N58: 3.995573071e-10 | O58: =G58/N58 -> 1776966626 | P58: =O58*I58 -> 1.239290177e+14 | Q58: 1.151102871e+13 | R58: 0.01124420119 | S58: 1.799201451e+11 | T58: 16212716.49 | U58: =T58/$T$84 -> 0.02098874298 | V58: 1945525.979 | W58: 1.381323445e+12 | Z58: https://fineli.fi/fineli/en/elintarvikkeet/600?q=mj%C3%B6lk&foodType=ANY&ingredientClass=MILK&portionUnit=G&portionSize=100&sortByColumn=name&sortOrder=asc&component=2331&
A59: Fish and other fishing products; services incidental of fishing (05) | B59: Raw fish, crustaceans, molluscs, natural pearls, algae, oysters, seaweeds. Servies naturally related to fishing. | C59: Fish, Average, Baltic Herring/Vendace/Perch/Pike | D59: 0.99 | E59: 0.6 | G59: =D59*E59*$F$37 -> 0.594 | H59: 28981.67064 | I59: 19021.9848 | J59: 8715.351062 | K59: 0.0124567873 | L59: 13081.21544 | M59: 0.00178993976 | N59: 1.78993976e-09 | O59: 331854743.4 | P59: 6.312535886e+12 | Q59: 2.892230591e+12 | R59: 0.002825188216 | S59: 1.343292097e+11 | T59: 4869075.069 | U59: 0.00630343257 | V59: 584289.0082 | W59: 3.470676709e+11 | Y59: Assume 60% of fish can be consumed | Z59: https://fineli.fi/fineli/en/elintarvikkeet/824?q=fish&foodType=ANY&portionUnit=G&portionSize=100&sortByColumn=name&sortOrder=asc&component=2331&
A60: Products of meat cattle | B60: Beef meat in cuts or carcasses. | C60: Beef, variety meats and by-products, mechanically separated beef, raw | D60: 2.76 | E60: 1 | G60: =D60*E60*$F$37 -> 2.76 | H60: 33859.94026 | I60: 32948.1132 | J60: 23063.07708 | K60: 0.03296388678 | L60: 31478.01765 | M60: 0.003282474116 | N60: 3.282474116e-09 | O60: 840829174 | P60: 2.770373481e+13 | Q60: 1.939210805e+13 | R60: 0.01894259584 | S60: 2.23050175e+12 | T60: 7026126.107 | U60: 0.009095918942 | V60: 843135.1328 | W60: 2.327052967e+12 | Z60: https://ndb.nal.usda.gov/ndb/foods/show/3792?fgcd=&manu=&lfacet=&format=&count=&max=35&offset=&sort=&qlookup=beef+raw
A61: Products of meat pigs | B61: Pork meat in cuts or carcasses. | C61: Pork, fresh, variety meats and by-products, mechanically separated, raw | D61: 3.04 | E61: 1 | G61: =D61*E61*$F$37 -> 3.04 | H61: 37658.27129 | I61: 39302.71524 | J61: 26929.04826 | K61: 0.038489491 | L61: 37387.25853 | M61: 0.001527070152 | N61: 1.527070152e-09 | O61: 1990740239 | P61: 7.824149674e+13 | Q61: 5.360873997e+13 | R61: 0.05236608067 | S61: 7171639429661 | T61: 17634453.94 | U61: 0.02282930326 | V61: 2116134.473 | W61: 6.433048797e+12 | Z61: https://ndb.nal.usda.gov/ndb/foods/show/2588?fgcd=&manu=&lfacet=&format=&count=&max=35&offset=35&sort=&qlookup=pork+raw
A62: Products of meat poultry | B62: Fresh or frozen poultrymeat in individual portions, edible poultry fats. Rabbit meat, feathers, down. | C62: Poultry, mechanically deboned, from mature hens, raw | D62: 2.43 | E62: 1 | G62: =D62*E62*$F$37 -> 2.43 | H62: 39538.4985 | I62: 35548.6333 | J62: 35687.92368 | K62: 0.05100848734 | L62: 33990.63556 | M62: 0.003119341876 | N62: 3.119341876e-09 | O62: 779010476 | P62: 2.769275775e+13 | Q62: 2.780126641e+13 | R62: 0.02715682854 | S62: 1.330593047e+11 | T62: 11440850.37 | U62: 0.01481115569 | V62: 1372902.045 | W62: 3.336151969e+12 | Z62: https://ndb.nal.usda.gov/ndb/foods/show/1036?fgcd=&manu=&lfacet=&format=&count=&max=35&offset=&sort=&qlookup=poultry
A63: Meat products nec | B63: Dried, salted or smoked meat. Prepared meat dishes. Sausages, salami, puddings, ’andouillettes’, saveloys, bolognas, pâtés, galentines, rillettes, boiled ham, meat extracts and juices. | C63: Sausage, Fresh Sausage, Kabanossi, Rapeseed Pork, Average, Hk | D63: 1.95 | E63: 1 | G63: =SUM(D63:D65)*E63*$F$37/3 -> 2.183333333 | H63: 93966.01432 | I63: 96690.15917 | J63: 77620.19348 | K63: 0.1109419728 | L63: 91697.1499 | M63: 0.03802371363 | N63: 3.802371363e-08 | O63: 57420307.61 | P63: 5.551978682e+12 | Q63: 4.456975387e+12 | R63: 0.004353661973 | S63: 1.379795316e+10 | T63: 2041362.772 | U63: 0.002642718054 | V63: 244963.5327 | W63: 5.348370464e+11 | Z63: https://fineli.fi/fineli/en/elintarvikkeet/32722?q=sausage&foodType=ANY&portionUnit=G&portionSize=100&sortByColumn=name&sortOrder=asc&component=2331&
C64: Ham, sliced, regular (approximately 11% fat) | D64: 1.63 | K64: 0 | Q64: 0 | W64: 0 | Z64: https://ndb.nal.usda.gov/ndb/foods/show/1644?fgcd=Sausages+and+Luncheon+Meats&manu=&lfacet=&format=Abridged&count=&max=35&offset=&sort=&qlookup=
C65: Bratwurst, beef and pork, smoked | D65: 2.97 | K65: 0 | Q65: 0 | W65: 0 | Z65: https://ndb.nal.usda.gov/ndb/foods/show/1721?fgcd=Sausages+and+Luncheon+Meats&manu=&lfacet=&format=&count=&max=35&offset=&sort=&qlookup=smoked
A66: products of Vegetable oils and fats | B66: Crude and refined vegetable and animal oils and fat. Margarine. Olive oil, soya-bean oil, palm oil, sunflower-seed oil, cotton-seed oil, rape, colza or mustard oil, linseed oil, etc. Fish oil. Non-defatted flour or meal of oilseeds, oil nuts or oil kernels. | C66: Margarine, margarine-like vegetable oil spread, 67-70% fat, tub | D66: 6.06 | E66: 1 | G66: =SUM(D66:D68)*E66*$F$37/3 -> 7.913333333 | H66: 45551.82225 | I66: 29888.26288 | J66: 7725.699066 | K66: 0.01104228497 | L66: 27078.91316 | M66: 0.001565211306 | N66: 1.565211306e-09 | O66: =G66/N66 -> 5055760397 | P66: =O66*I66 -> 1.511078958e+14 | Q66: 3.905928337e+13 | R66: 0.03815388284 | S66: 6.395923191e+12 | T66: 4935882.482 | U66: =T66/$T$84 -> 0.00638992046 | V66: 592305.8978 | W66: 4.687114005e+12 | Z66: https://ndb.nal.usda.gov/ndb/foods/show/796?fgcd=&manu=&lfacet=&format=&count=&max=35&offset=&sort=&qlookup=margarine
C67: Oil, sunflower, linoleic, (partially hydrogenated) | D67: 8.84 | K67: 0 | Q67: 0 | W67: 0 | Z67: https://ndb.nal.usda.gov/ndb/foods/show/701?fgcd=&manu=&lfacet=&format=&count=&max=35&offset=&sort=&qlookup=sunflower
C68: Oil, industrial, soy ( partially hydrogenated), all purpose | D68: 8.84 | K68: 0 | Q68: 0 | W68: 0 | Z68: https://ndb.nal.usda.gov/ndb/foods/show/770?fgcd=&manu=&lfacet=&format=&count=&max=35&offset=&sort=&qlookup=oil+soy
A69: Dairy products | B69: Processed milk and cream (homogenized, pasteurized, sterilized and/or UHT). Butter, yoghurt, cheese, whey, casein or lactose, ice cream and sorbet, milk drinks, dried milk. | C69: Milk, Average, 1 Ug Added Vitamin D | D69: 0.48 | E69: 1 | G69: =SUM(D69:D71)*E69*$F$37/3 -> 3.75 | H69: 124288.468 | I69: 127612.0513 | J69: 67875.30905 | K69: 0.09701368099 | L69: 119387.0881 | M69: 0.001686495583 | N69: 1.686495583e-09 | O69: =G69/N69 -> 2223545699 | P69: =O69*I69 -> 2.83751228e+14 | Q69: 1.509238515e+14 | R69: 0.1474254121 | S69: 2.355324628e+13 | T69: 40246360.41 | U69: =T69/$T$84 -> 0.05210234295 | V69: 4829563.249 | W69: 1.811086219e+13 | Z69: https://fineli.fi/fineli/en/elintarvikkeet/33466?q=mj%C3%B6lk&foodType=ANY&ingredientClass=MILK&portionUnit=G&portionSize=100&sortByColumn=name&sortOrder=asc&component=2331&
C70: Butter | D70: 7.27 | K70: 0 | Q70: 0 | W70: 0 | Z70: https://fineli.fi/fineli/en/elintarvikkeet/500?q=butter&foodType=ANY&portionUnit=G&portionSize=100&sortByColumn=name&sortOrder=asc&component=2331&
C71: Cheese, cream | D71: 3.5 | K71: 0 | Q71: 0 | W71: 0 | Z71: https://ndb.nal.usda.gov/ndb/foods/show/17?fgcd=&manu=&lfacet=&format=&count=&max=35&offset=&sort=&qlookup=cream
A72: Processed rice | B72: Milled, polished, glazed, parboiled or converted rice. Rice flour and starch | C72: Rice, White | D72: 3.42 | E72: 1 | G72: =SUM(D72:D73)*E72*$F$37/2 -> 3.54 | H72: 4108.963683 | I72: 3318.842694 | J72: 2013.390677 | K72: 0.002877724515 | L72: 2932.656302 | M72: 0.0003587524075 | N72: 3.587524075e-10 | O72: =G72/N72 -> 9867529599 | P72: =O72*I72 -> 3.274877851e+13 | Q72: 1.98671921e+13 | R72: 0.01940666736 | S72: 7.47989513e+11 | T72: 5612201.158 | U72: =T72/$T$84 -> 0.007265472615 | V72: 673464.1389 | W72: 2.384063052e+12 | Z72: https://fineli.fi/fineli/en/elintarvikkeet/156?q=rice&foodType=ANY&portionUnit=G&portionSize=100&sortByColumn=name&sortOrder=asc&component=2331&offset=100&
C73: Rice flour, white, unenriched | D73: 3.66 | K73: 0 | Q73: 0 | W73: 0 | Z73: https://ndb.nal.usda.gov/ndb/foods/show/6525?fgcd=Cereal+Grains+and+Pasta&manu=&lfacet=&format=&count=&max=35&offset=&sort=&qlookup=rice
A74: Sugar | B74: Refined sugar and sugar substitutes from juice of cane, beet, maple, and palm | C74: Syrups, table blends, corn, refiner, and sugar | D74: 3.19 | E74: 1 | G74: =SUM(D74:D75)*E74*$F$37/2 -> 3.625 | H74: 16755.97913 | I74: 13927.62847 | J74: 8053.459346 | K74: 0.01151075033 | L74: 13184.33112 | M74: 0.0006976392512 | N74: 6.976392512e-10 | O74: =G74/N74 -> 5196095251 | P74: =O74*I74 -> 7.236928414e+13 | Q74: 4.184654186e+13 | R74: 0.04087653222 | S74: 6.914511233e+12 | T74: 11543873.62 | U74: =T74/$T$84 -> 0.01494452805 | V74: 1385264.834 | W74: 5.021585023e+12 | Z74: https://ndb.nal.usda.gov/ndb/foods/show/6334?fgcd=&manu=&lfacet=&format=&count=&max=35&offset=70&sort=fg&qlookup=sugar
C75: Sugar | D75: 4.06 | K75: 0 | Q75: 0 | W75: 0 | Z75: https://fineli.fi/fineli/en/elintarvikkeet/1?q=sugar&foodType=ANY&portionUnit=G&portionSize=100&sortByColumn=name&sortOrder=asc&component=2331&offset=150&
A76: Food products nec | B76: Soups and broths. Yeast, powdered or reconstituted eggs, etc. Food products enriched by vitamins, proteins, etc. | C76: Average selection of broth | D76: 0.1 | E76: 1 | G76: =SUM(D76:D78)*E76*$F$37/3 -> 0.53 | H76: 407265.8132 | I76: 390701.3697 | J76: 251294.8169 | K76: 0.3591738372 | L76: 363422.9134 | M76: 0.001309706514 | N76: 1.309706514e-09 | O76: =G76/N76 -> 404670813.1 | P76: =O76*I76 -> 1.581054409e+14 | Q76: 1.016916779e+14 | R76: 0.09933444827 | S76: 7.558375389e+12 | T76: 191871090.4 | U76: =T76/$T$84 -> 0.2483934758 | V76: 23024530.84 | W76: 1.220300135e+13 | Z76: https://ndb.nal.usda.gov/ndb/foods?qlookup=broth&fgcd=&manu=&SYNCHRONIZER_TOKEN=096b5f4a-82f9-4459-b713-23134ee5e52a&SYNCHRONIZER_URI=%2Fndb%2Ffoods
C77: Chicken soup | D77: 0.44 | K77: 0 | Q77: 0 | W77: 0 | Z77: https://fineli.fi/fineli/en/elintarvikkeet/32199?q=soup&foodType=ANY&portionUnit=G&portionSize=100&sortByColumn=name&sortOrder=asc&component=2331&
C78: Leavening agents, yeast, baker's, compressed | D78: 1.05 | K78: 0 | Q78: 0 | W78: 0 | Z78: https://ndb.nal.usda.gov/ndb/foods/show/5860?fgcd=&manu=&lfacet=&format=&count=&max=35&offset=&sort=&qlookup=yeast
A79: Beverages | B79: Whisky, brandy, gin, liqueurs, wine, cider, beer, malt, soft drinks, mineral water. Ethyl alcohol and neutral spirits. | C79: Average selection of cider and beer | D79: 0.4 | E79: 0.7 | G79: =SUM(D79:D82)*E79*$F$37/4 -> 0.6895 | H79: 112779.4445 | I79: 138699.1814 | J79: 43924.74059 | K79: 0.06278130929 | L79: 129554.5884 | M79: 0.0006954716753 | N79: 6.954716753e-10 | O79: =G79/N79 -> 991413488.9 | P79: =O79*I79 -> 1.375082393e+14 | Q79: 4.354758031e+13 | R79: 0.04253814032 | S79: 1.792485475e+13 | T79: 63158202.05 | U79: =T79/$T$84 -> 0.08176367426 | V79: 7578984.246 | W79: 5.225709637e+12 | Y79: Assume 30% of weight is made up by bottles | Z79: https://fineli.fi/fineli/en/elintarvikkeet?q=beverages&foodType=ANY
C80: Average selection of wine | D80: 0.8 | K80: 0 | Q80: 0 | W80: 0 | Z80: https://fineli.fi/fineli/en/elintarvikkeet?q=wine&foodType=ANY
C81: Spirit, Brandy/Rum/Whisky 40% Volume | D81: 2.29 | K81: 0 | Q81: 0 | W81: 0 | Z81: https://fineli.fi/fineli/en/elintarvikkeet/907?q=whisky&foodType=ANY&portionUnit=G&portionSize=100&sortByColumn=name&sortOrder=asc&component=2331&
C82: Soft Drink, Cola, Average | D82: 0.45 | K82: 0 | Q82: 0 | W82: 0 | Z82: https://fineli.fi/fineli/en/elintarvikkeet/928?q=coca%20cola&foodType=ANY&portionUnit=G&portionSize=100&sortByColumn=name&sortOrder=asc&component=2331&
A83: Fish products | B83: Fish and marine mammal oils. | C83: Average selection of fish oils | D83: 9.02 | E83: 1 | G83: =D83*E83*$F$37 -> 9.02 | H83: 56061.36064 | I83: 29276.2996 | J83: 21365.72999 | K83: 0.03053788104 | L83: 129554.5884 | M83: 0.003463738271 | N83: 3.463738271e-09 | O83: =G83/N83 -> 2604122856 | P83: =O83*I83 -> 7.623908093e+13 | Q83: 5.56389858e+13 | R83: 0.05434926507 | S83: 4.255264044e+12 | T83: 6168401.973 | U83: =T83/$T$84 -> 0.007985521964 | V83: 740208.2368 | W83: 6.676678296e+12 | Z83: https://ndb.nal.usda.gov/ndb/foods?qlookup=fish+oil&fgcd=&manu=&SYNCHRONIZER_TOKEN=9bcb841e-8fca-4686-809c-bc9b2e58aa2f&SYNCHRONIZER_URI=%2Fndb%2Ffoods
J84: =SUM(J37:J83) -> 699646.7752 | O84: SUM: | P84: =SUM(P37:P83) -> 2793227568672327 | Q84: =SUM(Q37:Q83) -> 1.023730233e+15 | S84: =SUM(S37:S83) -> 1.274492583e+14 | T84: =SUM(T37:T83) -> 772448188.2 | W84: =SUM(W37:W83) -> 1.22847628e+14
P85: Total output | Q85: HH FD output | S85: HH FD output from HR | T85: Ton output | W85: Total avoidable food waste calories
P86: kcal | Q86: kcal | S86: kcal | W86: kcal
V87: share of total calories: | W87: =W84/Q84 -> 0.12
S96: 0
S97: 0
S98: 0
S99: 0
S100: 0
S102: 0
S103: 0
S104: 0
S105: 0
S106: 0
S107: 0
S108: 0
S109: 0
S110: 0
S111: 0
S112: 0
S113: 0
S114: 0
S115: 0
S116: 0
S117: 0
S118: 0
S119: 0
S120: 0
S121: 0
S122: 0
S123: 0
S124: 0
S125: 0
S126: 0
S127: 0
S128: 0
S129: 0
S130: 0
S131: 0
S132: 0
S133: 0
S134: 0
S135: 0
S136: 0
S137: 0
S138: 0
S139: 0
S140: 0
S141: 0
S142: 0
S143: 0
S144: 0
S145: 0
S146: 0
S147: 0
S148: 0
S149: 0
S150: 0
S151: 0
S152: 0
S153: 0
S154: 0
S155: 0
S156: 0
S157: 0
S158: 0
S159: 0
S160: 0
S161: 0
S162: 0
S163: 0
S164: 0
S165: 0
S166: 0
S167: 0
S168: 0
S169: 0
S170: 0
S171: 0
S172: 0
S173: 0
S174: 0
S175: 0
S176: 0
S177: 0
S178: 0
S179: 0
S180: 0
S181: 0
S182: 0
S183: 0
S184: 0
S185: 0
S186: 0
S187: 0
S188: 0
S189: 0
S190: 0
S191: 0
S192: 0
S193: 0
S194: 0
S195: 0
S196: 0
S197: 0
S198: 0
S199: 0
S200: 0
S201: 0
S202: 0
S203: 0
S204: 0
S205: 0
S206: 0
S207: 0
S208: 0
S209: 0
S210: 0
S211: 0
S212: 0
S213: 0
S214: 0
... 22 more rows

Sheet EnergyCal
D1: Net Calorific Value (Lower Heating Value) | H1: Heating System | L1: Useful Energy | M1: Ton Price | N1: TJ Price
A2: Description | B2: # | C2: Product | D2: GJ/t | E2: TJ/t | F2: Comment | G2: Source | H2: Type | I2: Comment | J2: Efficiency | K2: Source | L2: TJ/t | M2: Million Euros per Ton | N2: Million Euros per TJ
A3: Raw products from forestry. Services related to logging (transport of logs within the forest) | B3: 18 | C3: Products of forestry, logging and related services (02) | D3: 16 | E3: =D3/1000 -> 0.016 | G3: https://www.iea.org/publications/freepublications/publication/statistics_manual.pdf | H3: Non-catalytic wood stove Pacific Energy Fireplace Products Limited FP16 | I3: Least effective of selection, others up to 75% | J3: 0.65 | K3: https://www.epa.gov/sites/production/files/2015-12/documents/list_of_epa-certified_wood_stoves_oct_2015.pdf | L3: =E3*J3 -> 0.0104 | M3: 8.328253452e-05 | N3: =M3/L3 -> 0.008007936012
A4: Rank 1 coal. Hard, compact variety of coal . It has the highest carbon content, the fewest impurities, and the highest calorific content of all types of coal except for graphite. | B4: 20 | C4: Anthracite | D4: 29.65 | E4: 0.02965 | G4: https://www.iea.org/publications/freepublications/publication/statistics_manual.pdf | H4: Stockton 14HB High Output Boiler Stoves (least effective of selection) | I4: Suitable for multi-fuels: "… wood and other forms of solid fuels such as charcoal, peat, coal and many more are burned efficiently and economically." | J4: 0.72 | K4: http://www.stovax.com/stove-fire/high-output-boiler-stoves/stockton-14hb-boiler-stove/ | L4: 0.021348 | M4: 9.86728387e-05 | N4: 0.004622111612
A5: Essential ingredient in steel production. It is different to thermal coal which is used to generate power. Coking coal, also known as metallurgic coal, is heated in a coke oven which forces out impurities to produce coke, which is almost pure carbon. | B5: 21 | C5: Coking Coal | D5: 28.2 | E5: 0.0282 | G5: https://www.iea.org/publications/freepublications/publication/statistics_manual.pdf | H5: Stockton 14HB High Output Boiler Stoves | I5: Suitable for multi-fuels: "… wood and other forms of solid fuels such as charcoal, peat, coal and many more are burned efficiently and economically." | J5: 0.72 | K5: http://www.stovax.com/stove-fire/high-output-boiler-stoves/stockton-14hb-boiler-stove/ | L5: 0.020304 | M5: 6.168185336e-05 | N5: 0.00303791634
A6: Rank 2 coal. Bituminous coal or black coal is a relatively soft coal containing a tarlike substance called bitumen. It is of higher quality than lignite coal but of poorer quality than anthracite. | B6: 22 | C6: Other Bituminous Coal | D6: 24.05 | E6: 0.02405 | G6: https://www.iea.org/publications/freepublications/publication/statistics_manual.pdf | H6: Stockton 14HB High Output Boiler Stoves | I6: Suitable for multi-fuels: "… wood and other forms of solid fuels such as charcoal, peat, coal and many more are burned efficiently and economically." | J6: 0.72 | K6: http://www.stovax.com/stove-fire/high-output-boiler-stoves/stockton-14hb-boiler-stove/ | L6: 0.017316 | M6: 7.503074538e-05 | N6: 0.004333029879
A7: A composition fuel manufactured from hard coal fines with the addition of a binding agent. | B7: 24 | C7: Patent Fuel | D7: 27.3 | E7: 0.0273 | F7: Assume average of all hard coal types | G7: https://www.iea.org/publications/freepublications/publication/statistics_manual.pdf | H7: Stockton 14HB High Output Boiler Stoves | I7: Suitable for multi-fuels: "… wood and other forms of solid fuels such as charcoal, peat, coal and many more are burned efficiently and economically." | J7: 0.72 | K7: http://www.stovax.com/stove-fire/high-output-boiler-stoves/stockton-14hb-boiler-stove/ | L7: 0.019656 | M7: 9.510729147e-05 | N7: 0.004838588292
A8: Rank 4 coal. Lignite or brown coal is a soft brown combustible sedimentary rock formed from naturally compressed peat. It is considered the lowest rank of coal due to its relatively low heat content. | B8: 25 | C8: Lignite/Brown Coal | D8: 16.3 | E8: 0.0163 | G8: http://www.engineeringtoolbox.com/fuels-higher-calorific-values-d_169.html | H8: Stockton 14HB High Output Boiler Stoves | I8: Suitable for multi-fuels: "… wood and other forms of solid fuels such as charcoal, peat, coal and many more are burned efficiently and economically." | J8: 0.72 | K8: http://www.stovax.com/stove-fire/high-output-boiler-stoves/stockton-14hb-boiler-stove/ | L8: 0.011736 | M8: 7.421724977e-06 | N8: 0.0006323896538
A9: Composition fuels manufactured from lignite/brown coal. Virtually smokeless, slow-burning, easily stored and transported. Can be used as domestic fuel for houses. | B9: 26 | C9: BKB/Peat Briquettes | D9: 17 | E9: 0.017 | G9: http://www.fao.org/docrep/x5872e/x5872e0b.htm | H9: Stockton 14HB High Output Boiler Stoves | I9: Suitable for multi-fuels: "… wood and other forms of solid fuels such as charcoal, peat, coal and many more are burned efficiently and economically." | J9: 0.72 | K9: http://www.stovax.com/stove-fire/high-output-boiler-stoves/stockton-14hb-boiler-stove/ | L9: 0.01224 | M9: 0.0001093269534 | N9: 0.008931940637
A10: Accumulation of partially decayed vegetation or organic matter. First step in formation of other fossil fuels. | B10: 27 | C10: Peat | D10: 17.15 | E10: 0.01715 | G10: http://www.engineeringtoolbox.com/fuels-higher-calorific-values-d_169.html | H10: Stockton 14HB High Output Boiler Stoves | I10: Suitable for multi-fuels: "… wood and other forms of solid fuels such as charcoal, peat, coal and many more are burned efficiently and economically." | J10: 0.72 | K10: http://www.stovax.com/stove-fire/high-output-boiler-stoves/stockton-14hb-boiler-stove/ | L10: 0.012348 | M10: 7.507378864e-05 | N10: 0.006079833871
A11: Crude gaseous hydrocarbon. Services: Directional drilling and redrilling; ’spudding in’; derrick erection in situ, repairing and dismantling; cementing oil and gas well casings; pumping of wells; plugging and abandoning wells, etc. | B11: 29 | C11: Natural gas and services related to natural gas extraction, excluding surveying | D11: 39 | E11: 0.039 | F11: GCV since a gas | G11: https://www.iea.org/publications/freepublications/publication/statistics_manual.pdf | H11: Non-condensing furnace | I11: Least effective system, others up to 90% | J11: 0.8 | K11: http://www.eia.gov/todayinenergy/detail.php?id=14051 | L11: 0.0312 | M11: 0.0003521770382 | N11: 0.01128772558
A12: Coke for coke ovens. The solid product obtained from the carbonisation of coal, principally coking coal, at high temperature. | B12: 64 | C12: Coke Oven Coke | D12: 27.45 | E12: 0.02745 | F12: Assume same as 'metallurgical coke' | G12: https://www.iea.org/publications/freepublications/publication/statistics_manual.pdf | H12: Stockton 14HB High Output Boiler Stoves | I12: Suitable for multi-fuels: "… wood and other forms of solid fuels such as charcoal, peat, coal and many more are burned efficiently and economically." | J12: 0.72 | K12: http://www.stovax.com/stove-fire/high-output-boiler-stoves/stockton-14hb-boiler-stove/ | L12: 0.019764 | M12: 8.906498752e-05 | N12: 0.004506425193
A13: 0 | B13: 71 | C13: Kerosene | D13: 43.92 | E13: 0.04392 | F13: Assume same as 'other kerosene' | G13: https://www.iea.org/publications/freepublications/publication/statistics_manual.pdf | H13: Steam furnace for fuel oil | I13: Least effective of selection, others up to 87.6 | J13: 0.825 | K13: https://www.e-education.psu.edu/egee102/node/2066 | L13: 0.036234 | M13: 0.0003895647523 | N13: 0.01075135929
A14: LPG for mobility included in other product category. LPG used for daily cooking in developed countries. Also heating. | B14: 75 | C14: Liquefied Petroleum Gases (LPG) | D14: 50.08 | E14: 0.05008 | F14: GCV since a gas | G14: https://www.iea.org/publications/freepublications/publication/statistics_manual.pdf | H14: Non-condensing furnace | I14: Least effective system, others up to 90% | J14: 0.8 | K14: http://www.eia.gov/todayinenergy/detail.php?id=14051 | L14: 0.040064 | M14: 0.0004599150763 | N14: 0.01147950969
A15: Paint thinner, cleaning agent | B15: 78 | C15: Naphtha | D15: 47.73 | E15: 0.04773 | G15: https://www.iea.org/publications/freepublications/publication/statistics_manual.pdf | H15: Steam furnace for fuel oil | I15: Least effective of selection, others up to 87.6 | J15: 0.825 | K15: https://www.e-education.psu.edu/egee102/node/2066 | L15: 0.03937725 | M15: 0.0002632930017 | N15: 0.006686424311
A16: Charcoal is a light, black residue, consisting of carbon and any remaining ash, obtained by removing water and other volatile constituents from animal and vegetation substances. | B16: 91 | C16: Charcoal | D16: 29.6 | E16: 0.0296 | G16: http://www.engineeringtoolbox.com/fuels-higher-calorific-values-d_169.html | H16: Stockton 14HB High Output Boiler Stoves | I16: Suitable for multi-fuels: "… wood and other forms of solid fuels such as charcoal, peat, coal and many more are burned efficiently and economically." | J16: 0.72 | K16: http://www.stovax.com/stove-fire/high-output-boiler-stoves/stockton-14hb-boiler-stove/ | L16: 0.021312 | M16: 7.119661852e-05 | N16: 0.003340682175

Sheet Input
A1: # | B1: Product | C1: kcal / Million Euro | D1: kcal in avoidable food waste | G1: Food prod characterization matrix | AJ1: Non-food prod characterization matrix
A2: 1 | B2: Paddy rice | C2: 9484792788 | D2: 6.096759176e+11 | E2: 1 | I2: 1 | J2: 2 | K2: 3 | L2: 4 | M2: 5 | N2: 6 | O2: 8 | P2: 9 | Q2: 10 | R2: 11 | S2: 12 | T2: 13 | U2: 14 | V2: 19 | W2: 43 | X2: 44 | Y2: 45 | Z2: 46 | AA2: 47 | AB2: 48 | AC2: 49 | AD2: 50 | AE2: 51 | AF2: 52 | AG2: 53 | AL2: 1 | AM2: 2 | AN2: 3 | AO2: 4 | AP2: 5 | AQ2: 6 | AR2: 8 | AS2: 9 | AT2: 10 | AU2: 11 | AV2: 12 | AW2: 13 | AX2: 14 | AY2: 19 | AZ2: 43 | BA2: 44 | BB2: 45 | BC2: 46 | BD2: 47 | BE2: 48 | BF2: 49 | BG2: 50 | BH2: 51 | BI2: 52 | BJ2: 53
A3: 2 | B3: Wheat | C3: 5490256426 | D3: 5.541654926e+12 | E3: 2 | I3: Paddy rice | J3: Wheat | K3: Cereal grains nec | L3: Vegetables, fruit, nuts | M3: Oil seeds | N3: Sugar cane, sugar beet | O3: Crops nec | P3: Cattle | Q3: Pigs | R3: Poultry | S3: Meat animals nec | T3: Animal products nec | U3: Raw milk | V3: Fish and other fishing products; services incidental of fishing (05) | W3: Products of meat cattle | X3: Products of meat pigs | Y3: Products of meat poultry | Z3: Meat products nec | AA3: products of Vegetable oils and fats | AB3: Dairy products | AC3: Processed rice | AD3: Sugar | AE3: Food products nec | AF3: Beverages | AG3: Fish products | AL3: Paddy rice | AM3: Wheat | AN3: Cereal grains nec | AO3: Vegetables, fruit, nuts | AP3: Oil seeds | AQ3: Sugar cane, sugar beet | AR3: Crops nec | AS3: Cattle | AT3: Pigs | AU3: Poultry | AV3: Meat animals nec | AW3: Animal products nec | AX3: Raw milk | AY3: Fish and other fishing products; services incidental of fishing (05) | AZ3: Products of meat cattle | BA3: Products of meat pigs | BB3: Products of meat poultry | BC3: Meat products nec | BD3: products of Vegetable oils and fats | BE3: Dairy products | BF3: Processed rice | BG3: Sugar | BH3: Food products nec | BI3: Beverages | BJ3: Fish products
A4: 3 | B4: Cereal grains nec | C4: 1.102801237e+10 | D4: 5.625031358e+12 | E4: 3 | F4: 1 | G4: p01.a | H4: Paddy rice | I4: 1 | J4: 0 | K4: 0 | L4: 0 | M4: 0 | N4: 0 | O4: 0 | P4: 0 | Q4: 0 | R4: 0 | S4: 0 | T4: 0 | U4: 0 | V4: 0 | W4: 0 | X4: 0 | Y4: 0 | Z4: 0 | AA4: 0 | AB4: 0 | AC4: 0 | AD4: 0 | AE4: 0 | AF4: 0 | AG4: 0 | AI4: 1 | AJ4: p01.a | AK4: Paddy rice | AL4: =IF(I4=1,0,1) -> 0 | AM4: =IF(J4=1,0,1) -> 1 | AN4: 1 | AO4: 1 | AP4: 1 | AQ4: 1 | AR4: 1 | AS4: 1 | AT4: =IF(Q4=1,0,1) -> 1 | AU4: =IF(R4=1,0,1) -> 1 | AV4: =IF(S4=1,0,1) -> 1 | AW4: =IF(T4=1,0,1) -> 1 | AX4: =IF(U4=1,0,1) -> 1 | AY4: =IF(V4=1,0,1) -> 1 | AZ4: 1 | BA4: =IF(X4=1,0,1) -> 1 | BB4: =IF(Y4=1,0,1) -> 1 | BC4: =IF(Z4=1,0,1) -> 1 | BD4: =IF(AA4=1,0,1) -> 1 | BE4: =IF(AB4=1,0,1) -> 1 | BF4: =IF(AC4=1,0,1) -> 1 | BG4: 1 | BH4: =IF(AE4=1,0,1) -> 1 | BI4: =IF(AF4=1,0,1) -> 1 | BJ4: =IF(AG4=1,0,1) -> 1
A5: 4 | B5: Vegetables, fruit, nuts | C5: 4569401687 | D5: 3.59341319e+13 | E5: 4 | F5: =+F4+1 -> 2 | G5: p01.b | H5: Wheat | I5: 0 | J5: 1 | K5: 0 | L5: 0 | M5: 0 | N5: 0 | O5: 0 | P5: 0 | Q5: 0 | R5: 0 | S5: 0 | T5: 0 | U5: 0 | V5: 0 | W5: 0 | X5: 0 | Y5: 0 | Z5: 0 | AA5: 0 | AB5: 0 | AC5: 0 | AD5: 0 | AE5: 0 | AF5: 0 | AG5: 0 | AI5: =+AI4+1 -> 2 | AJ5: p01.b | AK5: Wheat | AL5: =IF(I5=1,0,1) -> 1 | AM5: =IF(J5=1,0,1) -> 0 | AN5: =IF(K5=1,0,1) -> 1 | AO5: =IF(L5=1,0,1) -> 1 | AP5: =IF(M5=1,0,1) -> 1 | AQ5: =IF(N5=1,0,1) -> 1 | AR5: =IF(O5=1,0,1) -> 1 | AS5: =IF(P5=1,0,1) -> 1 | AT5: =IF(Q5=1,0,1) -> 1 | AU5: =IF(R5=1,0,1) -> 1 | AV5: =IF(S5=1,0,1) -> 1 | AW5: =IF(T5=1,0,1) -> 1 | AX5: =IF(U5=1,0,1) -> 1 | AY5: =IF(V5=1,0,1) -> 1 | AZ5: =IF(W5=1,0,1) -> 1 | BA5: =IF(X5=1,0,1) -> 1 | BB5: =IF(Y5=1,0,1) -> 1 | BC5: =IF(Z5=1,0,1) -> 1 | BD5: =IF(AA5=1,0,1) -> 1 | BE5: =IF(AB5=1,0,1) -> 1 | BF5: =IF(AC5=1,0,1) -> 1 | BG5: =IF(AD5=1,0,1) -> 1 | BH5: =IF(AE5=1,0,1) -> 1 | BI5: =IF(AF5=1,0,1) -> 1 | BJ5: =IF(AG5=1,0,1) -> 1
A6: 5 | B6: Oil seeds | C6: 7051457734 | D6: 3.280047227e+12 | E6: 5 | F6: 3 | G6: p01.c | H6: Cereal grains nec | I6: 0 | J6: 0 | K6: 1 | L6: 0 | M6: 0 | N6: 0 | O6: 0 | P6: 0 | Q6: 0 | R6: 0 | S6: 0 | T6: 0 | U6: 0 | V6: 0 | W6: 0 | X6: 0 | Y6: 0 | Z6: 0 | AA6: 0 | AB6: 0 | AC6: 0 | AD6: 0 | AE6: 0 | AF6: 0 | AG6: 0 | AI6: 3 | AJ6: p01.c | AK6: Cereal grains nec | AL6: 1 | AM6: 1 | AN6: 0 | AO6: 1 | AP6: 1 | AQ6: 1 | AR6: 1 | AS6: 1 | AT6: 1 | AU6: 1 | AV6: 1 | AW6: 1 | AX6: 1 | AY6: 1 | AZ6: 1 | BA6: 1 | BB6: 1 | BC6: 1 | BD6: 1 | BE6: 1 | BF6: 1 | BG6: 1 | BH6: 1 | BI6: 1 | BJ6: 1
A7: 6 | B7: Sugar cane, sugar beet | C7: 5.098155304e+10 | D7: 0 | E7: 6 | F7: 4 | G7: p01.d | H7: Vegetables, fruit, nuts | I7: 0 | J7: 0 | K7: 0 | L7: 1 | M7: 0 | N7: 0 | O7: 0 | P7: 0 | Q7: 0 | R7: 0 | S7: 0 | T7: 0 | U7: 0 | V7: 0 | W7: 0 | X7: 0 | Y7: 0 | Z7: 0 | AA7: 0 | AB7: 0 | AC7: 0 | AD7: 0 | AE7: 0 | AF7: 0 | AG7: 0 | AI7: 4 | AJ7: p01.d | AK7: Vegetables, fruit, nuts | AL7: 1 | AM7: 1 | AN7: 1 | AO7: 0 | AP7: 1 | AQ7: 1 | AR7: 1 | AS7: 1 | AT7: 1 | AU7: 1 | AV7: 1 | AW7: 1 | AX7: 1 | AY7: 1 | AZ7: 1 | BA7: 1 | BB7: 1 | BC7: 1 | BD7: 1 | BE7: 1 | BF7: 1 | BG7: 1 | BH7: 1 | BI7: 1 | BJ7: 1
A8: 8 | B8: Crops nec | C8: 1195101480 | D8: 1.490657048e+12 | E8: 7 | F8: 5 | G8: p01.e | H8: Oil seeds | I8: 0 | J8: 0 | K8: 0 | L8: 0 | M8: 1 | N8: 0 | O8: 0 | P8: 0 | Q8: 0 | R8: 0 | S8: 0 | T8: 0 | U8: 0 | V8: 0 | W8: 0 | X8: 0 | Y8: 0 | Z8: 0 | AA8: 0 | AB8: 0 | AC8: 0 | AD8: 0 | AE8: 0 | AF8: 0 | AG8: 0 | AI8: 5 | AJ8: p01.e | AK8: Oil seeds | AL8: 1 | AM8: 1 | AN8: 1 | AO8: 1 | AP8: 0 | AQ8: 1 | AR8: 1 | AS8: 1 | AT8: 1 | AU8: 1 | AV8: 1 | AW8: 1 | AX8: 1 | AY8: 1 | AZ8: 1 | BA8: 1 | BB8: 1 | BC8: 1 | BD8: 1 | BE8: 1 | BF8: 1 | BG8: 1 | BH8: 1 | BI8: 1 | BJ8: 1
A9: 9 | B9: Cattle | C9: 662480931.2 | D9: 0 | E9: 8 | F9: 6 | G9: p01.f | H9: Sugar cane, sugar beet | I9: 0 | J9: 0 | K9: 0 | L9: 0 | M9: 0 | N9: 1 | O9: 0 | P9: 0 | Q9: 0 | R9: 0 | S9: 0 | T9: 0 | U9: 0 | V9: 0 | W9: 0 | X9: 0 | Y9: 0 | Z9: 0 | AA9: 0 | AB9: 0 | AC9: 0 | AD9: 0 | AE9: 0 | AF9: 0 | AG9: 0 | AI9: 6 | AJ9: p01.f | AK9: Sugar cane, sugar beet | AL9: 1 | AM9: 1 | AN9: 1 | AO9: 1 | AP9: 1 | AQ9: 0 | AR9: 1 | AS9: 1 | AT9: 1 | AU9: 1 | AV9: 1 | AW9: 1 | AX9: 1 | AY9: 1 | AZ9: 1 | BA9: 1 | BB9: 1 | BC9: 1 | BD9: 1 | BE9: 1 | BF9: 1 | BG9: 1 | BH9: 1 | BI9: 1 | BJ9: 1
A10: 10 | B10: Pigs | C10: 1596086855 | D10: 0 | E10: 9 | F10: 7 | G10: p01.g | H10: Plant-based fibers | I10: 0 | J10: 0 | K10: 0 | L10: 0 | M10: 0 | N10: 0 | O10: 0 | P10: 0 | Q10: 0 | R10: 0 | S10: 0 | T10: 0 | U10: 0 | V10: 0 | W10: 0 | X10: 0 | Y10: 0 | Z10: 0 | AA10: 0 | AB10: 0 | AC10: 0 | AD10: 0 | AE10: 0 | AF10: 0 | AG10: 0 | AI10: 7 | AJ10: p01.g | AK10: Plant-based fibers | AL10: 1 | AM10: 1 | AN10: 1 | AO10: 1 | AP10: 1 | AQ10: 1 | AR10: 1 | AS10: 1 | AT10: 1 | AU10: 1 | AV10: 1 | AW10: 1 | AX10: 1 | AY10: 1 | AZ10: 1 | BA10: 1 | BB10: 1 | BC10: 1 | BD10: 1 | BE10: 1 | BF10: 1 | BG10: 1 | BH10: 1 | BI10: 1 | BJ10: 1
A11: 11 | B11: Poultry | C11: 867142297.3 | D11: 1.67776313e+12 | E11: 10 | F11: 8 | G11: p01.h | H11: Crops nec | I11: 0 | J11: 0 | K11: 0 | L11: 0 | M11: 0 | N11: 0 | O11: 1 | P11: 0 | Q11: 0 | R11: 0 | S11: 0 | T11: 0 | U11: 0 | V11: 0 | W11: 0 | X11: 0 | Y11: 0 | Z11: 0 | AA11: 0 | AB11: 0 | AC11: 0 | AD11: 0 | AE11: 0 | AF11: 0 | AG11: 0 | AI11: 8 | AJ11: p01.h | AK11: Crops nec | AL11: 1 | AM11: 1 | AN11: 1 | AO11: 1 | AP11: 1 | AQ11: 1 | AR11: 0 | AS11: 1 | AT11: 1 | AU11: 1 | AV11: 1 | AW11: 1 | AX11: 1 | AY11: 1 | AZ11: 1 | BA11: 1 | BB11: 1 | BC11: 1 | BD11: 1 | BE11: 1 | BF11: 1 | BG11: 1 | BH11: 1 | BI11: 1 | BJ11: 1
A12: 12 | B12: Meat animals nec | C12: 286798640.4 | D12: 2.99082734e+11 | E12: 11 | F12: 9 | G12: p01.i | H12: Cattle | I12: 0 | J12: 0 | K12: 0 | L12: 0 | M12: 0 | N12: 0 | O12: 0 | P12: 1 | Q12: 0 | R12: 0 | S12: 0 | T12: 0 | U12: 0 | V12: 0 | W12: 0 | X12: 0 | Y12: 0 | Z12: 0 | AA12: 0 | AB12: 0 | AC12: 0 | AD12: 0 | AE12: 0 | AF12: 0 | AG12: 0 | AI12: 9 | AJ12: p01.i | AK12: Cattle | AL12: 1 | AM12: 1 | AN12: 1 | AO12: 1 | AP12: 1 | AQ12: 1 | AR12: 1 | AS12: 0 | AT12: 1 | AU12: 1 | AV12: 1 | AW12: 1 | AX12: 1 | AY12: 1 | AZ12: 1 | BA12: 1 | BB12: 1 | BC12: 1 | BD12: 1 | BE12: 1 | BF12: 1 | BG12: 1 | BH12: 1 | BI12: 1 | BJ12: 1
A13: 13 | B13: Animal products nec | C13: 1021942170 | D13: 1.329683457e+11 | E13: 12 | F13: 10 | G13: p01.j | H13: Pigs | I13: 0 | J13: 0 | K13: 0 | L13: 0 | M13: 0 | N13: 0 | O13: 0 | P13: 0 | Q13: 1 | R13: 0 | S13: 0 | T13: 0 | U13: 0 | V13: 0 | W13: 0 | X13: 0 | Y13: 0 | Z13: 0 | AA13: 0 | AB13: 0 | AC13: 0 | AD13: 0 | AE13: 0 | AF13: 0 | AG13: 0 | AI13: 10 | AJ13: p01.j | AK13: Pigs | AL13: 1 | AM13: 1 | AN13: 1 | AO13: 1 | AP13: 1 | AQ13: 1 | AR13: 1 | AS13: 1 | AT13: 0 | AU13: 1 | AV13: 1 | AW13: 1 | AX13: 1 | AY13: 1 | AZ13: 1 | BA13: 1 | BB13: 1 | BC13: 1 | BD13: 1 | BE13: 1 | BF13: 1 | BG13: 1 | BH13: 1 | BI13: 1 | BJ13: 1
A14: 14 | B14: Raw milk | C14: 1776966626 | D14: 1.381323445e+12 | E14: 13 | F14: 11 | G14: p01.k | H14: Poultry | I14: 0 | J14: 0 | K14: 0 | L14: 0 | M14: 0 | N14: 0 | O14: 0 | P14: 0 | Q14: 0 | R14: 1 | S14: 0 | T14: 0 | U14: 0 | V14: 0 | W14: 0 | X14: 0 | Y14: 0 | Z14: 0 | AA14: 0 | AB14: 0 | AC14: 0 | AD14: 0 | AE14: 0 | AF14: 0 | AG14: 0 | AI14: 11 | AJ14: p01.k | AK14: Poultry | AL14: 1 | AM14: 1 | AN14: 1 | AO14: 1 | AP14: 1 | AQ14: 1 | AR14: 1 | AS14: 1 | AT14: 1 | AU14: 0 | AV14: 1 | AW14: 1 | AX14: 1 | AY14: 1 | AZ14: 1 | BA14: 1 | BB14: 1 | BC14: 1 | BD14: 1 | BE14: 1 | BF14: 1 | BG14: 1 | BH14: 1 | BI14: 1 | BJ14: 1
A15: 19 | B15: Fish and other fishing products; services incidental of fishing (05) | C15: 331854743.4 | D15: 3.470676709e+11 | E15: 14 | F15: 12 | G15: p01.l | H15: Meat animals nec | I15: 0 | J15: 0 | K15: 0 | L15: 0 | M15: 0 | N15: 0 | O15: 0 | P15: 0 | Q15: 0 | R15: 0 | S15: 1 | T15: 0 | U15: 0 | V15: 0 | W15: 0 | X15: 0 | Y15: 0 | Z15: 0 | AA15: 0 | AB15: 0 | AC15: 0 | AD15: 0 | AE15: 0 | AF15: 0 | AG15: 0 | AI15: 12 | AJ15: p01.l | AK15: Meat animals nec | AL15: 1 | AM15: 1 | AN15: 1 | AO15: 1 | AP15: 1 | AQ15: 1 | AR15: 1 | AS15: 1 | AT15: 1 | AU15: 1 | AV15: 0 | AW15: 1 | AX15: 1 | AY15: 1 | AZ15: 1 | BA15: 1 | BB15: 1 | BC15: 1 | BD15: 1 | BE15: 1 | BF15: 1 | BG15: 1 | BH15: 1 | BI15: 1 | BJ15: 1
A16: 43 | B16: Products of meat cattle | C16: 840829174 | D16: 2.327052967e+12 | E16: 15 | F16: 13 | G16: p01.m | H16: Animal products nec | I16: 0 | J16: 0 | K16: 0 | L16: 0 | M16: 0 | N16: 0 | O16: 0 | P16: 0 | Q16: 0 | R16: 0 | S16: 0 | T16: 1 | U16: 0 | V16: 0 | W16: 0 | X16: 0 | Y16: 0 | Z16: 0 | AA16: 0 | AB16: 0 | AC16: 0 | AD16: 0 | AE16: 0 | AF16: 0 | AG16: 0 | AI16: 13 | AJ16: p01.m | AK16: Animal products nec | AL16: 1 | AM16: 1 | AN16: 1 | AO16: 1 | AP16: 1 | AQ16: 1 | AR16: 1 | AS16: 1 | AT16: 1 | AU16: 1 | AV16: 1 | AW16: 0 | AX16: 1 | AY16: 1 | AZ16: 1 | BA16: 1 | BB16: 1 | BC16: 1 | BD16: 1 | BE16: 1 | BF16: 1 | BG16: 1 | BH16: 1 | BI16: 1 | BJ16: 1
A17: 44 | B17: Products of meat pigs | C17: 1990740239 | D17: 6.433048797e+12 | E17: 16 | F17: 14 | G17: p01.n | H17: Raw milk | I17: 0 | J17: 0 | K17: 0 | L17: 0 | M17: 0 | N17: 0 | O17: 0 | P17: 0 | Q17: 0 | R17: 0 | S17: 0 | T17: 0 | U17: 1 | V17: 0 | W17: 0 | X17: 0 | Y17: 0 | Z17: 0 | AA17: 0 | AB17: 0 | AC17: 0 | AD17: 0 | AE17: 0 | AF17: 0 | AG17: 0 | AI17: 14 | AJ17: p01.n | AK17: Raw milk | AL17: 1 | AM17: 1 | AN17: 1 | AO17: 1 | AP17: 1 | AQ17: 1 | AR17: 1 | AS17: 1 | AT17: 1 | AU17: 1 | AV17: 1 | AW17: 1 | AX17: 0 | AY17: 1 | AZ17: 1 | BA17: 1 | BB17: 1 | BC17: 1 | BD17: 1 | BE17: 1 | BF17: 1 | BG17: 1 | BH17: 1 | BI17: 1 | BJ17: 1
A18: 45 | B18: Products of meat poultry | C18: 779010476 | D18: 3.336151969e+12 | E18: 17 | F18: 15 | G18: p01.o | H18: Wool, silk-worm cocoons | I18: 0 | J18: 0 | K18: 0 | L18: 0 | M18: 0 | N18: 0 | O18: 0 | P18: 0 | Q18: 0 | R18: 0 | S18: 0 | T18: 0 | U18: 0 | V18: 0 | W18: 0 | X18: 0 | Y18: 0 | Z18: 0 | AA18: 0 | AB18: 0 | AC18: 0 | AD18: 0 | AE18: 0 | AF18: 0 | AG18: 0 | AI18: 15 | AJ18: p01.o | AK18: Wool, silk-worm cocoons | AL18: 1 | AM18: 1 | AN18: 1 | AO18: 1 | AP18: 1 | AQ18: 1 | AR18: 1 | AS18: 1 | AT18: 1 | AU18: 1 | AV18: 1 | AW18: 1 | AX18: 1 | AY18: 1 | AZ18: 1 | BA18: 1 | BB18: 1 | BC18: 1 | BD18: 1 | BE18: 1 | BF18: 1 | BG18: 1 | BH18: 1 | BI18: 1 | BJ18: 1
A19: 46 | B19: Meat products nec | C19: 57420307.61 | D19: 5.348370464e+11 | E19: 18 | F19: 16 | G19: p01.w.1 | H19: Manure (conventional treatment) | I19: 0 | J19: 0 | K19: 0 | L19: 0 | M19: 0 | N19: 0 | O19: 0 | P19: 0 | Q19: 0 | R19: 0 | S19: 0 | T19: 0 | U19: 0 | V19: 0 | W19: 0 | X19: 0 | Y19: 0 | Z19: 0 | AA19: 0 | AB19: 0 | AC19: 0 | AD19: 0 | AE19: 0 | AF19: 0 | AG19: 0 | AI19: 16 | AJ19: p01.w.1 | AK19: Manure (conventional treatment) | AL19: 1 | AM19: 1 | AN19: 1 | AO19: 1 | AP19: 1 | AQ19: 1 | AR19: 1 | AS19: 1 | AT19: 1 | AU19: 1 | AV19: 1 | AW19: 1 | AX19: 1 | AY19: 1 | AZ19: 1 | BA19: 1 | BB19: 1 | BC19: 1 | BD19: 1 | BE19: 1 | BF19: 1 | BG19: 1 | BH19: 1 | BI19: 1 | BJ19: 1
A20: 47 | B20: products of Vegetable oils and fats | C20: 5055760397 | D20: 4.687114005e+12 | E20: 19 | F20: 17 | G20: p01.w.2 | H20: Manure (biogas treatment) | I20: 0 | J20: 0 | K20: 0 | L20: 0 | M20: 0 | N20: 0 | O20: 0 | P20: 0 | Q20: 0 | R20: 0 | S20: 0 | T20: 0 | U20: 0 | V20: 0 | W20: 0 | X20: 0 | Y20: 0 | Z20: 0 | AA20: 0 | AB20: 0 | AC20: 0 | AD20: 0 | AE20: 0 | AF20: 0 | AG20: 0 | AI20: 17 | AJ20: p01.w.2 | AK20: Manure (biogas treatment) | AL20: 1 | AM20: 1 | AN20: 1 | AO20: 1 | AP20: 1 | AQ20: 1 | AR20: 1 | AS20: 1 | AT20: 1 | AU20: 1 | AV20: 1 | AW20: 1 | AX20: 1 | AY20: 1 | AZ20: 1 | BA20: 1 | BB20: 1 | BC20: 1 | BD20: 1 | BE20: 1 | BF20: 1 | BG20: 1 | BH20: 1 | BI20: 1 | BJ20: 1
A21: 48 | B21: Dairy products | C21: 2223545699 | D21: 1.811086219e+13 | E21: 20 | F21: 18 | G21: p02 | H21: Products of forestry, logging and related services (02) | I21: 0 | J21: 0 | K21: 0 | L21: 0 | M21: 0 | N21: 0 | O21: 0 | P21: 0 | Q21: 0 | R21: 0 | S21: 0 | T21: 0 | U21: 0 | V21: 0 | W21: 0 | X21: 0 | Y21: 0 | Z21: 0 | AA21: 0 | AB21: 0 | AC21: 0 | AD21: 0 | AE21: 0 | AF21: 0 | AG21: 0 | AI21: 18 | AJ21: p02 | AK21: Products of forestry, logging and related services (02) | AL21: 1 | AM21: 1 | AN21: 1 | AO21: 1 | AP21: 1 | AQ21: 1 | AR21: 1 | AS21: 1 | AT21: 1 | AU21: 1 | AV21: 1 | AW21: 1 | AX21: 1 | AY21: 1 | AZ21: 1 | BA21: 1 | BB21: 1 | BC21: 1 | BD21: 1 | BE21: 1 | BF21: 1 | BG21: 1 | BH21: 1 | BI21: 1 | BJ21: 1
A22: 49 | B22: Processed rice | C22: 9867529599 | D22: 2.384063052e+12 | E22: 21 | F22: 19 | G22: p05 | H22: Fish and other fishing products; services incidental of fishing (05) | I22: 0 | J22: 0 | K22: 0 | L22: 0 | M22: 0 | N22: 0 | O22: 0 | P22: 0 | Q22: 0 | R22: 0 | S22: 0 | T22: 0 | U22: 0 | V22: 1 | W22: 0 | X22: 0 | Y22: 0 | Z22: 0 | AA22: 0 | AB22: 0 | AC22: 0 | AD22: 0 | AE22: 0 | AF22: 0 | AG22: 0 | AI22: 19 | AJ22: p05 | AK22: Fish and other fishing products; services incidental of fishing (05) | AL22: 1 | AM22: 1 | AN22: 1 | AO22: 1 | AP22: 1 | AQ22: 1 | AR22: 1 | AS22: 1 | AT22: 1 | AU22: 1 | AV22: 1 | AW22: 1 | AX22: 1 | AY22: 0 | AZ22: 1 | BA22: 1 | BB22: 1 | BC22: 1 | BD22: 1 | BE22: 1 | BF22: 1 | BG22: 1 | BH22: 1 | BI22: 1 | BJ22: 1
A23: 50 | B23: Sugar | C23: 5196095251 | D23: 5.021585023e+12 | E23: 22 | F23: 20 | G23: p10.a | H23: Anthracite | I23: 0 | J23: 0 | K23: 0 | L23: 0 | M23: 0 | N23: 0 | O23: 0 | P23: 0 | Q23: 0 | R23: 0 | S23: 0 | T23: 0 | U23: 0 | V23: 0 | W23: 0 | X23: 0 | Y23: 0 | Z23: 0 | AA23: 0 | AB23: 0 | AC23: 0 | AD23: 0 | AE23: 0 | AF23: 0 | AG23: 0 | AI23: 20 | AJ23: p10.a | AK23: Anthracite | AL23: 1 | AM23: 1 | AN23: 1 | AO23: 1 | AP23: 1 | AQ23: 1 | AR23: 1 | AS23: 1 | AT23: 1 | AU23: 1 | AV23: 1 | AW23: 1 | AX23: 1 | AY23: 1 | AZ23: 1 | BA23: 1 | BB23: 1 | BC23: 1 | BD23: 1 | BE23: 1 | BF23: 1 | BG23: 1 | BH23: 1 | BI23: 1 | BJ23: 1
A24: 51 | B24: Food products nec | C24: 404670813.1 | D24: 1.220300135e+13 | E24: 23 | F24: 21 | G24: p10.b | H24: Coking Coal | I24: 0 | J24: 0 | K24: 0 | L24: 0 | M24: 0 | N24: 0 | O24: 0 | P24: 0 | Q24: 0 | R24: 0 | S24: 0 | T24: 0 | U24: 0 | V24: 0 | W24: 0 | X24: 0 | Y24: 0 | Z24: 0 | AA24: 0 | AB24: 0 | AC24: 0 | AD24: 0 | AE24: 0 | AF24: 0 | AG24: 0 | AI24: 21 | AJ24: p10.b | AK24: Coking Coal | AL24: 1 | AM24: 1 | AN24: 1 | AO24: 1 | AP24: 1 | AQ24: 1 | AR24: 1 | AS24: 1 | AT24: 1 | AU24: 1 | AV24: 1 | AW24: 1 | AX24: 1 | AY24: 1 | AZ24: 1 | BA24: 1 | BB24: 1 | BC24: 1 | BD24: 1 | BE24: 1 | BF24: 1 | BG24: 1 | BH24: 1 | BI24: 1 | BJ24: 1
A25: 52 | B25: Beverages | C25: 991413488.9 | D25: 5.225709637e+12 | E25: 24 | F25: 22 | G25: p10.c | H25: Other Bituminous Coal | I25: 0 | J25: 0 | K25: 0 | L25: 0 | M25: 0 | N25: 0 | O25: 0 | P25: 0 | Q25: 0 | R25: 0 | S25: 0 | T25: 0 | U25: 0 | V25: 0 | W25: 0 | X25: 0 | Y25: 0 | Z25: 0 | AA25: 0 | AB25: 0 | AC25: 0 | AD25: 0 | AE25: 0 | AF25: 0 | AG25: 0 | AI25: 22 | AJ25: p10.c | AK25: Other Bituminous Coal | AL25: 1 | AM25: 1 | AN25: 1 | AO25: 1 | AP25: 1 | AQ25: 1 | AR25: 1 | AS25: 1 | AT25: 1 | AU25: 1 | AV25: 1 | AW25: 1 | AX25: 1 | AY25: 1 | AZ25: 1 | BA25: 1 | BB25: 1 | BC25: 1 | BD25: 1 | BE25: 1 | BF25: 1 | BG25: 1 | BH25: 1 | BI25: 1 | BJ25: 1
A26: 53 | B26: Fish products | C26: 2604122856 | D26: 6.676678296e+12 | E26: 25 | F26: 23 | G26: p10.d | H26: Sub-Bituminous Coal | I26: 0 | J26: 0 | K26: 0 | L26: 0 | M26: 0 | N26: 0 | O26: 0 | P26: 0 | Q26: 0 | R26: 0 | S26: 0 | T26: 0 | U26: 0 | V26: 0 | W26: 0 | X26: 0 | Y26: 0 | Z26: 0 | AA26: 0 | AB26: 0 | AC26: 0 | AD26: 0 | AE26: 0 | AF26: 0 | AG26: 0 | AI26: 23 | AJ26: p10.d | AK26: Sub-Bituminous Coal | AL26: 1 | AM26: 1 | AN26: 1 | AO26: 1 | AP26: 1 | AQ26: 1 | AR26: 1 | AS26: 1 | AT26: 1 | AU26: 1 | AV26: 1 | AW26: 1 | AX26: 1 | AY26: 1 | AZ26: 1 | BA26: 1 | BB26: 1 | BC26: 1 | BD26: 1 | BE26: 1 | BF26: 1 | BG26: 1 | BH26: 1 | BI26: 1 | BJ26: 1
F27: 24 | G27: p10.e | H27: Patent Fuel | I27: 0 | J27: 0 | K27: 0 | L27: 0 | M27: 0 | N27: 0 | O27: 0 | P27: 0 | Q27: 0 | R27: 0 | S27: 0 | T27: 0 | U27: 0 | V27: 0 | W27: 0 | X27: 0 | Y27: 0 | Z27: 0 | AA27: 0 | AB27: 0 | AC27: 0 | AD27: 0 | AE27: 0 | AF27: 0 | AG27: 0 | AI27: 24 | AJ27: p10.e | AK27: Patent Fuel | AL27: 1 | AM27: 1 | AN27: 1 | AO27: 1 | AP27: 1 | AQ27: 1 | AR27: 1 | AS27: 1 | AT27: 1 | AU27: 1 | AV27: 1 | AW27: 1 | AX27: 1 | AY27: 1 | AZ27: 1 | BA27: 1 | BB27: 1 | BC27: 1 | BD27: 1 | BE27: 1 | BF27: 1 | BG27: 1 | BH27: 1 | BI27: 1 | BJ27: 1
F28: 25 | G28: p10.f | H28: Lignite/Brown Coal | I28: 0 | J28: 0 | K28: 0 | L28: 0 | M28: 0 | N28: 0 | O28: 0 | P28: 0 | Q28: 0 | R28: 0 | S28: 0 | T28: 0 | U28: 0 | V28: 0 | W28: 0 | X28: 0 | Y28: 0 | Z28: 0 | AA28: 0 | AB28: 0 | AC28: 0 | AD28: 0 | AE28: 0 | AF28: 0 | AG28: 0 | AI28: 25 | AJ28: p10.f | AK28: Lignite/Brown Coal | AL28: 1 | AM28: 1 | AN28: 1 | AO28: 1 | AP28: 1 | AQ28: 1 | AR28: 1 | AS28: 1 | AT28: 1 | AU28: 1 | AV28: 1 | AW28: 1 | AX28: 1 | AY28: 1 | AZ28: 1 | BA28: 1 | BB28: 1 | BC28: 1 | BD28: 1 | BE28: 1 | BF28: 1 | BG28: 1 | BH28: 1 | BI28: 1 | BJ28: 1
A29: # | B29: Product | C29: Million Euro / TJ | F29: 26 | G29: p10.g | H29: BKB/Peat Briquettes | I29: 0 | J29: 0 | K29: 0 | L29: 0 | M29: 0 | N29: 0 | O29: 0 | P29: 0 | Q29: 0 | R29: 0 | S29: 0 | T29: 0 | U29: 0 | V29: 0 | W29: 0 | X29: 0 | Y29: 0 | Z29: 0 | AA29: 0 | AB29: 0 | AC29: 0 | AD29: 0 | AE29: 0 | AF29: 0 | AG29: 0 | AI29: 26 | AJ29: p10.g | AK29: BKB/Peat Briquettes | AL29: 1 | AM29: 1 | AN29: 1 | AO29: 1 | AP29: 1 | AQ29: 1 | AR29: 1 | AS29: 1 | AT29: 1 | AU29: 1 | AV29: 1 | AW29: 1 | AX29: 1 | AY29: 1 | AZ29: 1 | BA29: 1 | BB29: 1 | BC29: 1 | BD29: 1 | BE29: 1 | BF29: 1 | BG29: 1 | BH29: 1 | BI29: 1 | BJ29: 1
A30: 1 | B30: Paddy rice | C30: 0 | F30: 27 | G30: p10.h | H30: Peat | I30: 0 | J30: 0 | K30: 0 | L30: 0 | M30: 0 | N30: 0 | O30: 0 | P30: 0 | Q30: 0 | R30: 0 | S30: 0 | T30: 0 | U30: 0 | V30: 0 | W30: 0 | X30: 0 | Y30: 0 | Z30: 0 | AA30: 0 | AB30: 0 | AC30: 0 | AD30: 0 | AE30: 0 | AF30: 0 | AG30: 0 | AI30: 27 | AJ30: p10.h | AK30: Peat | AL30: 1 | AM30: 1 | AN30: 1 | AO30: 1 | AP30: 1 | AQ30: 1 | AR30: 1 | AS30: 1 | AT30: 1 | AU30: 1 | AV30: 1 | AW30: 1 | AX30: 1 | AY30: 1 | AZ30: 1 | BA30: 1 | BB30: 1 | BC30: 1 | BD30: 1 | BE30: 1 | BF30: 1 | BG30: 1 | BH30: 1 | BI30: 1 | BJ30: 1
A31: 2 | B31: Wheat | C31: 0 | F31: 28 | G31: p11.a | H31: Crude petroleum and services related to crude oil extraction, excluding surveying | I31: 0 | J31: 0 | K31: 0 | L31: 0 | M31: 0 | N31: 0 | O31: 0 | P31: 0 | Q31: 0 | R31: 0 | S31: 0 | T31: 0 | U31: 0 | V31: 0 | W31: 0 | X31: 0 | Y31: 0 | Z31: 0 | AA31: 0 | AB31: 0 | AC31: 0 | AD31: 0 | AE31: 0 | AF31: 0 | AG31: 0 | AI31: 28 | AJ31: p11.a | AK31: Crude petroleum and services related to crude oil extraction, excluding surveying | AL31: 1 | AM31: 1 | AN31: 1 | AO31: 1 | AP31: 1 | AQ31: 1 | AR31: 1 | AS31: 1 | AT31: 1 | AU31: 1 | AV31: 1 | AW31: 1 | AX31: 1 | AY31: 1 | AZ31: 1 | BA31: 1 | BB31: 1 | BC31: 1 | BD31: 1 | BE31: 1 | BF31: 1 | BG31: 1 | BH31: 1 | BI31: 1 | BJ31: 1
A32: 3 | B32: Cereal grains nec | C32: 0 | F32: 29 | G32: p11.b | H32: Natural gas and services related to natural gas extraction, excluding surveying | I32: 0 | J32: 0 | K32: 0 | L32: 0 | M32: 0 | N32: 0 | O32: 0 | P32: 0 | Q32: 0 | R32: 0 | S32: 0 | T32: 0 | U32: 0 | V32: 0 | W32: 0 | X32: 0 | Y32: 0 | Z32: 0 | AA32: 0 | AB32: 0 | AC32: 0 | AD32: 0 | AE32: 0 | AF32: 0 | AG32: 0 | AI32: 29 | AJ32: p11.b | AK32: Natural gas and services related to natural gas extraction, excluding surveying | AL32: 1 | AM32: 1 | AN32: 1 | AO32: 1 | AP32: 1 | AQ32: 1 | AR32: 1 | AS32: 1 | AT32: 1 | AU32: 1 | AV32: 1 | AW32: 1 | AX32: 1 | AY32: 1 | AZ32: 1 | BA32: 1 | BB32: 1 | BC32: 1 | BD32: 1 | BE32: 1 | BF32: 1 | BG32: 1 | BH32: 1 | BI32: 1 | BJ32: 1
A33: 4 | B33: Vegetables, fruit, nuts | C33: 0 | F33: 30 | G33: p11.b.1 | H33: Natural Gas Liquids | I33: 0 | J33: 0 | K33: 0 | L33: 0 | M33: 0 | N33: 0 | O33: 0 | P33: 0 | Q33: 0 | R33: 0 | S33: 0 | T33: 0 | U33: 0 | V33: 0 | W33: 0 | X33: 0 | Y33: 0 | Z33: 0 | AA33: 0 | AB33: 0 | AC33: 0 | AD33: 0 | AE33: 0 | AF33: 0 | AG33: 0 | AI33: 30 | AJ33: p11.b.1 | AK33: Natural Gas Liquids | AL33: 1 | AM33: 1 | AN33: 1 | AO33: 1 | AP33: 1 | AQ33: 1 | AR33: 1 | AS33: 1 | AT33: 1 | AU33: 1 | AV33: 1 | AW33: 1 | AX33: 1 | AY33: 1 | AZ33: 1 | BA33: 1 | BB33: 1 | BC33: 1 | BD33: 1 | BE33: 1 | BF33: 1 | BG33: 1 | BH33: 1 | BI33: 1 | BJ33: 1
A34: 5 | B34: Oil seeds | C34: 0 | F34: 31 | G34: p11.c | H34: Other Hydrocarbons | I34: 0 | J34: 0 | K34: 0 | L34: 0 | M34: 0 | N34: 0 | O34: 0 | P34: 0 | Q34: 0 | R34: 0 | S34: 0 | T34: 0 | U34: 0 | V34: 0 | W34: 0 | X34: 0 | Y34: 0 | Z34: 0 | AA34: 0 | AB34: 0 | AC34: 0 | AD34: 0 | AE34: 0 | AF34: 0 | AG34: 0 | AI34: 31 | AJ34: p11.c | AK34: Other Hydrocarbons | AL34: 1 | AM34: 1 | AN34: 1 | AO34: 1 | AP34: 1 | AQ34: 1 | AR34: 1 | AS34: 1 | AT34: 1 | AU34: 1 | AV34: 1 | AW34: 1 | AX34: 1 | AY34: 1 | AZ34: 1 | BA34: 1 | BB34: 1 | BC34: 1 | BD34: 1 | BE34: 1 | BF34: 1 | BG34: 1 | BH34: 1 | BI34: 1 | BJ34: 1
A35: 6 | B35: Sugar cane, sugar beet | C35: 0 | F35: 32 | G35: p12 | H35: Uranium and thorium ores (12) | I35: 0 | J35: 0 | K35: 0 | L35: 0 | M35: 0 | N35: 0 | O35: 0 | P35: 0 | Q35: 0 | R35: 0 | S35: 0 | T35: 0 | U35: 0 | V35: 0 | W35: 0 | X35: 0 | Y35: 0 | Z35: 0 | AA35: 0 | AB35: 0 | AC35: 0 | AD35: 0 | AE35: 0 | AF35: 0 | AG35: 0 | AI35: 32 | AJ35: p12 | AK35: Uranium and thorium ores (12) | AL35: 1 | AM35: 1 | AN35: 1 | AO35: 1 | AP35: 1 | AQ35: 1 | AR35: 1 | AS35: 1 | AT35: 1 | AU35: 1 | AV35: 1 | AW35: 1 | AX35: 1 | AY35: 1 | AZ35: 1 | BA35: 1 | BB35: 1 | BC35: 1 | BD35: 1 | BE35: 1 | BF35: 1 | BG35: 1 | BH35: 1 | BI35: 1 | BJ35: 1
A36: 7 | B36: Plant-based fibers | C36: 0 | F36: 33 | G36: p13.1 | H36: Iron ores | I36: 0 | J36: 0 | K36: 0 | L36: 0 | M36: 0 | N36: 0 | O36: 0 | P36: 0 | Q36: 0 | R36: 0 | S36: 0 | T36: 0 | U36: 0 | V36: 0 | W36: 0 | X36: 0 | Y36: 0 | Z36: 0 | AA36: 0 | AB36: 0 | AC36: 0 | AD36: 0 | AE36: 0 | AF36: 0 | AG36: 0 | AI36: 33 | AJ36: p13.1 | AK36: Iron ores | AL36: 1 | AM36: 1 | AN36: 1 | AO36: 1 | AP36: 1 | AQ36: 1 | AR36: 1 | AS36: 1 | AT36: 1 | AU36: 1 | AV36: 1 | AW36: 1 | AX36: 1 | AY36: 1 | AZ36: 1 | BA36: 1 | BB36: 1 | BC36: 1 | BD36: 1 | BE36: 1 | BF36: 1 | BG36: 1 | BH36: 1 | BI36: 1 | BJ36: 1
A37: 8 | B37: Crops nec | C37: 0 | F37: =+F36+1 -> 34 | G37: p13.20.11 | H37: Copper ores and concentrates | I37: 0 | J37: 0 | K37: 0 | L37: 0 | M37: 0 | N37: 0 | O37: 0 | P37: 0 | Q37: 0 | R37: 0 | S37: 0 | T37: 0 | U37: 0 | V37: 0 | W37: 0 | X37: 0 | Y37: 0 | Z37: 0 | AA37: 0 | AB37: 0 | AC37: 0 | AD37: 0 | AE37: 0 | AF37: 0 | AG37: 0 | AI37: 34 | AJ37: p13.20.11 | AK37: Copper ores and concentrates | AL37: 1 | AM37: 1 | AN37: 1 | AO37: 1 | AP37: 1 | AQ37: 1 | AR37: 1 | AS37: 1 | AT37: 1 | AU37: 1 | AV37: 1 | AW37: 1 | AX37: 1 | AY37: 1 | AZ37: 1 | BA37: 1 | BB37: 1 | BC37: 1 | BD37: 1 | BE37: 1 | BF37: 1 | BG37: 1 | BH37: 1 | BI37: 1 | BJ37: 1
A38: 9 | B38: Cattle | C38: 0 | F38: 35 | G38: p13.20.12 | H38: Nickel ores and concentrates | I38: 0 | J38: 0 | K38: 0 | L38: 0 | M38: 0 | N38: 0 | O38: 0 | P38: 0 | Q38: 0 | R38: 0 | S38: 0 | T38: 0 | U38: 0 | V38: 0 | W38: 0 | X38: 0 | Y38: 0 | Z38: 0 | AA38: 0 | AB38: 0 | AC38: 0 | AD38: 0 | AE38: 0 | AF38: 0 | AG38: 0 | AI38: 35 | AJ38: p13.20.12 | AK38: Nickel ores and concentrates | AL38: 1 | AM38: 1 | AN38: 1 | AO38: 1 | AP38: 1 | AQ38: 1 | AR38: 1 | AS38: 1 | AT38: 1 | AU38: 1 | AV38: 1 | AW38: 1 | AX38: 1 | AY38: 1 | AZ38: 1 | BA38: 1 | BB38: 1 | BC38: 1 | BD38: 1 | BE38: 1 | BF38: 1 | BG38: 1 | BH38: 1 | BI38: 1 | BJ38: 1
A39: 10 | B39: Pigs | C39: 0 | F39: 36 | G39: p13.20.13 | H39: Aluminium ores and concentrates | I39: 0 | J39: 0 | K39: 0 | L39: 0 | M39: 0 | N39: 0 | O39: 0 | P39: 0 | Q39: 0 | R39: 0 | S39: 0 | T39: 0 | U39: 0 | V39: 0 | W39: 0 | X39: 0 | Y39: 0 | Z39: 0 | AA39: 0 | AB39: 0 | AC39: 0 | AD39: 0 | AE39: 0 | AF39: 0 | AG39: 0 | AI39: 36 | AJ39: p13.20.13 | AK39: Aluminium ores and concentrates | AL39: 1 | AM39: 1 | AN39: 1 | AO39: 1 | AP39: 1 | AQ39: 1 | AR39: 1 | AS39: 1 | AT39: 1 | AU39: 1 | AV39: 1 | AW39: 1 | AX39: 1 | AY39: 1 | AZ39: 1 | BA39: 1 | BB39: 1 | BC39: 1 | BD39: 1 | BE39: 1 | BF39: 1 | BG39: 1 | BH39: 1 | BI39: 1 | BJ39: 1
A40: 11 | B40: Poultry | C40: 0 | F40: 37 | G40: p13.20.14 | H40: Precious metal ores and concentrates | I40: 0 | J40: 0 | K40: 0 | L40: 0 | M40: 0 | N40: 0 | O40: 0 | P40: 0 | Q40: 0 | R40: 0 | S40: 0 | T40: 0 | U40: 0 | V40: 0 | W40: 0 | X40: 0 | Y40: 0 | Z40: 0 | AA40: 0 | AB40: 0 | AC40: 0 | AD40: 0 | AE40: 0 | AF40: 0 | AG40: 0 | AI40: 37 | AJ40: p13.20.14 | AK40: Precious metal ores and concentrates | AL40: 1 | AM40: 1 | AN40: 1 | AO40: 1 | AP40: 1 | AQ40: 1 | AR40: 1 | AS40: 1 | AT40: 1 | AU40: 1 | AV40: 1 | AW40: 1 | AX40: 1 | AY40: 1 | AZ40: 1 | BA40: 1 | BB40: 1 | BC40: 1 | BD40: 1 | BE40: 1 | BF40: 1 | BG40: 1 | BH40: 1 | BI40: 1 | BJ40: 1
A41: 12 | B41: Meat animals nec | C41: 0 | F41: 38 | G41: p13.20.15 | H41: Lead, zinc and tin ores and concentrates | I41: 0 | J41: 0 | K41: 0 | L41: 0 | M41: 0 | N41: 0 | O41: 0 | P41: 0 | Q41: 0 | R41: 0 | S41: 0 | T41: 0 | U41: 0 | V41: 0 | W41: 0 | X41: 0 | Y41: 0 | Z41: 0 | AA41: 0 | AB41: 0 | AC41: 0 | AD41: 0 | AE41: 0 | AF41: 0 | AG41: 0 | AI41: 38 | AJ41: p13.20.15 | AK41: Lead, zinc and tin ores and concentrates | AL41: 1 | AM41: 1 | AN41: 1 | AO41: 1 | AP41: 1 | AQ41: 1 | AR41: 1 | AS41: 1 | AT41: 1 | AU41: 1 | AV41: 1 | AW41: 1 | AX41: 1 | AY41: 1 | AZ41: 1 | BA41: 1 | BB41: 1 | BC41: 1 | BD41: 1 | BE41: 1 | BF41: 1 | BG41: 1 | BH41: 1 | BI41: 1 | BJ41: 1
A42: 13 | B42: Animal products nec | C42: 0 | F42: 39 | G42: p13.20.16 | H42: Other non-ferrous metal ores and concentrates | I42: 0 | J42: 0 | K42: 0 | L42: 0 | M42: 0 | N42: 0 | O42: 0 | P42: 0 | Q42: 0 | R42: 0 | S42: 0 | T42: 0 | U42: 0 | V42: 0 | W42: 0 | X42: 0 | Y42: 0 | Z42: 0 | AA42: 0 | AB42: 0 | AC42: 0 | AD42: 0 | AE42: 0 | AF42: 0 | AG42: 0 | AI42: 39 | AJ42: p13.20.16 | AK42: Other non-ferrous metal ores and concentrates | AL42: 1 | AM42: 1 | AN42: 1 | AO42: 1 | AP42: 1 | AQ42: 1 | AR42: 1 | AS42: 1 | AT42: 1 | AU42: 1 | AV42: 1 | AW42: 1 | AX42: 1 | AY42: 1 | AZ42: 1 | BA42: 1 | BB42: 1 | BC42: 1 | BD42: 1 | BE42: 1 | BF42: 1 | BG42: 1 | BH42: 1 | BI42: 1 | BJ42: 1
A43: 14 | B43: Raw milk | C43: 0 | F43: 40 | G43: p14.1 | H43: Stone | I43: 0 | J43: 0 | K43: 0 | L43: 0 | M43: 0 | N43: 0 | O43: 0 | P43: 0 | Q43: 0 | R43: 0 | S43: 0 | T43: 0 | U43: 0 | V43: 0 | W43: 0 | X43: 0 | Y43: 0 | Z43: 0 | AA43: 0 | AB43: 0 | AC43: 0 | AD43: 0 | AE43: 0 | AF43: 0 | AG43: 0 | AI43: 40 | AJ43: p14.1 | AK43: Stone | AL43: 1 | AM43: 1 | AN43: 1 | AO43: 1 | AP43: 1 | AQ43: 1 | AR43: 1 | AS43: 1 | AT43: 1 | AU43: 1 | AV43: 1 | AW43: 1 | AX43: 1 | AY43: 1 | AZ43: 1 | BA43: 1 | BB43: 1 | BC43: 1 | BD43: 1 | BE43: 1 | BF43: 1 | BG43: 1 | BH43: 1 | BI43: 1 | BJ43: 1
A44: 15 | B44: Wool, silk-worm cocoons | C44: 0 | F44: 41 | G44: p14.2 | H44: Sand and clay | I44: 0 | J44: 0 | K44: 0 | L44: 0 | M44: 0 | N44: 0 | O44: 0 | P44: 0 | Q44: 0 | R44: 0 | S44: 0 | T44: 0 | U44: 0 | V44: 0 | W44: 0 | X44: 0 | Y44: 0 | Z44: 0 | AA44: 0 | AB44: 0 | AC44: 0 | AD44: 0 | AE44: 0 | AF44: 0 | AG44: 0 | AI44: 41 | AJ44: p14.2 | AK44: Sand and clay | AL44: 1 | AM44: 1 | AN44: 1 | AO44: 1 | AP44: 1 | AQ44: 1 | AR44: 1 | AS44: 1 | AT44: 1 | AU44: 1 | AV44: 1 | AW44: 1 | AX44: 1 | AY44: 1 | AZ44: 1 | BA44: 1 | BB44: 1 | BC44: 1 | BD44: 1 | BE44: 1 | BF44: 1 | BG44: 1 | BH44: 1 | BI44: 1 | BJ44: 1
A45: 16 | B45: Manure (conventional treatment) | C45: 0 | F45: 42 | G45: p14.3 | H45: Chemical and fertilizer minerals, salt and other mining and quarrying products n.e.c. | I45: 0 | J45: 0 | K45: 0 | L45: 0 | M45: 0 | N45: 0 | O45: 0 | P45: 0 | Q45: 0 | R45: 0 | S45: 0 | T45: 0 | U45: 0 | V45: 0 | W45: 0 | X45: 0 | Y45: 0 | Z45: 0 | AA45: 0 | AB45: 0 | AC45: 0 | AD45: 0 | AE45: 0 | AF45: 0 | AG45: 0 | AI45: 42 | AJ45: p14.3 | AK45: Chemical and fertilizer minerals, salt and other mining and quarrying products n.e.c. | AL45: 1 | AM45: 1 | AN45: 1 | AO45: 1 | AP45: 1 | AQ45: 1 | AR45: 1 | AS45: 1 | AT45: 1 | AU45: 1 | AV45: 1 | AW45: 1 | AX45: 1 | AY45: 1 | AZ45: 1 | BA45: 1 | BB45: 1 | BC45: 1 | BD45: 1 | BE45: 1 | BF45: 1 | BG45: 1 | BH45: 1 | BI45: 1 | BJ45: 1
A46: 17 | B46: Manure (biogas treatment) | C46: 0 | F46: 43 | G46: p15.a | H46: Products of meat cattle | I46: 0 | J46: 0 | K46: 0 | L46: 0 | M46: 0 | N46: 0 | O46: 0 | P46: 0 | Q46: 0 | R46: 0 | S46: 0 | T46: 0 | U46: 0 | V46: 0 | W46: 1 | X46: 0 | Y46: 0 | Z46: 0 | AA46: 0 | AB46: 0 | AC46: 0 | AD46: 0 | AE46: 0 | AF46: 0 | AG46: 0 | AI46: 43 | AJ46: p15.a | AK46: Products of meat cattle | AL46: 1 | AM46: 1 | AN46: 1 | AO46: 1 | AP46: 1 | AQ46: 1 | AR46: 1 | AS46: 1 | AT46: 1 | AU46: 1 | AV46: 1 | AW46: 1 | AX46: 1 | AY46: 1 | AZ46: 0 | BA46: 1 | BB46: 1 | BC46: 1 | BD46: 1 | BE46: 1 | BF46: 1 | BG46: 1 | BH46: 1 | BI46: 1 | BJ46: 1
A47: 18 | B47: Products of forestry, logging and related services (02) | C47: =EnergyCal!N3 -> 0.008007936012 | F47: 44 | G47: p15.b | H47: Products of meat pigs | I47: 0 | J47: 0 | K47: 0 | L47: 0 | M47: 0 | N47: 0 | O47: 0 | P47: 0 | Q47: 0 | R47: 0 | S47: 0 | T47: 0 | U47: 0 | V47: 0 | W47: 0 | X47: 1 | Y47: 0 | Z47: 0 | AA47: 0 | AB47: 0 | AC47: 0 | AD47: 0 | AE47: 0 | AF47: 0 | AG47: 0 | AI47: 44 | AJ47: p15.b | AK47: Products of meat pigs | AL47: 1 | AM47: 1 | AN47: 1 | AO47: 1 | AP47: 1 | AQ47: 1 | AR47: 1 | AS47: 1 | AT47: 1 | AU47: 1 | AV47: 1 | AW47: 1 | AX47: 1 | AY47: 1 | AZ47: 1 | BA47: 0 | BB47: 1 | BC47: 1 | BD47: 1 | BE47: 1 | BF47: 1 | BG47: 1 | BH47: 1 | BI47: 1 | BJ47: 1
A48: 19 | B48: Fish and other fishing products; services incidental of fishing (05) | C48: 0 | F48: 45 | G48: p15.c | H48: Products of meat poultry | I48: 0 | J48: 0 | K48: 0 | L48: 0 | M48: 0 | N48: 0 | O48: 0 | P48: 0 | Q48: 0 | R48: 0 | S48: 0 | T48: 0 | U48: 0 | V48: 0 | W48: 0 | X48: 0 | Y48: 1 | Z48: 0 | AA48: 0 | AB48: 0 | AC48: 0 | AD48: 0 | AE48: 0 | AF48: 0 | AG48: 0 | AI48: 45 | AJ48: p15.c | AK48: Products of meat poultry | AL48: 1 | AM48: 1 | AN48: 1 | AO48: 1 | AP48: 1 | AQ48: 1 | AR48: 1 | AS48: 1 | AT48: 1 | AU48: 1 | AV48: 1 | AW48: 1 | AX48: 1 | AY48: 1 | AZ48: 1 | BA48: 1 | BB48: 0 | BC48: 1 | BD48: 1 | BE48: 1 | BF48: 1 | BG48: 1 | BH48: 1 | BI48: 1 | BJ48: 1
A49: 20 | B49: Anthracite | C49: =EnergyCal!N4 -> 0.004622111612 | F49: 46 | G49: p15.d | H49: Meat products nec | I49: 0 | J49: 0 | K49: 0 | L49: 0 | M49: 0 | N49: 0 | O49: 0 | P49: 0 | Q49: 0 | R49: 0 | S49: 0 | T49: 0 | U49: 0 | V49: 0 | W49: 0 | X49: 0 | Y49: 0 | Z49: 1 | AA49: 0 | AB49: 0 | AC49: 0 | AD49: 0 | AE49: 0 | AF49: 0 | AG49: 0 | AI49: 46 | AJ49: p15.d | AK49: Meat products nec | AL49: 1 | AM49: 1 | AN49: 1 | AO49: 1 | AP49: 1 | AQ49: 1 | AR49: 1 | AS49: 1 | AT49: 1 | AU49: 1 | AV49: 1 | AW49: 1 | AX49: 1 | AY49: 1 | AZ49: 1 | BA49: 1 | BB49: 1 | BC49: 0 | BD49: 1 | BE49: 1 | BF49: 1 | BG49: 1 | BH49: 1 | BI49: 1 | BJ49: 1
A50: 21 | B50: Coking Coal | C50: =EnergyCal!N5 -> 0.00303791634 | F50: 47 | G50: p15.e | H50: products of Vegetable oils and fats | I50: 0 | J50: 0 | K50: 0 | L50: 0 | M50: 0 | N50: 0 | O50: 0 | P50: 0 | Q50: 0 | R50: 0 | S50: 0 | T50: 0 | U50: 0 | V50: 0 | W50: 0 | X50: 0 | Y50: 0 | Z50: 0 | AA50: 1 | AB50: 0 | AC50: 0 | AD50: 0 | AE50: 0 | AF50: 0 | AG50: 0 | AI50: 47 | AJ50: p15.e | AK50: products of Vegetable oils and fats | AL50: 1 | AM50: 1 | AN50: 1 | AO50: 1 | AP50: 1 | AQ50: 1 | AR50: 1 | AS50: 1 | AT50: 1 | AU50: 1 | AV50: 1 | AW50: 1 | AX50: 1 | AY50: 1 | AZ50: 1 | BA50: 1 | BB50: 1 | BC50: 1 | BD50: 0 | BE50: 1 | BF50: 1 | BG50: 1 | BH50: 1 | BI50: 1 | BJ50: 1
A51: 22 | B51: Other Bituminous Coal | C51: =EnergyCal!N6 -> 0.004333029879 | F51: 48 | G51: p15.f | H51: Dairy products | I51: 0 | J51: 0 | K51: 0 | L51: 0 | M51: 0 | N51: 0 | O51: 0 | P51: 0 | Q51: 0 | R51: 0 | S51: 0 | T51: 0 | U51: 0 | V51: 0 | W51: 0 | X51: 0 | Y51: 0 | Z51: 0 | AA51: 0 | AB51: 1 | AC51: 0 | AD51: 0 | AE51: 0 | AF51: 0 | AG51: 0 | AI51: 48 | AJ51: p15.f | AK51: Dairy products | AL51: 1 | AM51: 1 | AN51: 1 | AO51: 1 | AP51: 1 | AQ51: 1 | AR51: 1 | AS51: 1 | AT51: 1 | AU51: 1 | AV51: 1 | AW51: 1 | AX51: 1 | AY51: 1 | AZ51: 1 | BA51: 1 | BB51: 1 | BC51: 1 | BD51: 1 | BE51: 0 | BF51: 1 | BG51: 1 | BH51: 1 | BI51: 1 | BJ51: 1
A52: 23 | B52: Sub-Bituminous Coal | C52: 0 | F52: 49 | G52: p15.g | H52: Processed rice | I52: 0 | J52: 0 | K52: 0 | L52: 0 | M52: 0 | N52: 0 | O52: 0 | P52: 0 | Q52: 0 | R52: 0 | S52: 0 | T52: 0 | U52: 0 | V52: 0 | W52: 0 | X52: 0 | Y52: 0 | Z52: 0 | AA52: 0 | AB52: 0 | AC52: 1 | AD52: 0 | AE52: 0 | AF52: 0 | AG52: 0 | AI52: 49 | AJ52: p15.g | AK52: Processed rice | AL52: 1 | AM52: 1 | AN52: 1 | AO52: 1 | AP52: 1 | AQ52: 1 | AR52: 1 | AS52: 1 | AT52: 1 | AU52: 1 | AV52: 1 | AW52: 1 | AX52: 1 | AY52: 1 | AZ52: 1 | BA52: 1 | BB52: 1 | BC52: 1 | BD52: 1 | BE52: 1 | BF52: 0 | BG52: 1 | BH52: 1 | BI52: 1 | BJ52: 1
A53: 24 | B53: Patent Fuel | C53: =EnergyCal!N7 -> 0.004838588292 | F53: 50 | G53: p15.h | H53: Sugar | I53: 0 | J53: 0 | K53: 0 | L53: 0 | M53: 0 | N53: 0 | O53: 0 | P53: 0 | Q53: 0 | R53: 0 | S53: 0 | T53: 0 | U53: 0 | V53: 0 | W53: 0 | X53: 0 | Y53: 0 | Z53: 0 | AA53: 0 | AB53: 0 | AC53: 0 | AD53: 1 | AE53: 0 | AF53: 0 | AG53: 0 | AI53: 50 | AJ53: p15.h | AK53: Sugar | AL53: 1 | AM53: 1 | AN53: 1 | AO53: 1 | AP53: 1 | AQ53: 1 | AR53: 1 | AS53: 1 | AT53: 1 | AU53: 1 | AV53: 1 | AW53: 1 | AX53: 1 | AY53: 1 | AZ53: 1 | BA53: 1 | BB53: 1 | BC53: 1 | BD53: 1 | BE53: 1 | BF53: 1 | BG53: 0 | BH53: 1 | BI53: 1 | BJ53: 1
A54: 25 | B54: Lignite/Brown Coal | C54: =EnergyCal!N8 -> 0.0006323896538 | F54: 51 | G54: p15.i | H54: Food products nec | I54: 0 | J54: 0 | K54: 0 | L54: 0 | M54: 0 | N54: 0 | O54: 0 | P54: 0 | Q54: 0 | R54: 0 | S54: 0 | T54: 0 | U54: 0 | V54: 0 | W54: 0 | X54: 0 | Y54: 0 | Z54: 0 | AA54: 0 | AB54: 0 | AC54: 0 | AD54: 0 | AE54: 1 | AF54: 0 | AG54: 0 | AI54: 51 | AJ54: p15.i | AK54: Food products nec | AL54: 1 | AM54: 1 | AN54: 1 | AO54: 1 | AP54: 1 | AQ54: 1 | AR54: 1 | AS54: 1 | AT54: 1 | AU54: 1 | AV54: 1 | AW54: 1 | AX54: 1 | AY54: 1 | AZ54: 1 | BA54: 1 | BB54: 1 | BC54: 1 | BD54: 1 | BE54: 1 | BF54: 1 | BG54: 1 | BH54: 0 | BI54: 1 | BJ54: 1
A55: 26 | B55: BKB/Peat Briquettes | C55: =EnergyCal!N9 -> 0.008931940637 | F55: 52 | G55: p15.j | H55: Beverages | I55: 0 | J55: 0 | K55: 0 | L55: 0 | M55: 0 | N55: 0 | O55: 0 | P55: 0 | Q55: 0 | R55: 0 | S55: 0 | T55: 0 | U55: 0 | V55: 0 | W55: 0 | X55: 0 | Y55: 0 | Z55: 0 | AA55: 0 | AB55: 0 | AC55: 0 | AD55: 0 | AE55: 0 | AF55: 1 | AG55: 0 | AI55: 52 | AJ55: p15.j | AK55: Beverages | AL55: 1 | AM55: 1 | AN55: 1 | AO55: 1 | AP55: 1 | AQ55: 1 | AR55: 1 | AS55: 1 | AT55: 1 | AU55: 1 | AV55: 1 | AW55: 1 | AX55: 1 | AY55: 1 | AZ55: 1 | BA55: 1 | BB55: 1 | BC55: 1 | BD55: 1 | BE55: 1 | BF55: 1 | BG55: 1 | BH55: 1 | BI55: 0 | BJ55: 1
A56: 27 | B56: Peat | C56: =EnergyCal!N10 -> 0.006079833871 | F56: 53 | G56: p15.k | H56: Fish products | I56: 0 | J56: 0 | K56: 0 | L56: 0 | M56: 0 | N56: 0 | O56: 0 | P56: 0 | Q56: 0 | R56: 0 | S56: 0 | T56: 0 | U56: 0 | V56: 0 | W56: 0 | X56: 0 | Y56: 0 | Z56: 0 | AA56: 0 | AB56: 0 | AC56: 0 | AD56: 0 | AE56: 0 | AF56: 0 | AG56: 1 | AI56: 53 | AJ56: p15.k | AK56: Fish products | AL56: 1 | AM56: 1 | AN56: 1 | AO56: 1 | AP56: 1 | AQ56: 1 | AR56: 1 | AS56: 1 | AT56: 1 | AU56: 1 | AV56: 1 | AW56: 1 | AX56: 1 | AY56: 1 | AZ56: 1 | BA56: 1 | BB56: 1 | BC56: 1 | BD56: 1 | BE56: 1 | BF56: 1 | BG56: 1 | BH56: 1 | BI56: 1 | BJ56: 0
A57: 28 | B57: Crude petroleum and services related to crude oil extraction, excluding surveying | C57: 0 | F57: 54 | G57: p16 | H57: Tobacco products (16) | I57: 0 | J57: 0 | K57: 0 | L57: 0 | M57: 0 | N57: 0 | O57: 0 | P57: 0 | Q57: 0 | R57: 0 | S57: 0 | T57: 0 | U57: 0 | V57: 0 | W57: 0 | X57: 0 | Y57: 0 | Z57: 0 | AA57: 0 | AB57: 0 | AC57: 0 | AD57: 0 | AE57: 0 | AF57: 0 | AG57: 0 | AI57: 54 | AJ57: p16 | AK57: Tobacco products (16) | AL57: 1 | AM57: 1 | AN57: 1 | AO57: 1 | AP57: 1 | AQ57: 1 | AR57: 1 | AS57: 1 | AT57: 1 | AU57: 1 | AV57: 1 | AW57: 1 | AX57: 1 | AY57: 1 | AZ57: 1 | BA57: 1 | BB57: 1 | BC57: 1 | BD57: 1 | BE57: 1 | BF57: 1 | BG57: 1 | BH57: 1 | BI57: 1 | BJ57: 1
A58: 29 | B58: Natural gas and services related to natural gas extraction, excluding surveying | C58: =EnergyCal!N11 -> 0.01128772558 | F58: 55 | G58: p17 | H58: Textiles (17) | I58: 0 | J58: 0 | K58: 0 | L58: 0 | M58: 0 | N58: 0 | O58: 0 | P58: 0 | Q58: 0 | R58: 0 | S58: 0 | T58: 0 | U58: 0 | V58: 0 | W58: 0 | X58: 0 | Y58: 0 | Z58: 0 | AA58: 0 | AB58: 0 | AC58: 0 | AD58: 0 | AE58: 0 | AF58: 0 | AG58: 0 | AI58: 55 | AJ58: p17 | AK58: Textiles (17) | AL58: 1 | AM58: 1 | AN58: 1 | AO58: 1 | AP58: 1 | AQ58: 1 | AR58: 1 | AS58: 1 | AT58: 1 | AU58: 1 | AV58: 1 | AW58: 1 | AX58: 1 | AY58: 1 | AZ58: 1 | BA58: 1 | BB58: 1 | BC58: 1 | BD58: 1 | BE58: 1 | BF58: 1 | BG58: 1 | BH58: 1 | BI58: 1 | BJ58: 1
A59: 30 | B59: Natural Gas Liquids | C59: 0 | F59: 56 | G59: p18 | H59: Wearing apparel; furs (18) | I59: 0 | J59: 0 | K59: 0 | L59: 0 | M59: 0 | N59: 0 | O59: 0 | P59: 0 | Q59: 0 | R59: 0 | S59: 0 | T59: 0 | U59: 0 | V59: 0 | W59: 0 | X59: 0 | Y59: 0 | Z59: 0 | AA59: 0 | AB59: 0 | AC59: 0 | AD59: 0 | AE59: 0 | AF59: 0 | AG59: 0 | AI59: 56 | AJ59: p18 | AK59: Wearing apparel; furs (18) | AL59: 1 | AM59: 1 | AN59: 1 | AO59: 1 | AP59: 1 | AQ59: 1 | AR59: 1 | AS59: 1 | AT59: 1 | AU59: 1 | AV59: 1 | AW59: 1 | AX59: 1 | AY59: 1 | AZ59: 1 | BA59: 1 | BB59: 1 | BC59: 1 | BD59: 1 | BE59: 1 | BF59: 1 | BG59: 1 | BH59: 1 | BI59: 1 | BJ59: 1
A60: 31 | B60: Other Hydrocarbons | C60: 0 | F60: 57 | G60: p19 | H60: Leather and leather products (19) | I60: 0 | J60: 0 | K60: 0 | L60: 0 | M60: 0 | N60: 0 | O60: 0 | P60: 0 | Q60: 0 | R60: 0 | S60: 0 | T60: 0 | U60: 0 | V60: 0 | W60: 0 | X60: 0 | Y60: 0 | Z60: 0 | AA60: 0 | AB60: 0 | AC60: 0 | AD60: 0 | AE60: 0 | AF60: 0 | AG60: 0 | AI60: 57 | AJ60: p19 | AK60: Leather and leather products (19) | AL60: 1 | AM60: 1 | AN60: 1 | AO60: 1 | AP60: 1 | AQ60: 1 | AR60: 1 | AS60: 1 | AT60: 1 | AU60: 1 | AV60: 1 | AW60: 1 | AX60: 1 | AY60: 1 | AZ60: 1 | BA60: 1 | BB60: 1 | BC60: 1 | BD60: 1 | BE60: 1 | BF60: 1 | BG60: 1 | BH60: 1 | BI60: 1 | BJ60: 1
A61: 32 | B61: Uranium and thorium ores (12) | C61: 0 | F61: 58 | G61: p20 | H61: Wood and products of wood and cork (except furniture); articles of straw and plaiting materials (20) | I61: 0 | J61: 0 | K61: 0 | L61: 0 | M61: 0 | N61: 0 | O61: 0 | P61: 0 | Q61: 0 | R61: 0 | S61: 0 | T61: 0 | U61: 0 | V61: 0 | W61: 0 | X61: 0 | Y61: 0 | Z61: 0 | AA61: 0 | AB61: 0 | AC61: 0 | AD61: 0 | AE61: 0 | AF61: 0 | AG61: 0 | AI61: 58 | AJ61: p20 | AK61: Wood and products of wood and cork (except furniture); articles of straw and plaiting materials (20) | AL61: 1 | AM61: 1 | AN61: 1 | AO61: 1 | AP61: 1 | AQ61: 1 | AR61: 1 | AS61: 1 | AT61: 1 | AU61: 1 | AV61: 1 | AW61: 1 | AX61: 1 | AY61: 1 | AZ61: 1 | BA61: 1 | BB61: 1 | BC61: 1 | BD61: 1 | BE61: 1 | BF61: 1 | BG61: 1 | BH61: 1 | BI61: 1 | BJ61: 1
A62: 33 | B62: Iron ores | C62: 0 | F62: 59 | G62: p20.w | H62: Wood material for treatment, Re-processing of secondary wood material into new wood material | I62: 0 | J62: 0 | K62: 0 | L62: 0 | M62: 0 | N62: 0 | O62: 0 | P62: 0 | Q62: 0 | R62: 0 | S62: 0 | T62: 0 | U62: 0 | V62: 0 | W62: 0 | X62: 0 | Y62: 0 | Z62: 0 | AA62: 0 | AB62: 0 | AC62: 0 | AD62: 0 | AE62: 0 | AF62: 0 | AG62: 0 | AI62: 59 | AJ62: p20.w | AK62: Wood material for treatment, Re-processing of secondary wood material into new wood material | AL62: 1 | AM62: 1 | AN62: 1 | AO62: 1 | AP62: 1 | AQ62: 1 | AR62: 1 | AS62: 1 | AT62: 1 | AU62: 1 | AV62: 1 | AW62: 1 | AX62: 1 | AY62: 1 | AZ62: 1 | BA62: 1 | BB62: 1 | BC62: 1 | BD62: 1 | BE62: 1 | BF62: 1 | BG62: 1 | BH62: 1 | BI62: 1 | BJ62: 1
A63: 34 | B63: Copper ores and concentrates | C63: 0 | F63: 60 | G63: p21.1 | H63: Pulp | I63: 0 | J63: 0 | K63: 0 | L63: 0 | M63: 0 | N63: 0 | O63: 0 | P63: 0 | Q63: 0 | R63: 0 | S63: 0 | T63: 0 | U63: 0 | V63: 0 | W63: 0 | X63: 0 | Y63: 0 | Z63: 0 | AA63: 0 | AB63: 0 | AC63: 0 | AD63: 0 | AE63: 0 | AF63: 0 | AG63: 0 | AI63: 60 | AJ63: p21.1 | AK63: Pulp | AL63: 1 | AM63: 1 | AN63: 1 | AO63: 1 | AP63: 1 | AQ63: 1 | AR63: 1 | AS63: 1 | AT63: 1 | AU63: 1 | AV63: 1 | AW63: 1 | AX63: 1 | AY63: 1 | AZ63: 1 | BA63: 1 | BB63: 1 | BC63: 1 | BD63: 1 | BE63: 1 | BF63: 1 | BG63: 1 | BH63: 1 | BI63: 1 | BJ63: 1
A64: 35 | B64: Nickel ores and concentrates | C64: 0 | F64: 61 | G64: p21.w.1 | H64: Secondary paper for treatment, Re-processing of secondary paper into new pulp | I64: 0 | J64: 0 | K64: 0 | L64: 0 | M64: 0 | N64: 0 | O64: 0 | P64: 0 | Q64: 0 | R64: 0 | S64: 0 | T64: 0 | U64: 0 | V64: 0 | W64: 0 | X64: 0 | Y64: 0 | Z64: 0 | AA64: 0 | AB64: 0 | AC64: 0 | AD64: 0 | AE64: 0 | AF64: 0 | AG64: 0 | AI64: 61 | AJ64: p21.w.1 | AK64: Secondary paper for treatment, Re-processing of secondary paper into new pulp | AL64: 1 | AM64: 1 | AN64: 1 | AO64: 1 | AP64: 1 | AQ64: 1 | AR64: 1 | AS64: 1 | AT64: 1 | AU64: 1 | AV64: 1 | AW64: 1 | AX64: 1 | AY64: 1 | AZ64: 1 | BA64: 1 | BB64: 1 | BC64: 1 | BD64: 1 | BE64: 1 | BF64: 1 | BG64: 1 | BH64: 1 | BI64: 1 | BJ64: 1
A65: 36 | B65: Aluminium ores and concentrates | C65: 0 | F65: 62 | G65: p21.2 | H65: Paper and paper products | I65: 0 | J65: 0 | K65: 0 | L65: 0 | M65: 0 | N65: 0 | O65: 0 | P65: 0 | Q65: 0 | R65: 0 | S65: 0 | T65: 0 | U65: 0 | V65: 0 | W65: 0 | X65: 0 | Y65: 0 | Z65: 0 | AA65: 0 | AB65: 0 | AC65: 0 | AD65: 0 | AE65: 0 | AF65: 0 | AG65: 0 | AI65: 62 | AJ65: p21.2 | AK65: Paper and paper products | AL65: 1 | AM65: 1 | AN65: 1 | AO65: 1 | AP65: 1 | AQ65: 1 | AR65: 1 | AS65: 1 | AT65: 1 | AU65: 1 | AV65: 1 | AW65: 1 | AX65: 1 | AY65: 1 | AZ65: 1 | BA65: 1 | BB65: 1 | BC65: 1 | BD65: 1 | BE65: 1 | BF65: 1 | BG65: 1 | BH65: 1 | BI65: 1 | BJ65: 1
A66: 37 | B66: Precious metal ores and concentrates | C66: 0 | F66: 63 | G66: p22 | H66: Printed matter and recorded media (22) | I66: 0 | J66: 0 | K66: 0 | L66: 0 | M66: 0 | N66: 0 | O66: 0 | P66: 0 | Q66: 0 | R66: 0 | S66: 0 | T66: 0 | U66: 0 | V66: 0 | W66: 0 | X66: 0 | Y66: 0 | Z66: 0 | AA66: 0 | AB66: 0 | AC66: 0 | AD66: 0 | AE66: 0 | AF66: 0 | AG66: 0 | AI66: 63 | AJ66: p22 | AK66: Printed matter and recorded media (22) | AL66: 1 | AM66: 1 | AN66: 1 | AO66: 1 | AP66: 1 | AQ66: 1 | AR66: 1 | AS66: 1 | AT66: 1 | AU66: 1 | AV66: 1 | AW66: 1 | AX66: 1 | AY66: 1 | AZ66: 1 | BA66: 1 | BB66: 1 | BC66: 1 | BD66: 1 | BE66: 1 | BF66: 1 | BG66: 1 | BH66: 1 | BI66: 1 | BJ66: 1
A67: 38 | B67: Lead, zinc and tin ores and concentrates | C67: 0 | F67: 64 | G67: p23.1.a | H67: Coke Oven Coke | I67: 0 | J67: 0 | K67: 0 | L67: 0 | M67: 0 | N67: 0 | O67: 0 | P67: 0 | Q67: 0 | R67: 0 | S67: 0 | T67: 0 | U67: 0 | V67: 0 | W67: 0 | X67: 0 | Y67: 0 | Z67: 0 | AA67: 0 | AB67: 0 | AC67: 0 | AD67: 0 | AE67: 0 | AF67: 0 | AG67: 0 | AI67: 64 | AJ67: p23.1.a | AK67: Coke Oven Coke | AL67: 1 | AM67: 1 | AN67: 1 | AO67: 1 | AP67: 1 | AQ67: 1 | AR67: 1 | AS67: 1 | AT67: 1 | AU67: 1 | AV67: 1 | AW67: 1 | AX67: 1 | AY67: 1 | AZ67: 1 | BA67: 1 | BB67: 1 | BC67: 1 | BD67: 1 | BE67: 1 | BF67: 1 | BG67: 1 | BH67: 1 | BI67: 1 | BJ67: 1
A68: 39 | B68: Other non-ferrous metal ores and concentrates | C68: 0 | F68: 65 | G68: p23.1.b | H68: Gas Coke | I68: 0 | J68: 0 | K68: 0 | L68: 0 | M68: 0 | N68: 0 | O68: 0 | P68: 0 | Q68: 0 | R68: 0 | S68: 0 | T68: 0 | U68: 0 | V68: 0 | W68: 0 | X68: 0 | Y68: 0 | Z68: 0 | AA68: 0 | AB68: 0 | AC68: 0 | AD68: 0 | AE68: 0 | AF68: 0 | AG68: 0 | AI68: 65 | AJ68: p23.1.b | AK68: Gas Coke | AL68: 1 | AM68: 1 | AN68: 1 | AO68: 1 | AP68: 1 | AQ68: 1 | AR68: 1 | AS68: 1 | AT68: 1 | AU68: 1 | AV68: 1 | AW68: 1 | AX68: 1 | AY68: 1 | AZ68: 1 | BA68: 1 | BB68: 1 | BC68: 1 | BD68: 1 | BE68: 1 | BF68: 1 | BG68: 1 | BH68: 1 | BI68: 1 | BJ68: 1
A69: 40 | B69: Stone | C69: 0 | F69: =+F68+1 -> 66 | G69: p23.1.c | H69: Coal Tar | I69: 0 | J69: 0 | K69: 0 | L69: 0 | M69: 0 | N69: 0 | O69: 0 | P69: 0 | Q69: 0 | R69: 0 | S69: 0 | T69: 0 | U69: 0 | V69: 0 | W69: 0 | X69: 0 | Y69: 0 | Z69: 0 | AA69: 0 | AB69: 0 | AC69: 0 | AD69: 0 | AE69: 0 | AF69: 0 | AG69: 0 | AI69: =+AI68+1 -> 66 | AJ69: p23.1.c | AK69: Coal Tar | AL69: =IF(I69=1,0,1) -> 1 | AM69: =IF(J69=1,0,1) -> 1 | AN69: =IF(K69=1,0,1) -> 1 | AO69: =IF(L69=1,0,1) -> 1 | AP69: =IF(M69=1,0,1) -> 1 | AQ69: =IF(N69=1,0,1) -> 1 | AR69: =IF(O69=1,0,1) -> 1 | AS69: =IF(P69=1,0,1) -> 1 | AT69: =IF(Q69=1,0,1) -> 1 | AU69: =IF(R69=1,0,1) -> 1 | AV69: =IF(S69=1,0,1) -> 1 | AW69: =IF(T69=1,0,1) -> 1 | AX69: =IF(U69=1,0,1) -> 1 | AY69: =IF(V69=1,0,1) -> 1 | AZ69: =IF(W69=1,0,1) -> 1 | BA69: =IF(X69=1,0,1) -> 1 | BB69: =IF(Y69=1,0,1) -> 1 | BC69: =IF(Z69=1,0,1) -> 1 | BD69: =IF(AA69=1,0,1) -> 1 | BE69: =IF(AB69=1,0,1) -> 1 | BF69: =IF(AC69=1,0,1) -> 1 | BG69: =IF(AD69=1,0,1) -> 1 | BH69: =IF(AE69=1,0,1) -> 1 | BI69: =IF(AF69=1,0,1) -> 1 | BJ69: =IF(AG69=1,0,1) -> 1
A70: 41 | B70: Sand and clay | C70: 0 | F70: 67 | G70: p23.20.a | H70: Motor Gasoline | I70: 0 | J70: 0 | K70: 0 | L70: 0 | M70: 0 | N70: 0 | O70: 0 | P70: 0 | Q70: 0 | R70: 0 | S70: 0 | T70: 0 | U70: 0 | V70: 0 | W70: 0 | X70: 0 | Y70: 0 | Z70: 0 | AA70: 0 | AB70: 0 | AC70: 0 | AD70: 0 | AE70: 0 | AF70: 0 | AG70: 0 | AI70: 67 | AJ70: p23.20.a | AK70: Motor Gasoline | AL70: 1 | AM70: 1 | AN70: 1 | AO70: 1 | AP70: 1 | AQ70: 1 | AR70: 1 | AS70: 1 | AT70: 1 | AU70: 1 | AV70: 1 | AW70: 1 | AX70: 1 | AY70: 1 | AZ70: 1 | BA70: 1 | BB70: 1 | BC70: 1 | BD70: 1 | BE70: 1 | BF70: 1 | BG70: 1 | BH70: 1 | BI70: 1 | BJ70: 1
A71: 42 | B71: Chemical and fertilizer minerals, salt and other mining and quarrying products n.e.c. | C71: 0 | F71: 68 | G71: p23.20.b | H71: Aviation Gasoline | I71: 0 | J71: 0 | K71: 0 | L71: 0 | M71: 0 | N71: 0 | O71: 0 | P71: 0 | Q71: 0 | R71: 0 | S71: 0 | T71: 0 | U71: 0 | V71: 0 | W71: 0 | X71: 0 | Y71: 0 | Z71: 0 | AA71: 0 | AB71: 0 | AC71: 0 | AD71: 0 | AE71: 0 | AF71: 0 | AG71: 0 | AI71: 68 | AJ71: p23.20.b | AK71: Aviation Gasoline | AL71: 1 | AM71: 1 | AN71: 1 | AO71: 1 | AP71: 1 | AQ71: 1 | AR71: 1 | AS71: 1 | AT71: 1 | AU71: 1 | AV71: 1 | AW71: 1 | AX71: 1 | AY71: 1 | AZ71: 1 | BA71: 1 | BB71: 1 | BC71: 1 | BD71: 1 | BE71: 1 | BF71: 1 | BG71: 1 | BH71: 1 | BI71: 1 | BJ71: 1
A72: 43 | B72: Products of meat cattle | C72: 0 | F72: 69 | G72: p23.20.c | H72: Gasoline Type Jet Fuel | I72: 0 | J72: 0 | K72: 0 | L72: 0 | M72: 0 | N72: 0 | O72: 0 | P72: 0 | Q72: 0 | R72: 0 | S72: 0 | T72: 0 | U72: 0 | V72: 0 | W72: 0 | X72: 0 | Y72: 0 | Z72: 0 | AA72: 0 | AB72: 0 | AC72: 0 | AD72: 0 | AE72: 0 | AF72: 0 | AG72: 0 | AI72: 69 | AJ72: p23.20.c | AK72: Gasoline Type Jet Fuel | AL72: 1 | AM72: 1 | AN72: 1 | AO72: 1 | AP72: 1 | AQ72: 1 | AR72: 1 | AS72: 1 | AT72: 1 | AU72: 1 | AV72: 1 | AW72: 1 | AX72: 1 | AY72: 1 | AZ72: 1 | BA72: 1 | BB72: 1 | BC72: 1 | BD72: 1 | BE72: 1 | BF72: 1 | BG72: 1 | BH72: 1 | BI72: 1 | BJ72: 1
A73: 44 | B73: Products of meat pigs | C73: 0 | F73: 70 | G73: p23.20.d | H73: Kerosene Type Jet Fuel | I73: 0 | J73: 0 | K73: 0 | L73: 0 | M73: 0 | N73: 0 | O73: 0 | P73: 0 | Q73: 0 | R73: 0 | S73: 0 | T73: 0 | U73: 0 | V73: 0 | W73: 0 | X73: 0 | Y73: 0 | Z73: 0 | AA73: 0 | AB73: 0 | AC73: 0 | AD73: 0 | AE73: 0 | AF73: 0 | AG73: 0 | AI73: 70 | AJ73: p23.20.d | AK73: Kerosene Type Jet Fuel | AL73: 1 | AM73: 1 | AN73: 1 | AO73: 1 | AP73: 1 | AQ73: 1 | AR73: 1 | AS73: 1 | AT73: 1 | AU73: 1 | AV73: 1 | AW73: 1 | AX73: 1 | AY73: 1 | AZ73: 1 | BA73: 1 | BB73: 1 | BC73: 1 | BD73: 1 | BE73: 1 | BF73: 1 | BG73: 1 | BH73: 1 | BI73: 1 | BJ73: 1
A74: 45 | B74: Products of meat poultry | C74: 0 | F74: 71 | G74: p23.20.e | H74: Kerosene | I74: 0 | J74: 0 | K74: 0 | L74: 0 | M74: 0 | N74: 0 | O74: 0 | P74: 0 | Q74: 0 | R74: 0 | S74: 0 | T74: 0 | U74: 0 | V74: 0 | W74: 0 | X74: 0 | Y74: 0 | Z74: 0 | AA74: 0 | AB74: 0 | AC74: 0 | AD74: 0 | AE74: 0 | AF74: 0 | AG74: 0 | AI74: 71 | AJ74: p23.20.e | AK74: Kerosene | AL74: 1 | AM74: 1 | AN74: 1 | AO74: 1 | AP74: 1 | AQ74: 1 | AR74: 1 | AS74: 1 | AT74: 1 | AU74: 1 | AV74: 1 | AW74: 1 | AX74: 1 | AY74: 1 | AZ74: 1 | BA74: 1 | BB74: 1 | BC74: 1 | BD74: 1 | BE74: 1 | BF74: 1 | BG74: 1 | BH74: 1 | BI74: 1 | BJ74: 1
A75: 46 | B75: Meat products nec | C75: 0 | F75: 72 | G75: p23.20.f | H75: Gas/Diesel Oil | I75: 0 | J75: 0 | K75: 0 | L75: 0 | M75: 0 | N75: 0 | O75: 0 | P75: 0 | Q75: 0 | R75: 0 | S75: 0 | T75: 0 | U75: 0 | V75: 0 | W75: 0 | X75: 0 | Y75: 0 | Z75: 0 | AA75: 0 | AB75: 0 | AC75: 0 | AD75: 0 | AE75: 0 | AF75: 0 | AG75: 0 | AI75: 72 | AJ75: p23.20.f | AK75: Gas/Diesel Oil | AL75: 1 | AM75: 1 | AN75: 1 | AO75: 1 | AP75: 1 | AQ75: 1 | AR75: 1 | AS75: 1 | AT75: 1 | AU75: 1 | AV75: 1 | AW75: 1 | AX75: 1 | AY75: 1 | AZ75: 1 | BA75: 1 | BB75: 1 | BC75: 1 | BD75: 1 | BE75: 1 | BF75: 1 | BG75: 1 | BH75: 1 | BI75: 1 | BJ75: 1
A76: 47 | B76: products of Vegetable oils and fats | C76: 0 | F76: 73 | G76: p23.20.g | H76: Heavy Fuel Oil | I76: 0 | J76: 0 | K76: 0 | L76: 0 | M76: 0 | N76: 0 | O76: 0 | P76: 0 | Q76: 0 | R76: 0 | S76: 0 | T76: 0 | U76: 0 | V76: 0 | W76: 0 | X76: 0 | Y76: 0 | Z76: 0 | AA76: 0 | AB76: 0 | AC76: 0 | AD76: 0 | AE76: 0 | AF76: 0 | AG76: 0 | AI76: 73 | AJ76: p23.20.g | AK76: Heavy Fuel Oil | AL76: 1 | AM76: 1 | AN76: 1 | AO76: 1 | AP76: 1 | AQ76: 1 | AR76: 1 | AS76: 1 | AT76: 1 | AU76: 1 | AV76: 1 | AW76: 1 | AX76: 1 | AY76: 1 | AZ76: 1 | BA76: 1 | BB76: 1 | BC76: 1 | BD76: 1 | BE76: 1 | BF76: 1 | BG76: 1 | BH76: 1 | BI76: 1 | BJ76: 1
A77: 48 | B77: Dairy products | C77: 0 | F77: 74 | G77: p23.20.h | H77: Refinery Gas | I77: 0 | J77: 0 | K77: 0 | L77: 0 | M77: 0 | N77: 0 | O77: 0 | P77: 0 | Q77: 0 | R77: 0 | S77: 0 | T77: 0 | U77: 0 | V77: 0 | W77: 0 | X77: 0 | Y77: 0 | Z77: 0 | AA77: 0 | AB77: 0 | AC77: 0 | AD77: 0 | AE77: 0 | AF77: 0 | AG77: 0 | AI77: 74 | AJ77: p23.20.h | AK77: Refinery Gas | AL77: 1 | AM77: 1 | AN77: 1 | AO77: 1 | AP77: 1 | AQ77: 1 | AR77: 1 | AS77: 1 | AT77: 1 | AU77: 1 | AV77: 1 | AW77: 1 | AX77: 1 | AY77: 1 | AZ77: 1 | BA77: 1 | BB77: 1 | BC77: 1 | BD77: 1 | BE77: 1 | BF77: 1 | BG77: 1 | BH77: 1 | BI77: 1 | BJ77: 1
A78: 49 | B78: Processed rice | C78: 0 | F78: 75 | G78: p23.20.i | H78: Liquefied Petroleum Gases (LPG) | I78: 0 | J78: 0 | K78: 0 | L78: 0 | M78: 0 | N78: 0 | O78: 0 | P78: 0 | Q78: 0 | R78: 0 | S78: 0 | T78: 0 | U78: 0 | V78: 0 | W78: 0 | X78: 0 | Y78: 0 | Z78: 0 | AA78: 0 | AB78: 0 | AC78: 0 | AD78: 0 | AE78: 0 | AF78: 0 | AG78: 0 | AI78: 75 | AJ78: p23.20.i | AK78: Liquefied Petroleum Gases (LPG) | AL78: 1 | AM78: 1 | AN78: 1 | AO78: 1 | AP78: 1 | AQ78: 1 | AR78: 1 | AS78: 1 | AT78: 1 | AU78: 1 | AV78: 1 | AW78: 1 | AX78: 1 | AY78: 1 | AZ78: 1 | BA78: 1 | BB78: 1 | BC78: 1 | BD78: 1 | BE78: 1 | BF78: 1 | BG78: 1 | BH78: 1 | BI78: 1 | BJ78: 1
A79: 50 | B79: Sugar | C79: 0 | F79: 76 | G79: p23.20.j | H79: Refinery Feedstocks | I79: 0 | J79: 0 | K79: 0 | L79: 0 | M79: 0 | N79: 0 | O79: 0 | P79: 0 | Q79: 0 | R79: 0 | S79: 0 | T79: 0 | U79: 0 | V79: 0 | W79: 0 | X79: 0 | Y79: 0 | Z79: 0 | AA79: 0 | AB79: 0 | AC79: 0 | AD79: 0 | AE79: 0 | AF79: 0 | AG79: 0 | AI79: 76 | AJ79: p23.20.j | AK79: Refinery Feedstocks | AL79: 1 | AM79: 1 | AN79: 1 | AO79: 1 | AP79: 1 | AQ79: 1 | AR79: 1 | AS79: 1 | AT79: 1 | AU79: 1 | AV79: 1 | AW79: 1 | AX79: 1 | AY79: 1 | AZ79: 1 | BA79: 1 | BB79: 1 | BC79: 1 | BD79: 1 | BE79: 1 | BF79: 1 | BG79: 1 | BH79: 1 | BI79: 1 | BJ79: 1
A80: 51 | B80: Food products nec | C80: 0 | F80: 77 | G80: p23.20.k | H80: Ethane | I80: 0 | J80: 0 | K80: 0 | L80: 0 | M80: 0 | N80: 0 | O80: 0 | P80: 0 | Q80: 0 | R80: 0 | S80: 0 | T80: 0 | U80: 0 | V80: 0 | W80: 0 | X80: 0 | Y80: 0 | Z80: 0 | AA80: 0 | AB80: 0 | AC80: 0 | AD80: 0 | AE80: 0 | AF80: 0 | AG80: 0 | AI80: 77 | AJ80: p23.20.k | AK80: Ethane | AL80: 1 | AM80: 1 | AN80: 1 | AO80: 1 | AP80: 1 | AQ80: 1 | AR80: 1 | AS80: 1 | AT80: 1 | AU80: 1 | AV80: 1 | AW80: 1 | AX80: 1 | AY80: 1 | AZ80: 1 | BA80: 1 | BB80: 1 | BC80: 1 | BD80: 1 | BE80: 1 | BF80: 1 | BG80: 1 | BH80: 1 | BI80: 1 | BJ80: 1
A81: 52 | B81: Beverages | C81: 0 | F81: 78 | G81: p23.20.l | H81: Naphtha | I81: 0 | J81: 0 | K81: 0 | L81: 0 | M81: 0 | N81: 0 | O81: 0 | P81: 0 | Q81: 0 | R81: 0 | S81: 0 | T81: 0 | U81: 0 | V81: 0 | W81: 0 | X81: 0 | Y81: 0 | Z81: 0 | AA81: 0 | AB81: 0 | AC81: 0 | AD81: 0 | AE81: 0 | AF81: 0 | AG81: 0 | AI81: 78 | AJ81: p23.20.l | AK81: Naphtha | AL81: 1 | AM81: 1 | AN81: 1 | AO81: 1 | AP81: 1 | AQ81: 1 | AR81: 1 | AS81: 1 | AT81: 1 | AU81: 1 | AV81: 1 | AW81: 1 | AX81: 1 | AY81: 1 | AZ81: 1 | BA81: 1 | BB81: 1 | BC81: 1 | BD81: 1 | BE81: 1 | BF81: 1 | BG81: 1 | BH81: 1 | BI81: 1 | BJ81: 1
A82: 53 | B82: Fish products | C82: 0 | F82: 79 | G82: p23.20.m | H82: White Spirit & SBP | I82: 0 | J82: 0 | K82: 0 | L82: 0 | M82: 0 | N82: 0 | O82: 0 | P82: 0 | Q82: 0 | R82: 0 | S82: 0 | T82: 0 | U82: 0 | V82: 0 | W82: 0 | X82: 0 | Y82: 0 | Z82: 0 | AA82: 0 | AB82: 0 | AC82: 0 | AD82: 0 | AE82: 0 | AF82: 0 | AG82: 0 | AI82: 79 | AJ82: p23.20.m | AK82: White Spirit & SBP | AL82: 1 | AM82: 1 | AN82: 1 | AO82: 1 | AP82: 1 | AQ82: 1 | AR82: 1 | AS82: 1 | AT82: 1 | AU82: 1 | AV82: 1 | AW82: 1 | AX82: 1 | AY82: 1 | AZ82: 1 | BA82: 1 | BB82: 1 | BC82: 1 | BD82: 1 | BE82: 1 | BF82: 1 | BG82: 1 | BH82: 1 | BI82: 1 | BJ82: 1
A83: 54 | B83: Tobacco products (16) | C83: 0 | F83: 80 | G83: p23.20.n | H83: Lubricants | I83: 0 | J83: 0 | K83: 0 | L83: 0 | M83: 0 | N83: 0 | O83: 0 | P83: 0 | Q83: 0 | R83: 0 | S83: 0 | T83: 0 | U83: 0 | V83: 0 | W83: 0 | X83: 0 | Y83: 0 | Z83: 0 | AA83: 0 | AB83: 0 | AC83: 0 | AD83: 0 | AE83: 0 | AF83: 0 | AG83: 0 | AI83: 80 | AJ83: p23.20.n | AK83: Lubricants | AL83: 1 | AM83: 1 | AN83: 1 | AO83: 1 | AP83: 1 | AQ83: 1 | AR83: 1 | AS83: 1 | AT83: 1 | AU83: 1 | AV83: 1 | AW83: 1 | AX83: 1 | AY83: 1 | AZ83: 1 | BA83: 1 | BB83: 1 | BC83: 1 | BD83: 1 | BE83: 1 | BF83: 1 | BG83: 1 | BH83: 1 | BI83: 1 | BJ83: 1
A84: 55 | B84: Textiles (17) | C84: 0 | F84: 81 | G84: p23.20.o | H84: Bitumen | I84: 0 | J84: 0 | K84: 0 | L84: 0 | M84: 0 | N84: 0 | O84: 0 | P84: 0 | Q84: 0 | R84: 0 | S84: 0 | T84: 0 | U84: 0 | V84: 0 | W84: 0 | X84: 0 | Y84: 0 | Z84: 0 | AA84: 0 | AB84: 0 | AC84: 0 | AD84: 0 | AE84: 0 | AF84: 0 | AG84: 0 | AI84: 81 | AJ84: p23.20.o | AK84: Bitumen | AL84: 1 | AM84: 1 | AN84: 1 | AO84: 1 | AP84: 1 | AQ84: 1 | AR84: 1 | AS84: 1 | AT84: 1 | AU84: 1 | AV84: 1 | AW84: 1 | AX84: 1 | AY84: 1 | AZ84: 1 | BA84: 1 | BB84: 1 | BC84: 1 | BD84: 1 | BE84: 1 | BF84: 1 | BG84: 1 | BH84: 1 | BI84: 1 | BJ84: 1
A85: 56 | B85: Wearing apparel; furs (18) | C85: 0 | F85: 82 | G85: p23.20.p | H85: Paraffin Waxes | I85: 0 | J85: 0 | K85: 0 | L85: 0 | M85: 0 | N85: 0 | O85: 0 | P85: 0 | Q85: 0 | R85: 0 | S85: 0 | T85: 0 | U85: 0 | V85: 0 | W85: 0 | X85: 0 | Y85: 0 | Z85: 0 | AA85: 0 | AB85: 0 | AC85: 0 | AD85: 0 | AE85: 0 | AF85: 0 | AG85: 0 | AI85: 82 | AJ85: p23.20.p | AK85: Paraffin Waxes | AL85: 1 | AM85: 1 | AN85: 1 | AO85: 1 | AP85: 1 | AQ85: 1 | AR85: 1 | AS85: 1 | AT85: 1 | AU85: 1 | AV85: 1 | AW85: 1 | AX85: 1 | AY85: 1 | AZ85: 1 | BA85: 1 | BB85: 1 | BC85: 1 | BD85: 1 | BE85: 1 | BF85: 1 | BG85: 1 | BH85: 1 | BI85: 1 | BJ85: 1
A86: 57 | B86: Leather and leather products (19) | C86: 0 | F86: 83 | G86: p23.20.q | H86: Petroleum Coke | I86: 0 | J86: 0 | K86: 0 | L86: 0 | M86: 0 | N86: 0 | O86: 0 | P86: 0 | Q86: 0 | R86: 0 | S86: 0 | T86: 0 | U86: 0 | V86: 0 | W86: 0 | X86: 0 | Y86: 0 | Z86: 0 | AA86: 0 | AB86: 0 | AC86: 0 | AD86: 0 | AE86: 0 | AF86: 0 | AG86: 0 | AI86: 83 | AJ86: p23.20.q | AK86: Petroleum Coke | AL86: 1 | AM86: 1 | AN86: 1 | AO86: 1 | AP86: 1 | AQ86: 1 | AR86: 1 | AS86: 1 | AT86: 1 | AU86: 1 | AV86: 1 | AW86: 1 | AX86: 1 | AY86: 1 | AZ86: 1 | BA86: 1 | BB86: 1 | BC86: 1 | BD86: 1 | BE86: 1 | BF86: 1 | BG86: 1 | BH86: 1 | BI86: 1 | BJ86: 1
A87: 58 | B87: Wood and products of wood and cork (except furniture); articles of straw and plaiting materials (20) | C87: 0 | F87: 84 | G87: p23.20.r | H87: Non-specified Petroleum Products | I87: 0 | J87: 0 | K87: 0 | L87: 0 | M87: 0 | N87: 0 | O87: 0 | P87: 0 | Q87: 0 | R87: 0 | S87: 0 | T87: 0 | U87: 0 | V87: 0 | W87: 0 | X87: 0 | Y87: 0 | Z87: 0 | AA87: 0 | AB87: 0 | AC87: 0 | AD87: 0 | AE87: 0 | AF87: 0 | AG87: 0 | AI87: 84 | AJ87: p23.20.r | AK87: Non-specified Petroleum Products | AL87: 1 | AM87: 1 | AN87: 1 | AO87: 1 | AP87: 1 | AQ87: 1 | AR87: 1 | AS87: 1 | AT87: 1 | AU87: 1 | AV87: 1 | AW87: 1 | AX87: 1 | AY87: 1 | AZ87: 1 | BA87: 1 | BB87: 1 | BC87: 1 | BD87: 1 | BE87: 1 | BF87: 1 | BG87: 1 | BH87: 1 | BI87: 1 | BJ87: 1
A88: 59 | B88: Wood material for treatment, Re-processing of secondary wood material into new wood material | C88: 0 | F88: 85 | G88: p23.3 | H88: Nuclear fuel | I88: 0 | J88: 0 | K88: 0 | L88: 0 | M88: 0 | N88: 0 | O88: 0 | P88: 0 | Q88: 0 | R88: 0 | S88: 0 | T88: 0 | U88: 0 | V88: 0 | W88: 0 | X88: 0 | Y88: 0 | Z88: 0 | AA88: 0 | AB88: 0 | AC88: 0 | AD88: 0 | AE88: 0 | AF88: 0 | AG88: 0 | AI88: 85 | AJ88: p23.3 | AK88: Nuclear fuel | AL88: 1 | AM88: 1 | AN88: 1 | AO88: 1 | AP88: 1 | AQ88: 1 | AR88: 1 | AS88: 1 | AT88: 1 | AU88: 1 | AV88: 1 | AW88: 1 | AX88: 1 | AY88: 1 | AZ88: 1 | BA88: 1 | BB88: 1 | BC88: 1 | BD88: 1 | BE88: 1 | BF88: 1 | BG88: 1 | BH88: 1 | BI88: 1 | BJ88: 1
A89: 60 | B89: Pulp | C89: 0 | F89: 86 | G89: p24.a | H89: Plastics, basic | I89: 0 | J89: 0 | K89: 0 | L89: 0 | M89: 0 | N89: 0 | O89: 0 | P89: 0 | Q89: 0 | R89: 0 | S89: 0 | T89: 0 | U89: 0 | V89: 0 | W89: 0 | X89: 0 | Y89: 0 | Z89: 0 | AA89: 0 | AB89: 0 | AC89: 0 | AD89: 0 | AE89: 0 | AF89: 0 | AG89: 0 | AI89: 86 | AJ89: p24.a | AK89: Plastics, basic | AL89: 1 | AM89: 1 | AN89: 1 | AO89: 1 | AP89: 1 | AQ89: 1 | AR89: 1 | AS89: 1 | AT89: 1 | AU89: 1 | AV89: 1 | AW89: 1 | AX89: 1 | AY89: 1 | AZ89: 1 | BA89: 1 | BB89: 1 | BC89: 1 | BD89: 1 | BE89: 1 | BF89: 1 | BG89: 1 | BH89: 1 | BI89: 1 | BJ89: 1
A90: 61 | B90: Secondary paper for treatment, Re-processing of secondary paper into new pulp | C90: 0 | F90: 87 | G90: p24.a.w | H90: Secondary plastic for treatment, Re-processing of secondary plastic into new plastic | I90: 0 | J90: 0 | K90: 0 | L90: 0 | M90: 0 | N90: 0 | O90: 0 | P90: 0 | Q90: 0 | R90: 0 | S90: 0 | T90: 0 | U90: 0 | V90: 0 | W90: 0 | X90: 0 | Y90: 0 | Z90: 0 | AA90: 0 | AB90: 0 | AC90: 0 | AD90: 0 | AE90: 0 | AF90: 0 | AG90: 0 | AI90: 87 | AJ90: p24.a.w | AK90: Secondary plastic for treatment, Re-processing of secondary plastic into new plastic | AL90: 1 | AM90: 1 | AN90: 1 | AO90: 1 | AP90: 1 | AQ90: 1 | AR90: 1 | AS90: 1 | AT90: 1 | AU90: 1 | AV90: 1 | AW90: 1 | AX90: 1 | AY90: 1 | AZ90: 1 | BA90: 1 | BB90: 1 | BC90: 1 | BD90: 1 | BE90: 1 | BF90: 1 | BG90: 1 | BH90: 1 | BI90: 1 | BJ90: 1
A91: 62 | B91: Paper and paper products | C91: 0 | F91: 88 | G91: p24.b | H91: N-fertiliser | I91: 0 | J91: 0 | K91: 0 | L91: 0 | M91: 0 | N91: 0 | O91: 0 | P91: 0 | Q91: 0 | R91: 0 | S91: 0 | T91: 0 | U91: 0 | V91: 0 | W91: 0 | X91: 0 | Y91: 0 | Z91: 0 | AA91: 0 | AB91: 0 | AC91: 0 | AD91: 0 | AE91: 0 | AF91: 0 | AG91: 0 | AI91: 88 | AJ91: p24.b | AK91: N-fertiliser | AL91: 1 | AM91: 1 | AN91: 1 | AO91: 1 | AP91: 1 | AQ91: 1 | AR91: 1 | AS91: 1 | AT91: 1 | AU91: 1 | AV91: 1 | AW91: 1 | AX91: 1 | AY91: 1 | AZ91: 1 | BA91: 1 | BB91: 1 | BC91: 1 | BD91: 1 | BE91: 1 | BF91: 1 | BG91: 1 | BH91: 1 | BI91: 1 | BJ91: 1
A92: 63 | B92: Printed matter and recorded media (22) | C92: 0 | F92: 89 | G92: p24.c | H92: P- and other fertiliser | I92: 0 | J92: 0 | K92: 0 | L92: 0 | M92: 0 | N92: 0 | O92: 0 | P92: 0 | Q92: 0 | R92: 0 | S92: 0 | T92: 0 | U92: 0 | V92: 0 | W92: 0 | X92: 0 | Y92: 0 | Z92: 0 | AA92: 0 | AB92: 0 | AC92: 0 | AD92: 0 | AE92: 0 | AF92: 0 | AG92: 0 | AI92: 89 | AJ92: p24.c | AK92: P- and other fertiliser | AL92: 1 | AM92: 1 | AN92: 1 | AO92: 1 | AP92: 1 | AQ92: 1 | AR92: 1 | AS92: 1 | AT92: 1 | AU92: 1 | AV92: 1 | AW92: 1 | AX92: 1 | AY92: 1 | AZ92: 1 | BA92: 1 | BB92: 1 | BC92: 1 | BD92: 1 | BE92: 1 | BF92: 1 | BG92: 1 | BH92: 1 | BI92: 1 | BJ92: 1
A93: 64 | B93: Coke Oven Coke | C93: =EnergyCal!N12 -> 0.004506425193 | F93: 90 | G93: p24.d | H93: Chemicals nec | I93: 0 | J93: 0 | K93: 0 | L93: 0 | M93: 0 | N93: 0 | O93: 0 | P93: 0 | Q93: 0 | R93: 0 | S93: 0 | T93: 0 | U93: 0 | V93: 0 | W93: 0 | X93: 0 | Y93: 0 | Z93: 0 | AA93: 0 | AB93: 0 | AC93: 0 | AD93: 0 | AE93: 0 | AF93: 0 | AG93: 0 | AI93: 90 | AJ93: p24.d | AK93: Chemicals nec | AL93: 1 | AM93: 1 | AN93: 1 | AO93: 1 | AP93: 1 | AQ93: 1 | AR93: 1 | AS93: 1 | AT93: 1 | AU93: 1 | AV93: 1 | AW93: 1 | AX93: 1 | AY93: 1 | AZ93: 1 | BA93: 1 | BB93: 1 | BC93: 1 | BD93: 1 | BE93: 1 | BF93: 1 | BG93: 1 | BH93: 1 | BI93: 1 | BJ93: 1
A94: 65 | B94: Gas Coke | C94: 0 | F94: 91 | G94: p24.e | H94: Charcoal | I94: 0 | J94: 0 | K94: 0 | L94: 0 | M94: 0 | N94: 0 | O94: 0 | P94: 0 | Q94: 0 | R94: 0 | S94: 0 | T94: 0 | U94: 0 | V94: 0 | W94: 0 | X94: 0 | Y94: 0 | Z94: 0 | AA94: 0 | AB94: 0 | AC94: 0 | AD94: 0 | AE94: 0 | AF94: 0 | AG94: 0 | AI94: 91 | AJ94: p24.e | AK94: Charcoal | AL94: 1 | AM94: 1 | AN94: 1 | AO94: 1 | AP94: 1 | AQ94: 1 | AR94: 1 | AS94: 1 | AT94: 1 | AU94: 1 | AV94: 1 | AW94: 1 | AX94: 1 | AY94: 1 | AZ94: 1 | BA94: 1 | BB94: 1 | BC94: 1 | BD94: 1 | BE94: 1 | BF94: 1 | BG94: 1 | BH94: 1 | BI94: 1 | BJ94: 1
A95: 66 | B95: Coal Tar | C95: 0 | F95: 92 | G95: p24.f | H95: Additives/Blending Components | I95: 0 | J95: 0 | K95: 0 | L95: 0 | M95: 0 | N95: 0 | O95: 0 | P95: 0 | Q95: 0 | R95: 0 | S95: 0 | T95: 0 | U95: 0 | V95: 0 | W95: 0 | X95: 0 | Y95: 0 | Z95: 0 | AA95: 0 | AB95: 0 | AC95: 0 | AD95: 0 | AE95: 0 | AF95: 0 | AG95: 0 | AI95: 92 | AJ95: p24.f | AK95: Additives/Blending Components | AL95: 1 | AM95: 1 | AN95: 1 | AO95: 1 | AP95: 1 | AQ95: 1 | AR95: 1 | AS95: 1 | AT95: 1 | AU95: 1 | AV95: 1 | AW95: 1 | AX95: 1 | AY95: 1 | AZ95: 1 | BA95: 1 | BB95: 1 | BC95: 1 | BD95: 1 | BE95: 1 | BF95: 1 | BG95: 1 | BH95: 1 | BI95: 1 | BJ95: 1
A96: 67 | B96: Motor Gasoline | C96: 0 | F96: 93 | G96: p24.g | H96: Biogasoline | I96: 0 | J96: 0 | K96: 0 | L96: 0 | M96: 0 | N96: 0 | O96: 0 | P96: 0 | Q96: 0 | R96: 0 | S96: 0 | T96: 0 | U96: 0 | V96: 0 | W96: 0 | X96: 0 | Y96: 0 | Z96: 0 | AA96: 0 | AB96: 0 | AC96: 0 | AD96: 0 | AE96: 0 | AF96: 0 | AG96: 0 | AI96: 93 | AJ96: p24.g | AK96: Biogasoline | AL96: 1 | AM96: 1 | AN96: 1 | AO96: 1 | AP96: 1 | AQ96: 1 | AR96: 1 | AS96: 1 | AT96: 1 | AU96: 1 | AV96: 1 | AW96: 1 | AX96: 1 | AY96: 1 | AZ96: 1 | BA96: 1 | BB96: 1 | BC96: 1 | BD96: 1 | BE96: 1 | BF96: 1 | BG96: 1 | BH96: 1 | BI96: 1 | BJ96: 1
A97: 68 | B97: Aviation Gasoline | C97: 0 | F97: 94 | G97: p24.h | H97: Biodiesels | I97: 0 | J97: 0 | K97: 0 | L97: 0 | M97: 0 | N97: 0 | O97: 0 | P97: 0 | Q97: 0 | R97: 0 | S97: 0 | T97: 0 | U97: 0 | V97: 0 | W97: 0 | X97: 0 | Y97: 0 | Z97: 0 | AA97: 0 | AB97: 0 | AC97: 0 | AD97: 0 | AE97: 0 | AF97: 0 | AG97: 0 | AI97: 94 | AJ97: p24.h | AK97: Biodiesels | AL97: 1 | AM97: 1 | AN97: 1 | AO97: 1 | AP97: 1 | AQ97: 1 | AR97: 1 | AS97: 1 | AT97: 1 | AU97: 1 | AV97: 1 | AW97: 1 | AX97: 1 | AY97: 1 | AZ97: 1 | BA97: 1 | BB97: 1 | BC97: 1 | BD97: 1 | BE97: 1 | BF97: 1 | BG97: 1 | BH97: 1 | BI97: 1 | BJ97: 1
A98: 69 | B98: Gasoline Type Jet Fuel | C98: 0 | F98: 95 | G98: p24.i | H98: Other Liquid Biofuels | I98: 0 | J98: 0 | K98: 0 | L98: 0 | M98: 0 | N98: 0 | O98: 0 | P98: 0 | Q98: 0 | R98: 0 | S98: 0 | T98: 0 | U98: 0 | V98: 0 | W98: 0 | X98: 0 | Y98: 0 | Z98: 0 | AA98: 0 | AB98: 0 | AC98: 0 | AD98: 0 | AE98: 0 | AF98: 0 | AG98: 0 | AI98: 95 | AJ98: p24.i | AK98: Other Liquid Biofuels | AL98: 1 | AM98: 1 | AN98: 1 | AO98: 1 | AP98: 1 | AQ98: 1 | AR98: 1 | AS98: 1 | AT98: 1 | AU98: 1 | AV98: 1 | AW98: 1 | AX98: 1 | AY98: 1 | AZ98: 1 | BA98: 1 | BB98: 1 | BC98: 1 | BD98: 1 | BE98: 1 | BF98: 1 | BG98: 1 | BH98: 1 | BI98: 1 | BJ98: 1
A99: 70 | B99: Kerosene Type Jet Fuel | C99: 0 | F99: 96 | G99: p25 | H99: Rubber and plastic products (25) | I99: 0 | J99: 0 | K99: 0 | L99: 0 | M99: 0 | N99: 0 | O99: 0 | P99: 0 | Q99: 0 | R99: 0 | S99: 0 | T99: 0 | U99: 0 | V99: 0 | W99: 0 | X99: 0 | Y99: 0 | Z99: 0 | AA99: 0 | AB99: 0 | AC99: 0 | AD99: 0 | AE99: 0 | AF99: 0 | AG99: 0 | AI99: 96 | AJ99: p25 | AK99: Rubber and plastic products (25) | AL99: 1 | AM99: 1 | AN99: 1 | AO99: 1 | AP99: 1 | AQ99: 1 | AR99: 1 | AS99: 1 | AT99: 1 | AU99: 1 | AV99: 1 | AW99: 1 | AX99: 1 | AY99: 1 | AZ99: 1 | BA99: 1 | BB99: 1 | BC99: 1 | BD99: 1 | BE99: 1 | BF99: 1 | BG99: 1 | BH99: 1 | BI99: 1 | BJ99: 1
A100: 71 | B100: Kerosene | C100: =EnergyCal!N13 -> 0.01075135929 | F100: 97 | G100: p26.a | H100: Glass and glass products | I100: 0 | J100: 0 | K100: 0 | L100: 0 | M100: 0 | N100: 0 | O100: 0 | P100: 0 | Q100: 0 | R100: 0 | S100: 0 | T100: 0 | U100: 0 | V100: 0 | W100: 0 | X100: 0 | Y100: 0 | Z100: 0 | AA100: 0 | AB100: 0 | AC100: 0 | AD100: 0 | AE100: 0 | AF100: 0 | AG100: 0 | AI100: 97 | AJ100: p26.a | AK100: Glass and glass products | AL100: 1 | AM100: 1 | AN100: 1 | AO100: 1 | AP100: 1 | AQ100: 1 | AR100: 1 | AS100: 1 | AT100: 1 | AU100: 1 | AV100: 1 | AW100: 1 | AX100: 1 | AY100: 1 | AZ100: 1 | BA100: 1 | BB100: 1 | BC100: 1 | BD100: 1 | BE100: 1 | BF100: 1 | BG100: 1 | BH100: 1 | BI100: 1 | BJ100: 1
A101: 72 | B101: Gas/Diesel Oil | C101: 0 | F101: =+F100+1 -> 98 | G101: p26.a.w | H101: Secondary glass for treatment, Re-processing of secondary glass into new glass | I101: 0 | J101: 0 | K101: 0 | L101: 0 | M101: 0 | N101: 0 | O101: 0 | P101: 0 | Q101: 0 | R101: 0 | S101: 0 | T101: 0 | U101: 0 | V101: 0 | W101: 0 | X101: 0 | Y101: 0 | Z101: 0 | AA101: 0 | AB101: 0 | AC101: 0 | AD101: 0 | AE101: 0 | AF101: 0 | AG101: 0 | AI101: 98 | AJ101: p26.a.w | AK101: Secondary glass for treatment, Re-processing of secondary glass into new glass | AL101: 1 | AM101: 1 | AN101: 1 | AO101: 1 | AP101: 1 | AQ101: 1 | AR101: 1 | AS101: 1 | AT101: 1 | AU101: 1 | AV101: 1 | AW101: 1 | AX101: 1 | AY101: 1 | AZ101: 1 | BA101: 1 | BB101: 1 | BC101: 1 | BD101: 1 | BE101: 1 | BF101: 1 | BG101: 1 | BH101: 1 | BI101: 1 | BJ101: 1
A102: 73 | B102: Heavy Fuel Oil | C102: 0 | F102: 99 | G102: p26.b | H102: Ceramic goods | I102: 0 | J102: 0 | K102: 0 | L102: 0 | M102: 0 | N102: 0 | O102: 0 | P102: 0 | Q102: 0 | R102: 0 | S102: 0 | T102: 0 | U102: 0 | V102: 0 | W102: 0 | X102: 0 | Y102: 0 | Z102: 0 | AA102: 0 | AB102: 0 | AC102: 0 | AD102: 0 | AE102: 0 | AF102: 0 | AG102: 0 | AI102: 99 | AJ102: p26.b | AK102: Ceramic goods | AL102: 1 | AM102: 1 | AN102: 1 | AO102: 1 | AP102: 1 | AQ102: 1 | AR102: 1 | AS102: 1 | AT102: 1 | AU102: 1 | AV102: 1 | AW102: 1 | AX102: 1 | AY102: 1 | AZ102: 1 | BA102: 1 | BB102: 1 | BC102: 1 | BD102: 1 | BE102: 1 | BF102: 1 | BG102: 1 | BH102: 1 | BI102: 1 | BJ102: 1
A103: 74 | B103: Refinery Gas | C103: 0 | F103: 100 | G103: p26.c | H103: Bricks, tiles and construction products, in baked clay | I103: 0 | J103: 0 | K103: 0 | L103: 0 | M103: 0 | N103: 0 | O103: 0 | P103: 0 | Q103: 0 | R103: 0 | S103: 0 | T103: 0 | U103: 0 | V103: 0 | W103: 0 | X103: 0 | Y103: 0 | Z103: 0 | AA103: 0 | AB103: 0 | AC103: 0 | AD103: 0 | AE103: 0 | AF103: 0 | AG103: 0 | AI103: 100 | AJ103: p26.c | AK103: Bricks, tiles and construction products, in baked clay | AL103: 1 | AM103: 1 | AN103: 1 | AO103: 1 | AP103: 1 | AQ103: 1 | AR103: 1 | AS103: 1 | AT103: 1 | AU103: 1 | AV103: 1 | AW103: 1 | AX103: 1 | AY103: 1 | AZ103: 1 | BA103: 1 | BB103: 1 | BC103: 1 | BD103: 1 | BE103: 1 | BF103: 1 | BG103: 1 | BH103: 1 | BI103: 1 | BJ103: 1
A104: 75 | B104: Liquefied Petroleum Gases (LPG) | C104: =EnergyCal!N14 -> 0.01147950969 | F104: 101 | G104: p26.d | H104: Cement, lime and plaster | I104: 0 | J104: 0 | K104: 0 | L104: 0 | M104: 0 | N104: 0 | O104: 0 | P104: 0 | Q104: 0 | R104: 0 | S104: 0 | T104: 0 | U104: 0 | V104: 0 | W104: 0 | X104: 0 | Y104: 0 | Z104: 0 | AA104: 0 | AB104: 0 | AC104: 0 | AD104: 0 | AE104: 0 | AF104: 0 | AG104: 0 | AI104: 101 | AJ104: p26.d | AK104: Cement, lime and plaster | AL104: 1 | AM104: 1 | AN104: 1 | AO104: 1 | AP104: 1 | AQ104: 1 | AR104: 1 | AS104: 1 | AT104: 1 | AU104: 1 | AV104: 1 | AW104: 1 | AX104: 1 | AY104: 1 | AZ104: 1 | BA104: 1 | BB104: 1 | BC104: 1 | BD104: 1 | BE104: 1 | BF104: 1 | BG104: 1 | BH104: 1 | BI104: 1 | BJ104: 1
A105: 76 | B105: Refinery Feedstocks | C105: 0 | F105: 102 | G105: p26.d.w | H105: Ash for treatment, Re-processing of ash into clinker | I105: 0 | J105: 0 | K105: 0 | L105: 0 | M105: 0 | N105: 0 | O105: 0 | P105: 0 | Q105: 0 | R105: 0 | S105: 0 | T105: 0 | U105: 0 | V105: 0 | W105: 0 | X105: 0 | Y105: 0 | Z105: 0 | AA105: 0 | AB105: 0 | AC105: 0 | AD105: 0 | AE105: 0 | AF105: 0 | AG105: 0 | AI105: 102 | AJ105: p26.d.w | AK105: Ash for treatment, Re-processing of ash into clinker | AL105: 1 | AM105: 1 | AN105: 1 | AO105: 1 | AP105: 1 | AQ105: 1 | AR105: 1 | AS105: 1 | AT105: 1 | AU105: 1 | AV105: 1 | AW105: 1 | AX105: 1 | AY105: 1 | AZ105: 1 | BA105: 1 | BB105: 1 | BC105: 1 | BD105: 1 | BE105: 1 | BF105: 1 | BG105: 1 | BH105: 1 | BI105: 1 | BJ105: 1
A106: 77 | B106: Ethane | C106: 0 | F106: 103 | G106: p26.e | H106: Other non-metallic mineral products | I106: 0 | J106: 0 | K106: 0 | L106: 0 | M106: 0 | N106: 0 | O106: 0 | P106: 0 | Q106: 0 | R106: 0 | S106: 0 | T106: 0 | U106: 0 | V106: 0 | W106: 0 | X106: 0 | Y106: 0 | Z106: 0 | AA106: 0 | AB106: 0 | AC106: 0 | AD106: 0 | AE106: 0 | AF106: 0 | AG106: 0 | AI106: 103 | AJ106: p26.e | AK106: Other non-metallic mineral products | AL106: 1 | AM106: 1 | AN106: 1 | AO106: 1 | AP106: 1 | AQ106: 1 | AR106: 1 | AS106: 1 | AT106: 1 | AU106: 1 | AV106: 1 | AW106: 1 | AX106: 1 | AY106: 1 | AZ106: 1 | BA106: 1 | BB106: 1 | BC106: 1 | BD106: 1 | BE106: 1 | BF106: 1 | BG106: 1 | BH106: 1 | BI106: 1 | BJ106: 1
A107: 78 | B107: Naphtha | C107: =EnergyCal!N15 -> 0.006686424311 | F107: 104 | G107: p27.a | H107: Basic iron and steel and of ferro-alloys and first products thereof | I107: 0 | J107: 0 | K107: 0 | L107: 0 | M107: 0 | N107: 0 | O107: 0 | P107: 0 | Q107: 0 | R107: 0 | S107: 0 | T107: 0 | U107: 0 | V107: 0 | W107: 0 | X107: 0 | Y107: 0 | Z107: 0 | AA107: 0 | AB107: 0 | AC107: 0 | AD107: 0 | AE107: 0 | AF107: 0 | AG107: 0 | AI107: 104 | AJ107: p27.a | AK107: Basic iron and steel and of ferro-alloys and first products thereof | AL107: 1 | AM107: 1 | AN107: 1 | AO107: 1 | AP107: 1 | AQ107: 1 | AR107: 1 | AS107: 1 | AT107: 1 | AU107: 1 | AV107: 1 | AW107: 1 | AX107: 1 | AY107: 1 | AZ107: 1 | BA107: 1 | BB107: 1 | BC107: 1 | BD107: 1 | BE107: 1 | BF107: 1 | BG107: 1 | BH107: 1 | BI107: 1 | BJ107: 1
A108: 79 | B108: White Spirit & SBP | C108: 0 | F108: 105 | G108: p27.a.w | H108: Secondary steel for treatment, Re-processing of secondary steel into new steel | I108: 0 | J108: 0 | K108: 0 | L108: 0 | M108: 0 | N108: 0 | O108: 0 | P108: 0 | Q108: 0 | R108: 0 | S108: 0 | T108: 0 | U108: 0 | V108: 0 | W108: 0 | X108: 0 | Y108: 0 | Z108: 0 | AA108: 0 | AB108: 0 | AC108: 0 | AD108: 0 | AE108: 0 | AF108: 0 | AG108: 0 | AI108: 105 | AJ108: p27.a.w | AK108: Secondary steel for treatment, Re-processing of secondary steel into new steel | AL108: 1 | AM108: 1 | AN108: 1 | AO108: 1 | AP108: 1 | AQ108: 1 | AR108: 1 | AS108: 1 | AT108: 1 | AU108: 1 | AV108: 1 | AW108: 1 | AX108: 1 | AY108: 1 | AZ108: 1 | BA108: 1 | BB108: 1 | BC108: 1 | BD108: 1 | BE108: 1 | BF108: 1 | BG108: 1 | BH108: 1 | BI108: 1 | BJ108: 1
A109: 80 | B109: Lubricants | C109: 0 | F109: 106 | G109: p27.41 | H109: Precious metals | I109: 0 | J109: 0 | K109: 0 | L109: 0 | M109: 0 | N109: 0 | O109: 0 | P109: 0 | Q109: 0 | R109: 0 | S109: 0 | T109: 0 | U109: 0 | V109: 0 | W109: 0 | X109: 0 | Y109: 0 | Z109: 0 | AA109: 0 | AB109: 0 | AC109: 0 | AD109: 0 | AE109: 0 | AF109: 0 | AG109: 0 | AI109: 106 | AJ109: p27.41 | AK109: Precious metals | AL109: 1 | AM109: 1 | AN109: 1 | AO109: 1 | AP109: 1 | AQ109: 1 | AR109: 1 | AS109: 1 | AT109: 1 | AU109: 1 | AV109: 1 | AW109: 1 | AX109: 1 | AY109: 1 | AZ109: 1 | BA109: 1 | BB109: 1 | BC109: 1 | BD109: 1 | BE109: 1 | BF109: 1 | BG109: 1 | BH109: 1 | BI109: 1 | BJ109: 1
A110: 81 | B110: Bitumen | C110: 0 | F110: 107 | G110: p27.41.w | H110: Secondary preciuos metals for treatment, Re-processing of secondary preciuos metals into new preciuos metals | I110: 0 | J110: 0 | K110: 0 | L110: 0 | M110: 0 | N110: 0 | O110: 0 | P110: 0 | Q110: 0 | R110: 0 | S110: 0 | T110: 0 | U110: 0 | V110: 0 | W110: 0 | X110: 0 | Y110: 0 | Z110: 0 | AA110: 0 | AB110: 0 | AC110: 0 | AD110: 0 | AE110: 0 | AF110: 0 | AG110: 0 | AI110: 107 | AJ110: p27.41.w | AK110: Secondary preciuos metals for treatment, Re-processing of secondary preciuos metals into new preciuos metals | AL110: 1 | AM110: 1 | AN110: 1 | AO110: 1 | AP110: 1 | AQ110: 1 | AR110: 1 | AS110: 1 | AT110: 1 | AU110: 1 | AV110: 1 | AW110: 1 | AX110: 1 | AY110: 1 | AZ110: 1 | BA110: 1 | BB110: 1 | BC110: 1 | BD110: 1 | BE110: 1 | BF110: 1 | BG110: 1 | BH110: 1 | BI110: 1 | BJ110: 1
A111: 82 | B111: Paraffin Waxes | C111: 0 | F111: 108 | G111: p27.42 | H111: Aluminium and aluminium products | I111: 0 | J111: 0 | K111: 0 | L111: 0 | M111: 0 | N111: 0 | O111: 0 | P111: 0 | Q111: 0 | R111: 0 | S111: 0 | T111: 0 | U111: 0 | V111: 0 | W111: 0 | X111: 0 | Y111: 0 | Z111: 0 | AA111: 0 | AB111: 0 | AC111: 0 | AD111: 0 | AE111: 0 | AF111: 0 | AG111: 0 | AI111: 108 | AJ111: p27.42 | AK111: Aluminium and aluminium products | AL111: 1 | AM111: 1 | AN111: 1 | AO111: 1 | AP111: 1 | AQ111: 1 | AR111: 1 | AS111: 1 | AT111: 1 | AU111: 1 | AV111: 1 | AW111: 1 | AX111: 1 | AY111: 1 | AZ111: 1 | BA111: 1 | BB111: 1 | BC111: 1 | BD111: 1 | BE111: 1 | BF111: 1 | BG111: 1 | BH111: 1 | BI111: 1 | BJ111: 1
A112: 83 | B112: Petroleum Coke | C112: 0 | F112: 109 | G112: p27.42.w | H112: Secondary aluminium for treatment, Re-processing of secondary aluminium into new aluminium | I112: 0 | J112: 0 | K112: 0 | L112: 0 | M112: 0 | N112: 0 | O112: 0 | P112: 0 | Q112: 0 | R112: 0 | S112: 0 | T112: 0 | U112: 0 | V112: 0 | W112: 0 | X112: 0 | Y112: 0 | Z112: 0 | AA112: 0 | AB112: 0 | AC112: 0 | AD112: 0 | AE112: 0 | AF112: 0 | AG112: 0 | AI112: 109 | AJ112: p27.42.w | AK112: Secondary aluminium for treatment, Re-processing of secondary aluminium into new aluminium | AL112: 1 | AM112: 1 | AN112: 1 | AO112: 1 | AP112: 1 | AQ112: 1 | AR112: 1 | AS112: 1 | AT112: 1 | AU112: 1 | AV112: 1 | AW112: 1 | AX112: 1 | AY112: 1 | AZ112: 1 | BA112: 1 | BB112: 1 | BC112: 1 | BD112: 1 | BE112: 1 | BF112: 1 | BG112: 1 | BH112: 1 | BI112: 1 | BJ112: 1
A113: 84 | B113: Non-specified Petroleum Products | C113: 0 | F113: 110 | G113: p27.43 | H113: Lead, zinc and tin and products thereof | I113: 0 | J113: 0 | K113: 0 | L113: 0 | M113: 0 | N113: 0 | O113: 0 | P113: 0 | Q113: 0 | R113: 0 | S113: 0 | T113: 0 | U113: 0 | V113: 0 | W113: 0 | X113: 0 | Y113: 0 | Z113: 0 | AA113: 0 | AB113: 0 | AC113: 0 | AD113: 0 | AE113: 0 | AF113: 0 | AG113: 0 | AI113: 110 | AJ113: p27.43 | AK113: Lead, zinc and tin and products thereof | AL113: 1 | AM113: 1 | AN113: 1 | AO113: 1 | AP113: 1 | AQ113: 1 | AR113: 1 | AS113: 1 | AT113: 1 | AU113: 1 | AV113: 1 | AW113: 1 | AX113: 1 | AY113: 1 | AZ113: 1 | BA113: 1 | BB113: 1 | BC113: 1 | BD113: 1 | BE113: 1 | BF113: 1 | BG113: 1 | BH113: 1 | BI113: 1 | BJ113: 1
A114: 85 | B114: Nuclear fuel | C114: 0 | F114: 111 | G114: p27.43.w | H114: Secondary lead for treatment, Re-processing of secondary lead into new lead | I114: 0 | J114: 0 | K114: 0 | L114: 0 | M114: 0 | N114: 0 | O114: 0 | P114: 0 | Q114: 0 | R114: 0 | S114: 0 | T114: 0 | U114: 0 | V114: 0 | W114: 0 | X114: 0 | Y114: 0 | Z114: 0 | AA114: 0 | AB114: 0 | AC114: 0 | AD114: 0 | AE114: 0 | AF114: 0 | AG114: 0 | AI114: 111 | AJ114: p27.43.w | AK114: Secondary lead for treatment, Re-processing of secondary lead into new lead | AL114: 1 | AM114: 1 | AN114: 1 | AO114: 1 | AP114: 1 | AQ114: 1 | AR114: 1 | AS114: 1 | AT114: 1 | AU114: 1 | AV114: 1 | AW114: 1 | AX114: 1 | AY114: 1 | AZ114: 1 | BA114: 1 | BB114: 1 | BC114: 1 | BD114: 1 | BE114: 1 | BF114: 1 | BG114: 1 | BH114: 1 | BI114: 1 | BJ114: 1
A115: 86 | B115: Plastics, basic | C115: 0 | F115: 112 | G115: p27.44 | H115: Copper products | I115: 0 | J115: 0 | K115: 0 | L115: 0 | M115: 0 | N115: 0 | O115: 0 | P115: 0 | Q115: 0 | R115: 0 | S115: 0 | T115: 0 | U115: 0 | V115: 0 | W115: 0 | X115: 0 | Y115: 0 | Z115: 0 | AA115: 0 | AB115: 0 | AC115: 0 | AD115: 0 | AE115: 0 | AF115: 0 | AG115: 0 | AI115: 112 | AJ115: p27.44 | AK115: Copper products | AL115: 1 | AM115: 1 | AN115: 1 | AO115: 1 | AP115: 1 | AQ115: 1 | AR115: 1 | AS115: 1 | AT115: 1 | AU115: 1 | AV115: 1 | AW115: 1 | AX115: 1 | AY115: 1 | AZ115: 1 | BA115: 1 | BB115: 1 | BC115: 1 | BD115: 1 | BE115: 1 | BF115: 1 | BG115: 1 | BH115: 1 | BI115: 1 | BJ115: 1
A116: 87 | B116: Secondary plastic for treatment, Re-processing of secondary plastic into new plastic | C116: 0 | F116: 113 | G116: p27.44.w | H116: Secondary copper for treatment, Re-processing of secondary copper into new copper | I116: 0 | J116: 0 | K116: 0 | L116: 0 | M116: 0 | N116: 0 | O116: 0 | P116: 0 | Q116: 0 | R116: 0 | S116: 0 | T116: 0 | U116: 0 | V116: 0 | W116: 0 | X116: 0 | Y116: 0 | Z116: 0 | AA116: 0 | AB116: 0 | AC116: 0 | AD116: 0 | AE116: 0 | AF116: 0 | AG116: 0 | AI116: 113 | AJ116: p27.44.w | AK116: Secondary copper for treatment, Re-processing of secondary copper into new copper | AL116: 1 | AM116: 1 | AN116: 1 | AO116: 1 | AP116: 1 | AQ116: 1 | AR116: 1 | AS116: 1 | AT116: 1 | AU116: 1 | AV116: 1 | AW116: 1 | AX116: 1 | AY116: 1 | AZ116: 1 | BA116: 1 | BB116: 1 | BC116: 1 | BD116: 1 | BE116: 1 | BF116: 1 | BG116: 1 | BH116: 1 | BI116: 1 | BJ116: 1
A117: 88 | B117: N-fertiliser | C117: 0 | F117: 114 | G117: p27.45 | H117: Other non-ferrous metal products | I117: 0 | J117: 0 | K117: 0 | L117: 0 | M117: 0 | N117: 0 | O117: 0 | P117: 0 | Q117: 0 | R117: 0 | S117: 0 | T117: 0 | U117: 0 | V117: 0 | W117: 0 | X117: 0 | Y117: 0 | Z117: 0 | AA117: 0 | AB117: 0 | AC117: 0 | AD117: 0 | AE117: 0 | AF117: 0 | AG117: 0 | AI117: 114 | AJ117: p27.45 | AK117: Other non-ferrous metal products | AL117: 1 | AM117: 1 | AN117: 1 | AO117: 1 | AP117: 1 | AQ117: 1 | AR117: 1 | AS117: 1 | AT117: 1 | AU117: 1 | AV117: 1 | AW117: 1 | AX117: 1 | AY117: 1 | AZ117: 1 | BA117: 1 | BB117: 1 | BC117: 1 | BD117: 1 | BE117: 1 | BF117: 1 | BG117: 1 | BH117: 1 | BI117: 1 | BJ117: 1
A118: 89 | B118: P- and other fertiliser | C118: 0 | F118: 115 | G118: p27.45.w | H118: Secondary other non-ferrous metals for treatment, Re-processing of secondary other non-ferrous metals into new other non-ferrous metals | I118: 0 | J118: 0 | K118: 0 | L118: 0 | M118: 0 | N118: 0 | O118: 0 | P118: 0 | Q118: 0 | R118: 0 | S118: 0 | T118: 0 | U118: 0 | V118: 0 | W118: 0 | X118: 0 | Y118: 0 | Z118: 0 | AA118: 0 | AB118: 0 | AC118: 0 | AD118: 0 | AE118: 0 | AF118: 0 | AG118: 0 | AI118: 115 | AJ118: p27.45.w | AK118: Secondary other non-ferrous metals for treatment, Re-processing of secondary other non-ferrous metals into new other non-ferrous metals | AL118: 1 | AM118: 1 | AN118: 1 | AO118: 1 | AP118: 1 | AQ118: 1 | AR118: 1 | AS118: 1 | AT118: 1 | AU118: 1 | AV118: 1 | AW118: 1 | AX118: 1 | AY118: 1 | AZ118: 1 | BA118: 1 | BB118: 1 | BC118: 1 | BD118: 1 | BE118: 1 | BF118: 1 | BG118: 1 | BH118: 1 | BI118: 1 | BJ118: 1
A119: 90 | B119: Chemicals nec | C119: 0 | F119: 116 | G119: p27.5 | H119: Foundry work services | I119: 0 | J119: 0 | K119: 0 | L119: 0 | M119: 0 | N119: 0 | O119: 0 | P119: 0 | Q119: 0 | R119: 0 | S119: 0 | T119: 0 | U119: 0 | V119: 0 | W119: 0 | X119: 0 | Y119: 0 | Z119: 0 | AA119: 0 | AB119: 0 | AC119: 0 | AD119: 0 | AE119: 0 | AF119: 0 | AG119: 0 | AI119: 116 | AJ119: p27.5 | AK119: Foundry work services | AL119: 1 | AM119: 1 | AN119: 1 | AO119: 1 | AP119: 1 | AQ119: 1 | AR119: 1 | AS119: 1 | AT119: 1 | AU119: 1 | AV119: 1 | AW119: 1 | AX119: 1 | AY119: 1 | AZ119: 1 | BA119: 1 | BB119: 1 | BC119: 1 | BD119: 1 | BE119: 1 | BF119: 1 | BG119: 1 | BH119: 1 | BI119: 1 | BJ119: 1
A120: 91 | B120: Charcoal | C120: =EnergyCal!N16 -> 0.003340682175 | F120: 117 | G120: p28 | H120: Fabricated metal products, except machinery and equipment (28) | I120: 0 | J120: 0 | K120: 0 | L120: 0 | M120: 0 | N120: 0 | O120: 0 | P120: 0 | Q120: 0 | R120: 0 | S120: 0 | T120: 0 | U120: 0 | V120: 0 | W120: 0 | X120: 0 | Y120: 0 | Z120: 0 | AA120: 0 | AB120: 0 | AC120: 0 | AD120: 0 | AE120: 0 | AF120: 0 | AG120: 0 | AI120: 117 | AJ120: p28 | AK120: Fabricated metal products, except machinery and equipment (28) | AL120: 1 | AM120: 1 | AN120: 1 | AO120: 1 | AP120: 1 | AQ120: 1 | AR120: 1 | AS120: 1 | AT120: 1 | AU120: 1 | AV120: 1 | AW120: 1 | AX120: 1 | AY120: 1 | AZ120: 1 | BA120: 1 | BB120: 1 | BC120: 1 | BD120: 1 | BE120: 1 | BF120: 1 | BG120: 1 | BH120: 1 | BI120: 1 | BJ120: 1
A121: 92 | B121: Additives/Blending Components | C121: 0 | F121: 118 | G121: p29 | H121: Machinery and equipment n.e.c. (29) | I121: 0 | J121: 0 | K121: 0 | L121: 0 | M121: 0 | N121: 0 | O121: 0 | P121: 0 | Q121: 0 | R121: 0 | S121: 0 | T121: 0 | U121: 0 | V121: 0 | W121: 0 | X121: 0 | Y121: 0 | Z121: 0 | AA121: 0 | AB121: 0 | AC121: 0 | AD121: 0 | AE121: 0 | AF121: 0 | AG121: 0 | AI121: 118 | AJ121: p29 | AK121: Machinery and equipment n.e.c. (29) | AL121: 1 | AM121: 1 | AN121: 1 | AO121: 1 | AP121: 1 | AQ121: 1 | AR121: 1 | AS121: 1 | AT121: 1 | AU121: 1 | AV121: 1 | AW121: 1 | AX121: 1 | AY121: 1 | AZ121: 1 | BA121: 1 | BB121: 1 | BC121: 1 | BD121: 1 | BE121: 1 | BF121: 1 | BG121: 1 | BH121: 1 | BI121: 1 | BJ121: 1
A122: 93 | B122: Biogasoline | C122: 0 | F122: 119 | G122: p30 | H122: Office machinery and computers (30) | I122: 0 | J122: 0 | K122: 0 | L122: 0 | M122: 0 | N122: 0 | O122: 0 | P122: 0 | Q122: 0 | R122: 0 | S122: 0 | T122: 0 | U122: 0 | V122: 0 | W122: 0 | X122: 0 | Y122: 0 | Z122: 0 | AA122: 0 | AB122: 0 | AC122: 0 | AD122: 0 | AE122: 0 | AF122: 0 | AG122: 0 | AI122: 119 | AJ122: p30 | AK122: Office machinery and computers (30) | AL122: 1 | AM122: 1 | AN122: 1 | AO122: 1 | AP122: 1 | AQ122: 1 | AR122: 1 | AS122: 1 | AT122: 1 | AU122: 1 | AV122: 1 | AW122: 1 | AX122: 1 | AY122: 1 | AZ122: 1 | BA122: 1 | BB122: 1 | BC122: 1 | BD122: 1 | BE122: 1 | BF122: 1 | BG122: 1 | BH122: 1 | BI122: 1 | BJ122: 1
A123: 94 | B123: Biodiesels | C123: 0 | F123: 120 | G123: p31 | H123: Electrical machinery and apparatus n.e.c. (31) | I123: 0 | J123: 0 | K123: 0 | L123: 0 | M123: 0 | N123: 0 | O123: 0 | P123: 0 | Q123: 0 | R123: 0 | S123: 0 | T123: 0 | U123: 0 | V123: 0 | W123: 0 | X123: 0 | Y123: 0 | Z123: 0 | AA123: 0 | AB123: 0 | AC123: 0 | AD123: 0 | AE123: 0 | AF123: 0 | AG123: 0 | AI123: 120 | AJ123: p31 | AK123: Electrical machinery and apparatus n.e.c. (31) | AL123: 1 | AM123: 1 | AN123: 1 | AO123: 1 | AP123: 1 | AQ123: 1 | AR123: 1 | AS123: 1 | AT123: 1 | AU123: 1 | AV123: 1 | AW123: 1 | AX123: 1 | AY123: 1 | AZ123: 1 | BA123: 1 | BB123: 1 | BC123: 1 | BD123: 1 | BE123: 1 | BF123: 1 | BG123: 1 | BH123: 1 | BI123: 1 | BJ123: 1
A124: 95 | B124: Other Liquid Biofuels | C124: 0 | F124: 121 | G124: p32 | H124: Radio, television and communication equipment and apparatus (32) | I124: 0 | J124: 0 | K124: 0 | L124: 0 | M124: 0 | N124: 0 | O124: 0 | P124: 0 | Q124: 0 | R124: 0 | S124: 0 | T124: 0 | U124: 0 | V124: 0 | W124: 0 | X124: 0 | Y124: 0 | Z124: 0 | AA124: 0 | AB124: 0 | AC124: 0 | AD124: 0 | AE124: 0 | AF124: 0 | AG124: 0 | AI124: 121 | AJ124: p32 | AK124: Radio, television and communication equipment and apparatus (32) | AL124: 1 | AM124: 1 | AN124: 1 | AO124: 1 | AP124: 1 | AQ124: 1 | AR124: 1 | AS124: 1 | AT124: 1 | AU124: 1 | AV124: 1 | AW124: 1 | AX124: 1 | AY124: 1 | AZ124: 1 | BA124: 1 | BB124: 1 | BC124: 1 | BD124: 1 | BE124: 1 | BF124: 1 | BG124: 1 | BH124: 1 | BI124: 1 | BJ124: 1
A125: 96 | B125: Rubber and plastic products (25) | C125: 0 | F125: 122 | G125: p33 | H125: Medical, precision and optical instruments, watches and clocks (33) | I125: 0 | J125: 0 | K125: 0 | L125: 0 | M125: 0 | N125: 0 | O125: 0 | P125: 0 | Q125: 0 | R125: 0 | S125: 0 | T125: 0 | U125: 0 | V125: 0 | W125: 0 | X125: 0 | Y125: 0 | Z125: 0 | AA125: 0 | AB125: 0 | AC125: 0 | AD125: 0 | AE125: 0 | AF125: 0 | AG125: 0 | AI125: 122 | AJ125: p33 | AK125: Medical, precision and optical instruments, watches and clocks (33) | AL125: 1 | AM125: 1 | AN125: 1 | AO125: 1 | AP125: 1 | AQ125: 1 | AR125: 1 | AS125: 1 | AT125: 1 | AU125: 1 | AV125: 1 | AW125: 1 | AX125: 1 | AY125: 1 | AZ125: 1 | BA125: 1 | BB125: 1 | BC125: 1 | BD125: 1 | BE125: 1 | BF125: 1 | BG125: 1 | BH125: 1 | BI125: 1 | BJ125: 1
A126: 97 | B126: Glass and glass products | C126: 0 | F126: 123 | G126: p34 | H126: Motor vehicles, trailers and semi-trailers (34) | I126: 0 | J126: 0 | K126: 0 | L126: 0 | M126: 0 | N126: 0 | O126: 0 | P126: 0 | Q126: 0 | R126: 0 | S126: 0 | T126: 0 | U126: 0 | V126: 0 | W126: 0 | X126: 0 | Y126: 0 | Z126: 0 | AA126: 0 | AB126: 0 | AC126: 0 | AD126: 0 | AE126: 0 | AF126: 0 | AG126: 0 | AI126: 123 | AJ126: p34 | AK126: Motor vehicles, trailers and semi-trailers (34) | AL126: 1 | AM126: 1 | AN126: 1 | AO126: 1 | AP126: 1 | AQ126: 1 | AR126: 1 | AS126: 1 | AT126: 1 | AU126: 1 | AV126: 1 | AW126: 1 | AX126: 1 | AY126: 1 | AZ126: 1 | BA126: 1 | BB126: 1 | BC126: 1 | BD126: 1 | BE126: 1 | BF126: 1 | BG126: 1 | BH126: 1 | BI126: 1 | BJ126: 1
A127: 98 | B127: Secondary glass for treatment, Re-processing of secondary glass into new glass | C127: 0 | F127: 124 | G127: p35 | H127: Other transport equipment (35) | I127: 0 | J127: 0 | K127: 0 | L127: 0 | M127: 0 | N127: 0 | O127: 0 | P127: 0 | Q127: 0 | R127: 0 | S127: 0 | T127: 0 | U127: 0 | V127: 0 | W127: 0 | X127: 0 | Y127: 0 | Z127: 0 | AA127: 0 | AB127: 0 | AC127: 0 | AD127: 0 | AE127: 0 | AF127: 0 | AG127: 0 | AI127: 124 | AJ127: p35 | AK127: Other transport equipment (35) | AL127: 1 | AM127: 1 | AN127: 1 | AO127: 1 | AP127: 1 | AQ127: 1 | AR127: 1 | AS127: 1 | AT127: 1 | AU127: 1 | AV127: 1 | AW127: 1 | AX127: 1 | AY127: 1 | AZ127: 1 | BA127: 1 | BB127: 1 | BC127: 1 | BD127: 1 | BE127: 1 | BF127: 1 | BG127: 1 | BH127: 1 | BI127: 1 | BJ127: 1
A128: 99 | B128: Ceramic goods | C128: 0 | F128: 125 | G128: p36 | H128: Furniture; other manufactured goods n.e.c. (36) | I128: 0 | J128: 0 | K128: 0 | L128: 0 | M128: 0 | N128: 0 | O128: 0 | P128: 0 | Q128: 0 | R128: 0 | S128: 0 | T128: 0 | U128: 0 | V128: 0 | W128: 0 | X128: 0 | Y128: 0 | Z128: 0 | AA128: 0 | AB128: 0 | AC128: 0 | AD128: 0 | AE128: 0 | AF128: 0 | AG128: 0 | AI128: 125 | AJ128: p36 | AK128: Furniture; other manufactured goods n.e.c. (36) | AL128: 1 | AM128: 1 | AN128: 1 | AO128: 1 | AP128: 1 | AQ128: 1 | AR128: 1 | AS128: 1 | AT128: 1 | AU128: 1 | AV128: 1 | AW128: 1 | AX128: 1 | AY128: 1 | AZ128: 1 | BA128: 1 | BB128: 1 | BC128: 1 | BD128: 1 | BE128: 1 | BF128: 1 | BG128: 1 | BH128: 1 | BI128: 1 | BJ128: 1
A129: 100 | B129: Bricks, tiles and construction products, in baked clay | C129: 0 | F129: 126 | G129: p37 | H129: Secondary raw materials | I129: 0 | J129: 0 | K129: 0 | L129: 0 | M129: 0 | N129: 0 | O129: 0 | P129: 0 | Q129: 0 | R129: 0 | S129: 0 | T129: 0 | U129: 0 | V129: 0 | W129: 0 | X129: 0 | Y129: 0 | Z129: 0 | AA129: 0 | AB129: 0 | AC129: 0 | AD129: 0 | AE129: 0 | AF129: 0 | AG129: 0 | AI129: 126 | AJ129: p37 | AK129: Secondary raw materials | AL129: 1 | AM129: 1 | AN129: 1 | AO129: 1 | AP129: 1 | AQ129: 1 | AR129: 1 | AS129: 1 | AT129: 1 | AU129: 1 | AV129: 1 | AW129: 1 | AX129: 1 | AY129: 1 | AZ129: 1 | BA129: 1 | BB129: 1 | BC129: 1 | BD129: 1 | BE129: 1 | BF129: 1 | BG129: 1 | BH129: 1 | BI129: 1 | BJ129: 1
A130: 101 | B130: Cement, lime and plaster | C130: 0 | F130: 127 | G130: p37.w.1 | H130: Bottles for treatment, Recycling of bottles by direct reuse | I130: 0 | J130: 0 | K130: 0 | L130: 0 | M130: 0 | N130: 0 | O130: 0 | P130: 0 | Q130: 0 | R130: 0 | S130: 0 | T130: 0 | U130: 0 | V130: 0 | W130: 0 | X130: 0 | Y130: 0 | Z130: 0 | AA130: 0 | AB130: 0 | AC130: 0 | AD130: 0 | AE130: 0 | AF130: 0 | AG130: 0 | AI130: 127 | AJ130: p37.w.1 | AK130: Bottles for treatment, Recycling of bottles by direct reuse | AL130: 1 | AM130: 1 | AN130: 1 | AO130: 1 | AP130: 1 | AQ130: 1 | AR130: 1 | AS130: 1 | AT130: 1 | AU130: 1 | AV130: 1 | AW130: 1 | AX130: 1 | AY130: 1 | AZ130: 1 | BA130: 1 | BB130: 1 | BC130: 1 | BD130: 1 | BE130: 1 | BF130: 1 | BG130: 1 | BH130: 1 | BI130: 1 | BJ130: 1
A131: 102 | B131: Ash for treatment, Re-processing of ash into clinker | C131: 0 | F131: 128 | G131: p40.11.a | H131: Electricity by coal | I131: 0 | J131: 0 | K131: 0 | L131: 0 | M131: 0 | N131: 0 | O131: 0 | P131: 0 | Q131: 0 | R131: 0 | S131: 0 | T131: 0 | U131: 0 | V131: 0 | W131: 0 | X131: 0 | Y131: 0 | Z131: 0 | AA131: 0 | AB131: 0 | AC131: 0 | AD131: 0 | AE131: 0 | AF131: 0 | AG131: 0 | AI131: 128 | AJ131: p40.11.a | AK131: Electricity by coal | AL131: 1 | AM131: 1 | AN131: 1 | AO131: 1 | AP131: 1 | AQ131: 1 | AR131: 1 | AS131: 1 | AT131: 1 | AU131: 1 | AV131: 1 | AW131: 1 | AX131: 1 | AY131: 1 | AZ131: 1 | BA131: 1 | BB131: 1 | BC131: 1 | BD131: 1 | BE131: 1 | BF131: 1 | BG131: 1 | BH131: 1 | BI131: 1 | BJ131: 1
A132: 103 | B132: Other non-metallic mineral products | C132: 0 | F132: 129 | G132: p40.11.b | H132: Electricity by gas | I132: 0 | J132: 0 | K132: 0 | L132: 0 | M132: 0 | N132: 0 | O132: 0 | P132: 0 | Q132: 0 | R132: 0 | S132: 0 | T132: 0 | U132: 0 | V132: 0 | W132: 0 | X132: 0 | Y132: 0 | Z132: 0 | AA132: 0 | AB132: 0 | AC132: 0 | AD132: 0 | AE132: 0 | AF132: 0 | AG132: 0 | AI132: 129 | AJ132: p40.11.b | AK132: Electricity by gas | AL132: 1 | AM132: 1 | AN132: 1 | AO132: 1 | AP132: 1 | AQ132: 1 | AR132: 1 | AS132: 1 | AT132: 1 | AU132: 1 | AV132: 1 | AW132: 1 | AX132: 1 | AY132: 1 | AZ132: 1 | BA132: 1 | BB132: 1 | BC132: 1 | BD132: 1 | BE132: 1 | BF132: 1 | BG132: 1 | BH132: 1 | BI132: 1 | BJ132: 1
A133: 104 | B133: Basic iron and steel and of ferro-alloys and first products thereof | C133: 0 | F133: =+F132+1 -> 130 | G133: p40.11.c | H133: Electricity by nuclear | I133: 0 | J133: 0 | K133: 0 | L133: 0 | M133: 0 | N133: 0 | O133: 0 | P133: 0 | Q133: 0 | R133: 0 | S133: 0 | T133: 0 | U133: 0 | V133: 0 | W133: 0 | X133: 0 | Y133: 0 | Z133: 0 | AA133: 0 | AB133: 0 | AC133: 0 | AD133: 0 | AE133: 0 | AF133: 0 | AG133: 0 | AI133: =+AI132+1 -> 130 | AJ133: p40.11.c | AK133: Electricity by nuclear | AL133: =IF(I133=1,0,1) -> 1 | AM133: =IF(J133=1,0,1) -> 1 | AN133: =IF(K133=1,0,1) -> 1 | AO133: =IF(L133=1,0,1) -> 1 | AP133: =IF(M133=1,0,1) -> 1 | AQ133: =IF(N133=1,0,1) -> 1 | AR133: =IF(O133=1,0,1) -> 1 | AS133: =IF(P133=1,0,1) -> 1 | AT133: =IF(Q133=1,0,1) -> 1 | AU133: =IF(R133=1,0,1) -> 1 | AV133: =IF(S133=1,0,1) -> 1 | AW133: =IF(T133=1,0,1) -> 1 | AX133: =IF(U133=1,0,1) -> 1 | AY133: =IF(V133=1,0,1) -> 1 | AZ133: =IF(W133=1,0,1) -> 1 | BA133: =IF(X133=1,0,1) -> 1 | BB133: =IF(Y133=1,0,1) -> 1 | BC133: =IF(Z133=1,0,1) -> 1 | BD133: =IF(AA133=1,0,1) -> 1 | BE133: =IF(AB133=1,0,1) -> 1 | BF133: =IF(AC133=1,0,1) -> 1 | BG133: =IF(AD133=1,0,1) -> 1 | BH133: =IF(AE133=1,0,1) -> 1 | BI133: =IF(AF133=1,0,1) -> 1 | BJ133: =IF(AG133=1,0,1) -> 1
A134: 105 | B134: Secondary steel for treatment, Re-processing of secondary steel into new steel | C134: 0 | F134: 131 | G134: p40.11.d | H134: Electricity by hydro | I134: 0 | J134: 0 | K134: 0 | L134: 0 | M134: 0 | N134: 0 | O134: 0 | P134: 0 | Q134: 0 | R134: 0 | S134: 0 | T134: 0 | U134: 0 | V134: 0 | W134: 0 | X134: 0 | Y134: 0 | Z134: 0 | AA134: 0 | AB134: 0 | AC134: 0 | AD134: 0 | AE134: 0 | AF134: 0 | AG134: 0 | AI134: 131 | AJ134: p40.11.d | AK134: Electricity by hydro | AL134: 1 | AM134: 1 | AN134: 1 | AO134: 1 | AP134: 1 | AQ134: 1 | AR134: 1 | AS134: 1 | AT134: 1 | AU134: 1 | AV134: 1 | AW134: 1 | AX134: 1 | AY134: 1 | AZ134: 1 | BA134: 1 | BB134: 1 | BC134: 1 | BD134: 1 | BE134: 1 | BF134: 1 | BG134: 1 | BH134: 1 | BI134: 1 | BJ134: 1
A135: 106 | B135: Precious metals | C135: 0 | F135: 132 | G135: p40.11.e | H135: Electricity by wind | I135: 0 | J135: 0 | K135: 0 | L135: 0 | M135: 0 | N135: 0 | O135: 0 | P135: 0 | Q135: 0 | R135: 0 | S135: 0 | T135: 0 | U135: 0 | V135: 0 | W135: 0 | X135: 0 | Y135: 0 | Z135: 0 | AA135: 0 | AB135: 0 | AC135: 0 | AD135: 0 | AE135: 0 | AF135: 0 | AG135: 0 | AI135: 132 | AJ135: p40.11.e | AK135: Electricity by wind | AL135: 1 | AM135: 1 | AN135: 1 | AO135: 1 | AP135: 1 | AQ135: 1 | AR135: 1 | AS135: 1 | AT135: 1 | AU135: 1 | AV135: 1 | AW135: 1 | AX135: 1 | AY135: 1 | AZ135: 1 | BA135: 1 | BB135: 1 | BC135: 1 | BD135: 1 | BE135: 1 | BF135: 1 | BG135: 1 | BH135: 1 | BI135: 1 | BJ135: 1
A136: 107 | B136: Secondary preciuos metals for treatment, Re-processing of secondary preciuos metals into new preciuos metals | C136: 0 | F136: 133 | G136: p40.11.f | H136: Electricity by petroleum and other oil derivatives | I136: 0 | J136: 0 | K136: 0 | L136: 0 | M136: 0 | N136: 0 | O136: 0 | P136: 0 | Q136: 0 | R136: 0 | S136: 0 | T136: 0 | U136: 0 | V136: 0 | W136: 0 | X136: 0 | Y136: 0 | Z136: 0 | AA136: 0 | AB136: 0 | AC136: 0 | AD136: 0 | AE136: 0 | AF136: 0 | AG136: 0 | AI136: 133 | AJ136: p40.11.f | AK136: Electricity by petroleum and other oil derivatives | AL136: 1 | AM136: 1 | AN136: 1 | AO136: 1 | AP136: 1 | AQ136: 1 | AR136: 1 | AS136: 1 | AT136: 1 | AU136: 1 | AV136: 1 | AW136: 1 | AX136: 1 | AY136: 1 | AZ136: 1 | BA136: 1 | BB136: 1 | BC136: 1 | BD136: 1 | BE136: 1 | BF136: 1 | BG136: 1 | BH136: 1 | BI136: 1 | BJ136: 1
A137: 108 | B137: Aluminium and aluminium products | C137: 0 | F137: 134 | G137: p40.11.g | H137: Electricity by biomass and waste | I137: 0 | J137: 0 | K137: 0 | L137: 0 | M137: 0 | N137: 0 | O137: 0 | P137: 0 | Q137: 0 | R137: 0 | S137: 0 | T137: 0 | U137: 0 | V137: 0 | W137: 0 | X137: 0 | Y137: 0 | Z137: 0 | AA137: 0 | AB137: 0 | AC137: 0 | AD137: 0 | AE137: 0 | AF137: 0 | AG137: 0 | AI137: 134 | AJ137: p40.11.g | AK137: Electricity by biomass and waste | AL137: 1 | AM137: 1 | AN137: 1 | AO137: 1 | AP137: 1 | AQ137: 1 | AR137: 1 | AS137: 1 | AT137: 1 | AU137: 1 | AV137: 1 | AW137: 1 | AX137: 1 | AY137: 1 | AZ137: 1 | BA137: 1 | BB137: 1 | BC137: 1 | BD137: 1 | BE137: 1 | BF137: 1 | BG137: 1 | BH137: 1 | BI137: 1 | BJ137: 1
A138: 109 | B138: Secondary aluminium for treatment, Re-processing of secondary aluminium into new aluminium | C138: 0 | F138: 135 | G138: p40.11.h | H138: Electricity by solar photovoltaic | I138: 0 | J138: 0 | K138: 0 | L138: 0 | M138: 0 | N138: 0 | O138: 0 | P138: 0 | Q138: 0 | R138: 0 | S138: 0 | T138: 0 | U138: 0 | V138: 0 | W138: 0 | X138: 0 | Y138: 0 | Z138: 0 | AA138: 0 | AB138: 0 | AC138: 0 | AD138: 0 | AE138: 0 | AF138: 0 | AG138: 0 | AI138: 135 | AJ138: p40.11.h | AK138: Electricity by solar photovoltaic | AL138: 1 | AM138: 1 | AN138: 1 | AO138: 1 | AP138: 1 | AQ138: 1 | AR138: 1 | AS138: 1 | AT138: 1 | AU138: 1 | AV138: 1 | AW138: 1 | AX138: 1 | AY138: 1 | AZ138: 1 | BA138: 1 | BB138: 1 | BC138: 1 | BD138: 1 | BE138: 1 | BF138: 1 | BG138: 1 | BH138: 1 | BI138: 1 | BJ138: 1
A139: 110 | B139: Lead, zinc and tin and products thereof | C139: 0 | F139: 136 | G139: p40.11.i | H139: Electricity by solar thermal | I139: 0 | J139: 0 | K139: 0 | L139: 0 | M139: 0 | N139: 0 | O139: 0 | P139: 0 | Q139: 0 | R139: 0 | S139: 0 | T139: 0 | U139: 0 | V139: 0 | W139: 0 | X139: 0 | Y139: 0 | Z139: 0 | AA139: 0 | AB139: 0 | AC139: 0 | AD139: 0 | AE139: 0 | AF139: 0 | AG139: 0 | AI139: 136 | AJ139: p40.11.i | AK139: Electricity by solar thermal | AL139: 1 | AM139: 1 | AN139: 1 | AO139: 1 | AP139: 1 | AQ139: 1 | AR139: 1 | AS139: 1 | AT139: 1 | AU139: 1 | AV139: 1 | AW139: 1 | AX139: 1 | AY139: 1 | AZ139: 1 | BA139: 1 | BB139: 1 | BC139: 1 | BD139: 1 | BE139: 1 | BF139: 1 | BG139: 1 | BH139: 1 | BI139: 1 | BJ139: 1
A140: 111 | B140: Secondary lead for treatment, Re-processing of secondary lead into new lead | C140: 0 | F140: 137 | G140: p40.11.j | H140: Electricity by tide, wave, ocean | I140: 0 | J140: 0 | K140: 0 | L140: 0 | M140: 0 | N140: 0 | O140: 0 | P140: 0 | Q140: 0 | R140: 0 | S140: 0 | T140: 0 | U140: 0 | V140: 0 | W140: 0 | X140: 0 | Y140: 0 | Z140: 0 | AA140: 0 | AB140: 0 | AC140: 0 | AD140: 0 | AE140: 0 | AF140: 0 | AG140: 0 | AI140: 137 | AJ140: p40.11.j | AK140: Electricity by tide, wave, ocean | AL140: 1 | AM140: 1 | AN140: 1 | AO140: 1 | AP140: 1 | AQ140: 1 | AR140: 1 | AS140: 1 | AT140: 1 | AU140: 1 | AV140: 1 | AW140: 1 | AX140: 1 | AY140: 1 | AZ140: 1 | BA140: 1 | BB140: 1 | BC140: 1 | BD140: 1 | BE140: 1 | BF140: 1 | BG140: 1 | BH140: 1 | BI140: 1 | BJ140: 1
A141: 112 | B141: Copper products | C141: 0 | F141: 138 | G141: p40.11.k | H141: Electricity by Geothermal | I141: 0 | J141: 0 | K141: 0 | L141: 0 | M141: 0 | N141: 0 | O141: 0 | P141: 0 | Q141: 0 | R141: 0 | S141: 0 | T141: 0 | U141: 0 | V141: 0 | W141: 0 | X141: 0 | Y141: 0 | Z141: 0 | AA141: 0 | AB141: 0 | AC141: 0 | AD141: 0 | AE141: 0 | AF141: 0 | AG141: 0 | AI141: 138 | AJ141: p40.11.k | AK141: Electricity by Geothermal | AL141: 1 | AM141: 1 | AN141: 1 | AO141: 1 | AP141: 1 | AQ141: 1 | AR141: 1 | AS141: 1 | AT141: 1 | AU141: 1 | AV141: 1 | AW141: 1 | AX141: 1 | AY141: 1 | AZ141: 1 | BA141: 1 | BB141: 1 | BC141: 1 | BD141: 1 | BE141: 1 | BF141: 1 | BG141: 1 | BH141: 1 | BI141: 1 | BJ141: 1
A142: 113 | B142: Secondary copper for treatment, Re-processing of secondary copper into new copper | C142: 0 | F142: 139 | G142: p40.11.l | H142: Electricity nec | I142: 0 | J142: 0 | K142: 0 | L142: 0 | M142: 0 | N142: 0 | O142: 0 | P142: 0 | Q142: 0 | R142: 0 | S142: 0 | T142: 0 | U142: 0 | V142: 0 | W142: 0 | X142: 0 | Y142: 0 | Z142: 0 | AA142: 0 | AB142: 0 | AC142: 0 | AD142: 0 | AE142: 0 | AF142: 0 | AG142: 0 | AI142: 139 | AJ142: p40.11.l | AK142: Electricity nec | AL142: 1 | AM142: 1 | AN142: 1 | AO142: 1 | AP142: 1 | AQ142: 1 | AR142: 1 | AS142: 1 | AT142: 1 | AU142: 1 | AV142: 1 | AW142: 1 | AX142: 1 | AY142: 1 | AZ142: 1 | BA142: 1 | BB142: 1 | BC142: 1 | BD142: 1 | BE142: 1 | BF142: 1 | BG142: 1 | BH142: 1 | BI142: 1 | BJ142: 1
A143: 114 | B143: Other non-ferrous metal products | C143: 0 | F143: 140 | G143: p40.12 | H143: Transmission services of electricity | I143: 0 | J143: 0 | K143: 0 | L143: 0 | M143: 0 | N143: 0 | O143: 0 | P143: 0 | Q143: 0 | R143: 0 | S143: 0 | T143: 0 | U143: 0 | V143: 0 | W143: 0 | X143: 0 | Y143: 0 | Z143: 0 | AA143: 0 | AB143: 0 | AC143: 0 | AD143: 0 | AE143: 0 | AF143: 0 | AG143: 0 | AI143: 140 | AJ143: p40.12 | AK143: Transmission services of electricity | AL143: 1 | AM143: 1 | AN143: 1 | AO143: 1 | AP143: 1 | AQ143: 1 | AR143: 1 | AS143: 1 | AT143: 1 | AU143: 1 | AV143: 1 | AW143: 1 | AX143: 1 | AY143: 1 | AZ143: 1 | BA143: 1 | BB143: 1 | BC143: 1 | BD143: 1 | BE143: 1 | BF143: 1 | BG143: 1 | BH143: 1 | BI143: 1 | BJ143: 1
A144: 115 | B144: Secondary other non-ferrous metals for treatment, Re-processing of secondary other non-ferrous metals into new other non-ferrous metals | C144: 0 | F144: 141 | G144: p40.13 | H144: Distribution and trade services of electricity | I144: 0 | J144: 0 | K144: 0 | L144: 0 | M144: 0 | N144: 0 | O144: 0 | P144: 0 | Q144: 0 | R144: 0 | S144: 0 | T144: 0 | U144: 0 | V144: 0 | W144: 0 | X144: 0 | Y144: 0 | Z144: 0 | AA144: 0 | AB144: 0 | AC144: 0 | AD144: 0 | AE144: 0 | AF144: 0 | AG144: 0 | AI144: 141 | AJ144: p40.13 | AK144: Distribution and trade services of electricity | AL144: 1 | AM144: 1 | AN144: 1 | AO144: 1 | AP144: 1 | AQ144: 1 | AR144: 1 | AS144: 1 | AT144: 1 | AU144: 1 | AV144: 1 | AW144: 1 | AX144: 1 | AY144: 1 | AZ144: 1 | BA144: 1 | BB144: 1 | BC144: 1 | BD144: 1 | BE144: 1 | BF144: 1 | BG144: 1 | BH144: 1 | BI144: 1 | BJ144: 1
A145: 116 | B145: Foundry work services | C145: 0 | F145: 142 | G145: p40.2.a | H145: Coke oven gas | I145: 0 | J145: 0 | K145: 0 | L145: 0 | M145: 0 | N145: 0 | O145: 0 | P145: 0 | Q145: 0 | R145: 0 | S145: 0 | T145: 0 | U145: 0 | V145: 0 | W145: 0 | X145: 0 | Y145: 0 | Z145: 0 | AA145: 0 | AB145: 0 | AC145: 0 | AD145: 0 | AE145: 0 | AF145: 0 | AG145: 0 | AI145: 142 | AJ145: p40.2.a | AK145: Coke oven gas | AL145: 1 | AM145: 1 | AN145: 1 | AO145: 1 | AP145: 1 | AQ145: 1 | AR145: 1 | AS145: 1 | AT145: 1 | AU145: 1 | AV145: 1 | AW145: 1 | AX145: 1 | AY145: 1 | AZ145: 1 | BA145: 1 | BB145: 1 | BC145: 1 | BD145: 1 | BE145: 1 | BF145: 1 | BG145: 1 | BH145: 1 | BI145: 1 | BJ145: 1
A146: 117 | B146: Fabricated metal products, except machinery and equipment (28) | C146: 0 | F146: 143 | G146: p40.2.b | H146: Blast Furnace Gas | I146: 0 | J146: 0 | K146: 0 | L146: 0 | M146: 0 | N146: 0 | O146: 0 | P146: 0 | Q146: 0 | R146: 0 | S146: 0 | T146: 0 | U146: 0 | V146: 0 | W146: 0 | X146: 0 | Y146: 0 | Z146: 0 | AA146: 0 | AB146: 0 | AC146: 0 | AD146: 0 | AE146: 0 | AF146: 0 | AG146: 0 | AI146: 143 | AJ146: p40.2.b | AK146: Blast Furnace Gas | AL146: 1 | AM146: 1 | AN146: 1 | AO146: 1 | AP146: 1 | AQ146: 1 | AR146: 1 | AS146: 1 | AT146: 1 | AU146: 1 | AV146: 1 | AW146: 1 | AX146: 1 | AY146: 1 | AZ146: 1 | BA146: 1 | BB146: 1 | BC146: 1 | BD146: 1 | BE146: 1 | BF146: 1 | BG146: 1 | BH146: 1 | BI146: 1 | BJ146: 1
A147: 118 | B147: Machinery and equipment n.e.c. (29) | C147: 0 | F147: 144 | G147: p40.2.c | H147: Oxygen Steel Furnace Gas | I147: 0 | J147: 0 | K147: 0 | L147: 0 | M147: 0 | N147: 0 | O147: 0 | P147: 0 | Q147: 0 | R147: 0 | S147: 0 | T147: 0 | U147: 0 | V147: 0 | W147: 0 | X147: 0 | Y147: 0 | Z147: 0 | AA147: 0 | AB147: 0 | AC147: 0 | AD147: 0 | AE147: 0 | AF147: 0 | AG147: 0 | AI147: 144 | AJ147: p40.2.c | AK147: Oxygen Steel Furnace Gas | AL147: 1 | AM147: 1 | AN147: 1 | AO147: 1 | AP147: 1 | AQ147: 1 | AR147: 1 | AS147: 1 | AT147: 1 | AU147: 1 | AV147: 1 | AW147: 1 | AX147: 1 | AY147: 1 | AZ147: 1 | BA147: 1 | BB147: 1 | BC147: 1 | BD147: 1 | BE147: 1 | BF147: 1 | BG147: 1 | BH147: 1 | BI147: 1 | BJ147: 1
A148: 119 | B148: Office machinery and computers (30) | C148: 0 | F148: 145 | G148: p40.2.d | H148: Gas Works Gas | I148: 0 | J148: 0 | K148: 0 | L148: 0 | M148: 0 | N148: 0 | O148: 0 | P148: 0 | Q148: 0 | R148: 0 | S148: 0 | T148: 0 | U148: 0 | V148: 0 | W148: 0 | X148: 0 | Y148: 0 | Z148: 0 | AA148: 0 | AB148: 0 | AC148: 0 | AD148: 0 | AE148: 0 | AF148: 0 | AG148: 0 | AI148: 145 | AJ148: p40.2.d | AK148: Gas Works Gas | AL148: 1 | AM148: 1 | AN148: 1 | AO148: 1 | AP148: 1 | AQ148: 1 | AR148: 1 | AS148: 1 | AT148: 1 | AU148: 1 | AV148: 1 | AW148: 1 | AX148: 1 | AY148: 1 | AZ148: 1 | BA148: 1 | BB148: 1 | BC148: 1 | BD148: 1 | BE148: 1 | BF148: 1 | BG148: 1 | BH148: 1 | BI148: 1 | BJ148: 1
A149: 120 | B149: Electrical machinery and apparatus n.e.c. (31) | C149: 0 | F149: 146 | G149: p40.2.e | H149: Biogas | I149: 0 | J149: 0 | K149: 0 | L149: 0 | M149: 0 | N149: 0 | O149: 0 | P149: 0 | Q149: 0 | R149: 0 | S149: 0 | T149: 0 | U149: 0 | V149: 0 | W149: 0 | X149: 0 | Y149: 0 | Z149: 0 | AA149: 0 | AB149: 0 | AC149: 0 | AD149: 0 | AE149: 0 | AF149: 0 | AG149: 0 | AI149: 146 | AJ149: p40.2.e | AK149: Biogas | AL149: 1 | AM149: 1 | AN149: 1 | AO149: 1 | AP149: 1 | AQ149: 1 | AR149: 1 | AS149: 1 | AT149: 1 | AU149: 1 | AV149: 1 | AW149: 1 | AX149: 1 | AY149: 1 | AZ149: 1 | BA149: 1 | BB149: 1 | BC149: 1 | BD149: 1 | BE149: 1 | BF149: 1 | BG149: 1 | BH149: 1 | BI149: 1 | BJ149: 1
A150: 121 | B150: Radio, television and communication equipment and apparatus (32) | C150: 0 | F150: 147 | G150: p40.2.1 | H150: Distribution services of gaseous fuels through mains | I150: 0 | J150: 0 | K150: 0 | L150: 0 | M150: 0 | N150: 0 | O150: 0 | P150: 0 | Q150: 0 | R150: 0 | S150: 0 | T150: 0 | U150: 0 | V150: 0 | W150: 0 | X150: 0 | Y150: 0 | Z150: 0 | AA150: 0 | AB150: 0 | AC150: 0 | AD150: 0 | AE150: 0 | AF150: 0 | AG150: 0 | AI150: 147 | AJ150: p40.2.1 | AK150: Distribution services of gaseous fuels through mains | AL150: 1 | AM150: 1 | AN150: 1 | AO150: 1 | AP150: 1 | AQ150: 1 | AR150: 1 | AS150: 1 | AT150: 1 | AU150: 1 | AV150: 1 | AW150: 1 | AX150: 1 | AY150: 1 | AZ150: 1 | BA150: 1 | BB150: 1 | BC150: 1 | BD150: 1 | BE150: 1 | BF150: 1 | BG150: 1 | BH150: 1 | BI150: 1 | BJ150: 1
A151: 122 | B151: Medical, precision and optical instruments, watches and clocks (33) | C151: 0 | F151: 148 | G151: p40.3 | H151: Steam and hot water supply services | I151: 0 | J151: 0 | K151: 0 | L151: 0 | M151: 0 | N151: 0 | O151: 0 | P151: 0 | Q151: 0 | R151: 0 | S151: 0 | T151: 0 | U151: 0 | V151: 0 | W151: 0 | X151: 0 | Y151: 0 | Z151: 0 | AA151: 0 | AB151: 0 | AC151: 0 | AD151: 0 | AE151: 0 | AF151: 0 | AG151: 0 | AI151: 148 | AJ151: p40.3 | AK151: Steam and hot water supply services | AL151: 1 | AM151: 1 | AN151: 1 | AO151: 1 | AP151: 1 | AQ151: 1 | AR151: 1 | AS151: 1 | AT151: 1 | AU151: 1 | AV151: 1 | AW151: 1 | AX151: 1 | AY151: 1 | AZ151: 1 | BA151: 1 | BB151: 1 | BC151: 1 | BD151: 1 | BE151: 1 | BF151: 1 | BG151: 1 | BH151: 1 | BI151: 1 | BJ151: 1
A152: 123 | B152: Motor vehicles, trailers and semi-trailers (34) | C152: 0 | F152: 149 | G152: p41 | H152: Collected and purified water, distribution services of water (41) | I152: 0 | J152: 0 | K152: 0 | L152: 0 | M152: 0 | N152: 0 | O152: 0 | P152: 0 | Q152: 0 | R152: 0 | S152: 0 | T152: 0 | U152: 0 | V152: 0 | W152: 0 | X152: 0 | Y152: 0 | Z152: 0 | AA152: 0 | AB152: 0 | AC152: 0 | AD152: 0 | AE152: 0 | AF152: 0 | AG152: 0 | AI152: 149 | AJ152: p41 | AK152: Collected and purified water, distribution services of water (41) | AL152: 1 | AM152: 1 | AN152: 1 | AO152: 1 | AP152: 1 | AQ152: 1 | AR152: 1 | AS152: 1 | AT152: 1 | AU152: 1 | AV152: 1 | AW152: 1 | AX152: 1 | AY152: 1 | AZ152: 1 | BA152: 1 | BB152: 1 | BC152: 1 | BD152: 1 | BE152: 1 | BF152: 1 | BG152: 1 | BH152: 1 | BI152: 1 | BJ152: 1
A153: 124 | B153: Other transport equipment (35) | C153: 0 | F153: 150 | G153: p45 | H153: Construction work (45) | I153: 0 | J153: 0 | K153: 0 | L153: 0 | M153: 0 | N153: 0 | O153: 0 | P153: 0 | Q153: 0 | R153: 0 | S153: 0 | T153: 0 | U153: 0 | V153: 0 | W153: 0 | X153: 0 | Y153: 0 | Z153: 0 | AA153: 0 | AB153: 0 | AC153: 0 | AD153: 0 | AE153: 0 | AF153: 0 | AG153: 0 | AI153: 150 | AJ153: p45 | AK153: Construction work (45) | AL153: 1 | AM153: 1 | AN153: 1 | AO153: 1 | AP153: 1 | AQ153: 1 | AR153: 1 | AS153: 1 | AT153: 1 | AU153: 1 | AV153: 1 | AW153: 1 | AX153: 1 | AY153: 1 | AZ153: 1 | BA153: 1 | BB153: 1 | BC153: 1 | BD153: 1 | BE153: 1 | BF153: 1 | BG153: 1 | BH153: 1 | BI153: 1 | BJ153: 1
A154: 125 | B154: Furniture; other manufactured goods n.e.c. (36) | C154: 0 | F154: 151 | G154: p45.w | H154: Secondary construction material for treatment, Re-processing of secondary construction material into aggregates | I154: 0 | J154: 0 | K154: 0 | L154: 0 | M154: 0 | N154: 0 | O154: 0 | P154: 0 | Q154: 0 | R154: 0 | S154: 0 | T154: 0 | U154: 0 | V154: 0 | W154: 0 | X154: 0 | Y154: 0 | Z154: 0 | AA154: 0 | AB154: 0 | AC154: 0 | AD154: 0 | AE154: 0 | AF154: 0 | AG154: 0 | AI154: 151 | AJ154: p45.w | AK154: Secondary construction material for treatment, Re-processing of secondary construction material into aggregates | AL154: 1 | AM154: 1 | AN154: 1 | AO154: 1 | AP154: 1 | AQ154: 1 | AR154: 1 | AS154: 1 | AT154: 1 | AU154: 1 | AV154: 1 | AW154: 1 | AX154: 1 | AY154: 1 | AZ154: 1 | BA154: 1 | BB154: 1 | BC154: 1 | BD154: 1 | BE154: 1 | BF154: 1 | BG154: 1 | BH154: 1 | BI154: 1 | BJ154: 1
A155: 126 | B155: Secondary raw materials | C155: 0 | F155: 152 | G155: p50.a | H155: Sale, maintenance, repair of motor vehicles, motor vehicles parts, motorcycles, motor cycles parts and accessoiries | I155: 0 | J155: 0 | K155: 0 | L155: 0 | M155: 0 | N155: 0 | O155: 0 | P155: 0 | Q155: 0 | R155: 0 | S155: 0 | T155: 0 | U155: 0 | V155: 0 | W155: 0 | X155: 0 | Y155: 0 | Z155: 0 | AA155: 0 | AB155: 0 | AC155: 0 | AD155: 0 | AE155: 0 | AF155: 0 | AG155: 0 | AI155: 152 | AJ155: p50.a | AK155: Sale, maintenance, repair of motor vehicles, motor vehicles parts, motorcycles, motor cycles parts and accessoiries | AL155: 1 | AM155: 1 | AN155: 1 | AO155: 1 | AP155: 1 | AQ155: 1 | AR155: 1 | AS155: 1 | AT155: 1 | AU155: 1 | AV155: 1 | AW155: 1 | AX155: 1 | AY155: 1 | AZ155: 1 | BA155: 1 | BB155: 1 | BC155: 1 | BD155: 1 | BE155: 1 | BF155: 1 | BG155: 1 | BH155: 1 | BI155: 1 | BJ155: 1
A156: 127 | B156: Bottles for treatment, Recycling of bottles by direct reuse | C156: 0 | F156: 153 | G156: p50.b | H156: Retail trade services of motor fuel | I156: 0 | J156: 0 | K156: 0 | L156: 0 | M156: 0 | N156: 0 | O156: 0 | P156: 0 | Q156: 0 | R156: 0 | S156: 0 | T156: 0 | U156: 0 | V156: 0 | W156: 0 | X156: 0 | Y156: 0 | Z156: 0 | AA156: 0 | AB156: 0 | AC156: 0 | AD156: 0 | AE156: 0 | AF156: 0 | AG156: 0 | AI156: 153 | AJ156: p50.b | AK156: Retail trade services of motor fuel | AL156: 1 | AM156: 1 | AN156: 1 | AO156: 1 | AP156: 1 | AQ156: 1 | AR156: 1 | AS156: 1 | AT156: 1 | AU156: 1 | AV156: 1 | AW156: 1 | AX156: 1 | AY156: 1 | AZ156: 1 | BA156: 1 | BB156: 1 | BC156: 1 | BD156: 1 | BE156: 1 | BF156: 1 | BG156: 1 | BH156: 1 | BI156: 1 | BJ156: 1
A157: 128 | B157: Electricity by coal | C157: 0.008974444471 | F157: 154 | G157: p51 | H157: Wholesale trade and commission trade services, except of motor vehicles and motorcycles (51) | I157: 0 | J157: 0 | K157: 0 | L157: 0 | M157: 0 | N157: 0 | O157: 0 | P157: 0 | Q157: 0 | R157: 0 | S157: 0 | T157: 0 | U157: 0 | V157: 0 | W157: 0 | X157: 0 | Y157: 0 | Z157: 0 | AA157: 0 | AB157: 0 | AC157: 0 | AD157: 0 | AE157: 0 | AF157: 0 | AG157: 0 | AI157: 154 | AJ157: p51 | AK157: Wholesale trade and commission trade services, except of motor vehicles and motorcycles (51) | AL157: 1 | AM157: 1 | AN157: 1 | AO157: 1 | AP157: 1 | AQ157: 1 | AR157: 1 | AS157: 1 | AT157: 1 | AU157: 1 | AV157: 1 | AW157: 1 | AX157: 1 | AY157: 1 | AZ157: 1 | BA157: 1 | BB157: 1 | BC157: 1 | BD157: 1 | BE157: 1 | BF157: 1 | BG157: 1 | BH157: 1 | BI157: 1 | BJ157: 1
A158: 129 | B158: Electricity by gas | C158: 0.01427959351 | F158: 155 | G158: p52 | H158: Retail trade services, except of motor vehicles and motorcycles; repair services of personal and household goods (52) | I158: 0 | J158: 0 | K158: 0 | L158: 0 | M158: 0 | N158: 0 | O158: 0 | P158: 0 | Q158: 0 | R158: 0 | S158: 0 | T158: 0 | U158: 0 | V158: 0 | W158: 0 | X158: 0 | Y158: 0 | Z158: 0 | AA158: 0 | AB158: 0 | AC158: 0 | AD158: 0 | AE158: 0 | AF158: 0 | AG158: 0 | AI158: 155 | AJ158: p52 | AK158: Retail trade services, except of motor vehicles and motorcycles; repair services of personal and household goods (52) | AL158: 1 | AM158: 1 | AN158: 1 | AO158: 1 | AP158: 1 | AQ158: 1 | AR158: 1 | AS158: 1 | AT158: 1 | AU158: 1 | AV158: 1 | AW158: 1 | AX158: 1 | AY158: 1 | AZ158: 1 | BA158: 1 | BB158: 1 | BC158: 1 | BD158: 1 | BE158: 1 | BF158: 1 | BG158: 1 | BH158: 1 | BI158: 1 | BJ158: 1
A159: 130 | B159: Electricity by nuclear | C159: 0.004272534274 | F159: 156 | G159: p55 | H159: Hotel and restaurant services (55) | I159: 0 | J159: 0 | K159: 0 | L159: 0 | M159: 0 | N159: 0 | O159: 0 | P159: 0 | Q159: 0 | R159: 0 | S159: 0 | T159: 0 | U159: 0 | V159: 0 | W159: 0 | X159: 0 | Y159: 0 | Z159: 0 | AA159: 0 | AB159: 0 | AC159: 0 | AD159: 0 | AE159: 0 | AF159: 0 | AG159: 0 | AI159: 156 | AJ159: p55 | AK159: Hotel and restaurant services (55) | AL159: 0 | AM159: 0 | AN159: 0 | AO159: 0 | AP159: 0 | AQ159: 0 | AR159: 0 | AS159: 0 | AT159: 0 | AU159: 0 | AV159: 0 | AW159: 0 | AX159: 0 | AY159: 0 | AZ159: 0 | BA159: 0 | BB159: 0 | BC159: 0 | BD159: 0 | BE159: 0 | BF159: 0 | BG159: 0 | BH159: 0 | BI159: 0 | BJ159: 0
A160: 131 | B160: Electricity by hydro | C160: 0.0132575457 | F160: 157 | G160: p60.1 | H160: Railway transportation services | I160: 0 | J160: 0 | K160: 0 | L160: 0 | M160: 0 | N160: 0 | O160: 0 | P160: 0 | Q160: 0 | R160: 0 | S160: 0 | T160: 0 | U160: 0 | V160: 0 | W160: 0 | X160: 0 | Y160: 0 | Z160: 0 | AA160: 0 | AB160: 0 | AC160: 0 | AD160: 0 | AE160: 0 | AF160: 0 | AG160: 0 | AI160: 157 | AJ160: p60.1 | AK160: Railway transportation services | AL160: 1 | AM160: 1 | AN160: 1 | AO160: 1 | AP160: 1 | AQ160: 1 | AR160: 1 | AS160: 1 | AT160: 1 | AU160: 1 | AV160: 1 | AW160: 1 | AX160: 1 | AY160: 1 | AZ160: 1 | BA160: 1 | BB160: 1 | BC160: 1 | BD160: 1 | BE160: 1 | BF160: 1 | BG160: 1 | BH160: 1 | BI160: 1 | BJ160: 1
A161: 132 | B161: Electricity by wind | C161: 0.01475862082 | F161: 158 | G161: p60.2 | H161: Other land transportation services | I161: 0 | J161: 0 | K161: 0 | L161: 0 | M161: 0 | N161: 0 | O161: 0 | P161: 0 | Q161: 0 | R161: 0 | S161: 0 | T161: 0 | U161: 0 | V161: 0 | W161: 0 | X161: 0 | Y161: 0 | Z161: 0 | AA161: 0 | AB161: 0 | AC161: 0 | AD161: 0 | AE161: 0 | AF161: 0 | AG161: 0 | AI161: 158 | AJ161: p60.2 | AK161: Other land transportation services | AL161: 1 | AM161: 1 | AN161: 1 | AO161: 1 | AP161: 1 | AQ161: 1 | AR161: 1 | AS161: 1 | AT161: 1 | AU161: 1 | AV161: 1 | AW161: 1 | AX161: 1 | AY161: 1 | AZ161: 1 | BA161: 1 | BB161: 1 | BC161: 1 | BD161: 1 | BE161: 1 | BF161: 1 | BG161: 1 | BH161: 1 | BI161: 1 | BJ161: 1
A162: 133 | B162: Electricity by petroleum and other oil derivatives | C162: 0.01487894844 | F162: 159 | G162: p60.3 | H162: Transportation services via pipelines | I162: 0 | J162: 0 | K162: 0 | L162: 0 | M162: 0 | N162: 0 | O162: 0 | P162: 0 | Q162: 0 | R162: 0 | S162: 0 | T162: 0 | U162: 0 | V162: 0 | W162: 0 | X162: 0 | Y162: 0 | Z162: 0 | AA162: 0 | AB162: 0 | AC162: 0 | AD162: 0 | AE162: 0 | AF162: 0 | AG162: 0 | AI162: 159 | AJ162: p60.3 | AK162: Transportation services via pipelines | AL162: 1 | AM162: 1 | AN162: 1 | AO162: 1 | AP162: 1 | AQ162: 1 | AR162: 1 | AS162: 1 | AT162: 1 | AU162: 1 | AV162: 1 | AW162: 1 | AX162: 1 | AY162: 1 | AZ162: 1 | BA162: 1 | BB162: 1 | BC162: 1 | BD162: 1 | BE162: 1 | BF162: 1 | BG162: 1 | BH162: 1 | BI162: 1 | BJ162: 1
A163: 134 | B163: Electricity by biomass and waste | C163: 0.006549327138 | F163: 160 | G163: p61.1 | H163: Sea and coastal water transportation services | I163: 0 | J163: 0 | K163: 0 | L163: 0 | M163: 0 | N163: 0 | O163: 0 | P163: 0 | Q163: 0 | R163: 0 | S163: 0 | T163: 0 | U163: 0 | V163: 0 | W163: 0 | X163: 0 | Y163: 0 | Z163: 0 | AA163: 0 | AB163: 0 | AC163: 0 | AD163: 0 | AE163: 0 | AF163: 0 | AG163: 0 | AI163: 160 | AJ163: p61.1 | AK163: Sea and coastal water transportation services | AL163: 1 | AM163: 1 | AN163: 1 | AO163: 1 | AP163: 1 | AQ163: 1 | AR163: 1 | AS163: 1 | AT163: 1 | AU163: 1 | AV163: 1 | AW163: 1 | AX163: 1 | AY163: 1 | AZ163: 1 | BA163: 1 | BB163: 1 | BC163: 1 | BD163: 1 | BE163: 1 | BF163: 1 | BG163: 1 | BH163: 1 | BI163: 1 | BJ163: 1
A164: 135 | B164: Electricity by solar photovoltaic | C164: 0.01321423526 | F164: 161 | G164: p61.2 | H164: Inland water transportation services | I164: 0 | J164: 0 | K164: 0 | L164: 0 | M164: 0 | N164: 0 | O164: 0 | P164: 0 | Q164: 0 | R164: 0 | S164: 0 | T164: 0 | U164: 0 | V164: 0 | W164: 0 | X164: 0 | Y164: 0 | Z164: 0 | AA164: 0 | AB164: 0 | AC164: 0 | AD164: 0 | AE164: 0 | AF164: 0 | AG164: 0 | AI164: 161 | AJ164: p61.2 | AK164: Inland water transportation services | AL164: 1 | AM164: 1 | AN164: 1 | AO164: 1 | AP164: 1 | AQ164: 1 | AR164: 1 | AS164: 1 | AT164: 1 | AU164: 1 | AV164: 1 | AW164: 1 | AX164: 1 | AY164: 1 | AZ164: 1 | BA164: 1 | BB164: 1 | BC164: 1 | BD164: 1 | BE164: 1 | BF164: 1 | BG164: 1 | BH164: 1 | BI164: 1 | BJ164: 1
A165: 136 | B165: Electricity by solar thermal | C165: 1.134097108e-05 | F165: =+F164+1 -> 162 | G165: p62 | H165: Air transport services (62) | I165: 0 | J165: 0 | K165: 0 | L165: 0 | M165: 0 | N165: 0 | O165: 0 | P165: 0 | Q165: 0 | R165: 0 | S165: 0 | T165: 0 | U165: 0 | V165: 0 | W165: 0 | X165: 0 | Y165: 0 | Z165: 0 | AA165: 0 | AB165: 0 | AC165: 0 | AD165: 0 | AE165: 0 | AF165: 0 | AG165: 0 | AI165: 162 | AJ165: p62 | AK165: Air transport services (62) | AL165: 1 | AM165: 1 | AN165: 1 | AO165: 1 | AP165: 1 | AQ165: 1 | AR165: 1 | AS165: 1 | AT165: 1 | AU165: 1 | AV165: 1 | AW165: 1 | AX165: 1 | AY165: 1 | AZ165: 1 | BA165: 1 | BB165: 1 | BC165: 1 | BD165: 1 | BE165: 1 | BF165: 1 | BG165: 1 | BH165: 1 | BI165: 1 | BJ165: 1
A166: 137 | B166: Electricity by tide, wave, ocean | C166: 0.03756697461 | F166: 163 | G166: p63 | H166: Supporting and auxiliary transport services; travel agency services (63) | I166: 0 | J166: 0 | K166: 0 | L166: 0 | M166: 0 | N166: 0 | O166: 0 | P166: 0 | Q166: 0 | R166: 0 | S166: 0 | T166: 0 | U166: 0 | V166: 0 | W166: 0 | X166: 0 | Y166: 0 | Z166: 0 | AA166: 0 | AB166: 0 | AC166: 0 | AD166: 0 | AE166: 0 | AF166: 0 | AG166: 0 | AI166: 163 | AJ166: p63 | AK166: Supporting and auxiliary transport services; travel agency services (63) | AL166: 1 | AM166: 1 | AN166: 1 | AO166: 1 | AP166: 1 | AQ166: 1 | AR166: 1 | AS166: 1 | AT166: 1 | AU166: 1 | AV166: 1 | AW166: 1 | AX166: 1 | AY166: 1 | AZ166: 1 | BA166: 1 | BB166: 1 | BC166: 1 | BD166: 1 | BE166: 1 | BF166: 1 | BG166: 1 | BH166: 1 | BI166: 1 | BJ166: 1
A167: 138 | B167: Electricity by Geothermal | C167: 0.001487032251 | F167: 164 | G167: p64 | H167: Post and telecommunication services (64) | I167: 0 | J167: 0 | K167: 0 | L167: 0 | M167: 0 | N167: 0 | O167: 0 | P167: 0 | Q167: 0 | R167: 0 | S167: 0 | T167: 0 | U167: 0 | V167: 0 | W167: 0 | X167: 0 | Y167: 0 | Z167: 0 | AA167: 0 | AB167: 0 | AC167: 0 | AD167: 0 | AE167: 0 | AF167: 0 | AG167: 0 | AI167: 164 | AJ167: p64 | AK167: Post and telecommunication services (64) | AL167: 1 | AM167: 1 | AN167: 1 | AO167: 1 | AP167: 1 | AQ167: 1 | AR167: 1 | AS167: 1 | AT167: 1 | AU167: 1 | AV167: 1 | AW167: 1 | AX167: 1 | AY167: 1 | AZ167: 1 | BA167: 1 | BB167: 1 | BC167: 1 | BD167: 1 | BE167: 1 | BF167: 1 | BG167: 1 | BH167: 1 | BI167: 1 | BJ167: 1
A168: 139 | B168: Electricity nec | C168: 3.698614485 | F168: 165 | G168: p65 | H168: Financial intermediation services, except insurance and pension funding services (65) | I168: 0 | J168: 0 | K168: 0 | L168: 0 | M168: 0 | N168: 0 | O168: 0 | P168: 0 | Q168: 0 | R168: 0 | S168: 0 | T168: 0 | U168: 0 | V168: 0 | W168: 0 | X168: 0 | Y168: 0 | Z168: 0 | AA168: 0 | AB168: 0 | AC168: 0 | AD168: 0 | AE168: 0 | AF168: 0 | AG168: 0 | AI168: 165 | AJ168: p65 | AK168: Financial intermediation services, except insurance and pension funding services (65) | AL168: 1 | AM168: 1 | AN168: 1 | AO168: 1 | AP168: 1 | AQ168: 1 | AR168: 1 | AS168: 1 | AT168: 1 | AU168: 1 | AV168: 1 | AW168: 1 | AX168: 1 | AY168: 1 | AZ168: 1 | BA168: 1 | BB168: 1 | BC168: 1 | BD168: 1 | BE168: 1 | BF168: 1 | BG168: 1 | BH168: 1 | BI168: 1 | BJ168: 1
A169: 140 | B169: Transmission services of electricity | C169: 0 | F169: 166 | G169: p66 | H169: Insurance and pension funding services, except compulsory social security services (66) | I169: 0 | J169: 0 | K169: 0 | L169: 0 | M169: 0 | N169: 0 | O169: 0 | P169: 0 | Q169: 0 | R169: 0 | S169: 0 | T169: 0 | U169: 0 | V169: 0 | W169: 0 | X169: 0 | Y169: 0 | Z169: 0 | AA169: 0 | AB169: 0 | AC169: 0 | AD169: 0 | AE169: 0 | AF169: 0 | AG169: 0 | AI169: 166 | AJ169: p66 | AK169: Insurance and pension funding services, except compulsory social security services (66) | AL169: 1 | AM169: 1 | AN169: 1 | AO169: 1 | AP169: 1 | AQ169: 1 | AR169: 1 | AS169: 1 | AT169: 1 | AU169: 1 | AV169: 1 | AW169: 1 | AX169: 1 | AY169: 1 | AZ169: 1 | BA169: 1 | BB169: 1 | BC169: 1 | BD169: 1 | BE169: 1 | BF169: 1 | BG169: 1 | BH169: 1 | BI169: 1 | BJ169: 1
A170: 141 | B170: Distribution and trade services of electricity | C170: 0 | F170: 167 | G170: p67 | H170: Services auxiliary to financial intermediation (67) | I170: 0 | J170: 0 | K170: 0 | L170: 0 | M170: 0 | N170: 0 | O170: 0 | P170: 0 | Q170: 0 | R170: 0 | S170: 0 | T170: 0 | U170: 0 | V170: 0 | W170: 0 | X170: 0 | Y170: 0 | Z170: 0 | AA170: 0 | AB170: 0 | AC170: 0 | AD170: 0 | AE170: 0 | AF170: 0 | AG170: 0 | AI170: 167 | AJ170: p67 | AK170: Services auxiliary to financial intermediation (67) | AL170: 1 | AM170: 1 | AN170: 1 | AO170: 1 | AP170: 1 | AQ170: 1 | AR170: 1 | AS170: 1 | AT170: 1 | AU170: 1 | AV170: 1 | AW170: 1 | AX170: 1 | AY170: 1 | AZ170: 1 | BA170: 1 | BB170: 1 | BC170: 1 | BD170: 1 | BE170: 1 | BF170: 1 | BG170: 1 | BH170: 1 | BI170: 1 | BJ170: 1
A171: 142 | B171: Coke oven gas | C171: 0 | F171: 168 | G171: p70 | H171: Real estate services (70) | I171: 0 | J171: 0 | K171: 0 | L171: 0 | M171: 0 | N171: 0 | O171: 0 | P171: 0 | Q171: 0 | R171: 0 | S171: 0 | T171: 0 | U171: 0 | V171: 0 | W171: 0 | X171: 0 | Y171: 0 | Z171: 0 | AA171: 0 | AB171: 0 | AC171: 0 | AD171: 0 | AE171: 0 | AF171: 0 | AG171: 0 | AI171: 168 | AJ171: p70 | AK171: Real estate services (70) | AL171: 1 | AM171: 1 | AN171: 1 | AO171: 1 | AP171: 1 | AQ171: 1 | AR171: 1 | AS171: 1 | AT171: 1 | AU171: 1 | AV171: 1 | AW171: 1 | AX171: 1 | AY171: 1 | AZ171: 1 | BA171: 1 | BB171: 1 | BC171: 1 | BD171: 1 | BE171: 1 | BF171: 1 | BG171: 1 | BH171: 1 | BI171: 1 | BJ171: 1
A172: 143 | B172: Blast Furnace Gas | C172: 0 | F172: 169 | G172: p71 | H172: Renting services of machinery and equipment without operator and of personal and household goods (71) | I172: 0 | J172: 0 | K172: 0 | L172: 0 | M172: 0 | N172: 0 | O172: 0 | P172: 0 | Q172: 0 | R172: 0 | S172: 0 | T172: 0 | U172: 0 | V172: 0 | W172: 0 | X172: 0 | Y172: 0 | Z172: 0 | AA172: 0 | AB172: 0 | AC172: 0 | AD172: 0 | AE172: 0 | AF172: 0 | AG172: 0 | AI172: 169 | AJ172: p71 | AK172: Renting services of machinery and equipment without operator and of personal and household goods (71) | AL172: 1 | AM172: 1 | AN172: 1 | AO172: 1 | AP172: 1 | AQ172: 1 | AR172: 1 | AS172: 1 | AT172: 1 | AU172: 1 | AV172: 1 | AW172: 1 | AX172: 1 | AY172: 1 | AZ172: 1 | BA172: 1 | BB172: 1 | BC172: 1 | BD172: 1 | BE172: 1 | BF172: 1 | BG172: 1 | BH172: 1 | BI172: 1 | BJ172: 1
A173: 144 | B173: Oxygen Steel Furnace Gas | C173: 0 | F173: 170 | G173: p72 | H173: Computer and related services (72) | I173: 0 | J173: 0 | K173: 0 | L173: 0 | M173: 0 | N173: 0 | O173: 0 | P173: 0 | Q173: 0 | R173: 0 | S173: 0 | T173: 0 | U173: 0 | V173: 0 | W173: 0 | X173: 0 | Y173: 0 | Z173: 0 | AA173: 0 | AB173: 0 | AC173: 0 | AD173: 0 | AE173: 0 | AF173: 0 | AG173: 0 | AI173: 170 | AJ173: p72 | AK173: Computer and related services (72) | AL173: 1 | AM173: 1 | AN173: 1 | AO173: 1 | AP173: 1 | AQ173: 1 | AR173: 1 | AS173: 1 | AT173: 1 | AU173: 1 | AV173: 1 | AW173: 1 | AX173: 1 | AY173: 1 | AZ173: 1 | BA173: 1 | BB173: 1 | BC173: 1 | BD173: 1 | BE173: 1 | BF173: 1 | BG173: 1 | BH173: 1 | BI173: 1 | BJ173: 1
A174: 145 | B174: Gas Works Gas | C174: 0 | F174: 171 | G174: p73 | H174: Research and development services (73) | I174: 0 | J174: 0 | K174: 0 | L174: 0 | M174: 0 | N174: 0 | O174: 0 | P174: 0 | Q174: 0 | R174: 0 | S174: 0 | T174: 0 | U174: 0 | V174: 0 | W174: 0 | X174: 0 | Y174: 0 | Z174: 0 | AA174: 0 | AB174: 0 | AC174: 0 | AD174: 0 | AE174: 0 | AF174: 0 | AG174: 0 | AI174: 171 | AJ174: p73 | AK174: Research and development services (73) | AL174: 1 | AM174: 1 | AN174: 1 | AO174: 1 | AP174: 1 | AQ174: 1 | AR174: 1 | AS174: 1 | AT174: 1 | AU174: 1 | AV174: 1 | AW174: 1 | AX174: 1 | AY174: 1 | AZ174: 1 | BA174: 1 | BB174: 1 | BC174: 1 | BD174: 1 | BE174: 1 | BF174: 1 | BG174: 1 | BH174: 1 | BI174: 1 | BJ174: 1
A175: 146 | B175: Biogas | C175: 0 | F175: 172 | G175: p74 | H175: Other business services (74) | I175: 0 | J175: 0 | K175: 0 | L175: 0 | M175: 0 | N175: 0 | O175: 0 | P175: 0 | Q175: 0 | R175: 0 | S175: 0 | T175: 0 | U175: 0 | V175: 0 | W175: 0 | X175: 0 | Y175: 0 | Z175: 0 | AA175: 0 | AB175: 0 | AC175: 0 | AD175: 0 | AE175: 0 | AF175: 0 | AG175: 0 | AI175: 172 | AJ175: p74 | AK175: Other business services (74) | AL175: 1 | AM175: 1 | AN175: 1 | AO175: 1 | AP175: 1 | AQ175: 1 | AR175: 1 | AS175: 1 | AT175: 1 | AU175: 1 | AV175: 1 | AW175: 1 | AX175: 1 | AY175: 1 | AZ175: 1 | BA175: 1 | BB175: 1 | BC175: 1 | BD175: 1 | BE175: 1 | BF175: 1 | BG175: 1 | BH175: 1 | BI175: 1 | BJ175: 1
A176: 147 | B176: Distribution services of gaseous fuels through mains | C176: 0 | F176: 173 | G176: p75 | H176: Public administration and defence services; compulsory social security services (75) | I176: 0 | J176: 0 | K176: 0 | L176: 0 | M176: 0 | N176: 0 | O176: 0 | P176: 0 | Q176: 0 | R176: 0 | S176: 0 | T176: 0 | U176: 0 | V176: 0 | W176: 0 | X176: 0 | Y176: 0 | Z176: 0 | AA176: 0 | AB176: 0 | AC176: 0 | AD176: 0 | AE176: 0 | AF176: 0 | AG176: 0 | AI176: 173 | AJ176: p75 | AK176: Public administration and defence services; compulsory social security services (75) | AL176: 1 | AM176: 1 | AN176: 1 | AO176: 1 | AP176: 1 | AQ176: 1 | AR176: 1 | AS176: 1 | AT176: 1 | AU176: 1 | AV176: 1 | AW176: 1 | AX176: 1 | AY176: 1 | AZ176: 1 | BA176: 1 | BB176: 1 | BC176: 1 | BD176: 1 | BE176: 1 | BF176: 1 | BG176: 1 | BH176: 1 | BI176: 1 | BJ176: 1
A177: 148 | B177: Steam and hot water supply services | C177: 0.007358342861 | F177: 174 | G177: p80 | H177: Education services (80) | I177: 0 | J177: 0 | K177: 0 | L177: 0 | M177: 0 | N177: 0 | O177: 0 | P177: 0 | Q177: 0 | R177: 0 | S177: 0 | T177: 0 | U177: 0 | V177: 0 | W177: 0 | X177: 0 | Y177: 0 | Z177: 0 | AA177: 0 | AB177: 0 | AC177: 0 | AD177: 0 | AE177: 0 | AF177: 0 | AG177: 0 | AI177: 174 | AJ177: p80 | AK177: Education services (80) | AL177: 1 | AM177: 1 | AN177: 1 | AO177: 1 | AP177: 1 | AQ177: 1 | AR177: 1 | AS177: 1 | AT177: 1 | AU177: 1 | AV177: 1 | AW177: 1 | AX177: 1 | AY177: 1 | AZ177: 1 | BA177: 1 | BB177: 1 | BC177: 1 | BD177: 1 | BE177: 1 | BF177: 1 | BG177: 1 | BH177: 1 | BI177: 1 | BJ177: 1
A178: 149 | B178: Collected and purified water, distribution services of water (41) | C178: 0 | F178: 175 | G178: p85 | H178: Health and social work services (85) | I178: 0 | J178: 0 | K178: 0 | L178: 0 | M178: 0 | N178: 0 | O178: 0 | P178: 0 | Q178: 0 | R178: 0 | S178: 0 | T178: 0 | U178: 0 | V178: 0 | W178: 0 | X178: 0 | Y178: 0 | Z178: 0 | AA178: 0 | AB178: 0 | AC178: 0 | AD178: 0 | AE178: 0 | AF178: 0 | AG178: 0 | AI178: 175 | AJ178: p85 | AK178: Health and social work services (85) | AL178: 1 | AM178: 1 | AN178: 1 | AO178: 1 | AP178: 1 | AQ178: 1 | AR178: 1 | AS178: 1 | AT178: 1 | AU178: 1 | AV178: 1 | AW178: 1 | AX178: 1 | AY178: 1 | AZ178: 1 | BA178: 1 | BB178: 1 | BC178: 1 | BD178: 1 | BE178: 1 | BF178: 1 | BG178: 1 | BH178: 1 | BI178: 1 | BJ178: 1
A179: 150 | B179: Construction work (45) | C179: 0 | F179: 176 | G179: p90.1.a | H179: Food waste for treatment: incineration | I179: 0 | J179: 0 | K179: 0 | L179: 0 | M179: 0 | N179: 0 | O179: 0 | P179: 0 | Q179: 0 | R179: 0 | S179: 0 | T179: 0 | U179: 0 | V179: 0 | W179: 0 | X179: 0 | Y179: 0 | Z179: 0 | AA179: 0 | AB179: 0 | AC179: 0 | AD179: 0 | AE179: 0 | AF179: 0 | AG179: 0 | AI179: 176 | AJ179: p90.1.a | AK179: Food waste for treatment: incineration | AL179: 1 | AM179: 1 | AN179: 1 | AO179: 1 | AP179: 1 | AQ179: 1 | AR179: 1 | AS179: 1 | AT179: 1 | AU179: 1 | AV179: 1 | AW179: 1 | AX179: 1 | AY179: 1 | AZ179: 1 | BA179: 1 | BB179: 1 | BC179: 1 | BD179: 1 | BE179: 1 | BF179: 1 | BG179: 1 | BH179: 1 | BI179: 1 | BJ179: 1
A180: 151 | B180: Secondary construction material for treatment, Re-processing of secondary construction material into aggregates | C180: 0 | F180: 177 | G180: p90.1.b | H180: Paper waste for treatment: incineration | I180: 0 | J180: 0 | K180: 0 | L180: 0 | M180: 0 | N180: 0 | O180: 0 | P180: 0 | Q180: 0 | R180: 0 | S180: 0 | T180: 0 | U180: 0 | V180: 0 | W180: 0 | X180: 0 | Y180: 0 | Z180: 0 | AA180: 0 | AB180: 0 | AC180: 0 | AD180: 0 | AE180: 0 | AF180: 0 | AG180: 0 | AI180: 177 | AJ180: p90.1.b | AK180: Paper waste for treatment: incineration | AL180: 1 | AM180: 1 | AN180: 1 | AO180: 1 | AP180: 1 | AQ180: 1 | AR180: 1 | AS180: 1 | AT180: 1 | AU180: 1 | AV180: 1 | AW180: 1 | AX180: 1 | AY180: 1 | AZ180: 1 | BA180: 1 | BB180: 1 | BC180: 1 | BD180: 1 | BE180: 1 | BF180: 1 | BG180: 1 | BH180: 1 | BI180: 1 | BJ180: 1
A181: 152 | B181: Sale, maintenance, repair of motor vehicles, motor vehicles parts, motorcycles, motor cycles parts and accessoiries | C181: 0 | F181: 178 | G181: p90.1.c | H181: Plastic waste for treatment: incineration | I181: 0 | J181: 0 | K181: 0 | L181: 0 | M181: 0 | N181: 0 | O181: 0 | P181: 0 | Q181: 0 | R181: 0 | S181: 0 | T181: 0 | U181: 0 | V181: 0 | W181: 0 | X181: 0 | Y181: 0 | Z181: 0 | AA181: 0 | AB181: 0 | AC181: 0 | AD181: 0 | AE181: 0 | AF181: 0 | AG181: 0 | AI181: 178 | AJ181: p90.1.c | AK181: Plastic waste for treatment: incineration | AL181: 1 | AM181: 1 | AN181: 1 | AO181: 1 | AP181: 1 | AQ181: 1 | AR181: 1 | AS181: 1 | AT181: 1 | AU181: 1 | AV181: 1 | AW181: 1 | AX181: 1 | AY181: 1 | AZ181: 1 | BA181: 1 | BB181: 1 | BC181: 1 | BD181: 1 | BE181: 1 | BF181: 1 | BG181: 1 | BH181: 1 | BI181: 1 | BJ181: 1
A182: 153 | B182: Retail trade services of motor fuel | C182: 0 | F182: 179 | G182: p90.1.d | H182: Intert/metal waste for treatment: incineration | I182: 0 | J182: 0 | K182: 0 | L182: 0 | M182: 0 | N182: 0 | O182: 0 | P182: 0 | Q182: 0 | R182: 0 | S182: 0 | T182: 0 | U182: 0 | V182: 0 | W182: 0 | X182: 0 | Y182: 0 | Z182: 0 | AA182: 0 | AB182: 0 | AC182: 0 | AD182: 0 | AE182: 0 | AF182: 0 | AG182: 0 | AI182: 179 | AJ182: p90.1.d | AK182: Intert/metal waste for treatment: incineration | AL182: 1 | AM182: 1 | AN182: 1 | AO182: 1 | AP182: 1 | AQ182: 1 | AR182: 1 | AS182: 1 | AT182: 1 | AU182: 1 | AV182: 1 | AW182: 1 | AX182: 1 | AY182: 1 | AZ182: 1 | BA182: 1 | BB182: 1 | BC182: 1 | BD182: 1 | BE182: 1 | BF182: 1 | BG182: 1 | BH182: 1 | BI182: 1 | BJ182: 1
A183: 154 | B183: Wholesale trade and commission trade services, except of motor vehicles and motorcycles (51) | C183: 0 | F183: 180 | G183: p90.1.e | H183: Textiles waste for treatment: incineration | I183: 0 | J183: 0 | K183: 0 | L183: 0 | M183: 0 | N183: 0 | O183: 0 | P183: 0 | Q183: 0 | R183: 0 | S183: 0 | T183: 0 | U183: 0 | V183: 0 | W183: 0 | X183: 0 | Y183: 0 | Z183: 0 | AA183: 0 | AB183: 0 | AC183: 0 | AD183: 0 | AE183: 0 | AF183: 0 | AG183: 0 | AI183: 180 | AJ183: p90.1.e | AK183: Textiles waste for treatment: incineration | AL183: 1 | AM183: 1 | AN183: 1 | AO183: 1 | AP183: 1 | AQ183: 1 | AR183: 1 | AS183: 1 | AT183: 1 | AU183: 1 | AV183: 1 | AW183: 1 | AX183: 1 | AY183: 1 | AZ183: 1 | BA183: 1 | BB183: 1 | BC183: 1 | BD183: 1 | BE183: 1 | BF183: 1 | BG183: 1 | BH183: 1 | BI183: 1 | BJ183: 1
A184: 155 | B184: Retail trade services, except of motor vehicles and motorcycles; repair services of personal and household goods (52) | C184: 0 | F184: 181 | G184: p90.1.f | H184: Wood waste for treatment: incineration | I184: 0 | J184: 0 | K184: 0 | L184: 0 | M184: 0 | N184: 0 | O184: 0 | P184: 0 | Q184: 0 | R184: 0 | S184: 0 | T184: 0 | U184: 0 | V184: 0 | W184: 0 | X184: 0 | Y184: 0 | Z184: 0 | AA184: 0 | AB184: 0 | AC184: 0 | AD184: 0 | AE184: 0 | AF184: 0 | AG184: 0 | AI184: 181 | AJ184: p90.1.f | AK184: Wood waste for treatment: incineration | AL184: 1 | AM184: 1 | AN184: 1 | AO184: 1 | AP184: 1 | AQ184: 1 | AR184: 1 | AS184: 1 | AT184: 1 | AU184: 1 | AV184: 1 | AW184: 1 | AX184: 1 | AY184: 1 | AZ184: 1 | BA184: 1 | BB184: 1 | BC184: 1 | BD184: 1 | BE184: 1 | BF184: 1 | BG184: 1 | BH184: 1 | BI184: 1 | BJ184: 1
A185: 156 | B185: Hotel and restaurant services (55) | C185: 0 | F185: 182 | G185: p90.1.g | H185: Oil/hazardous waste for treatment: incineration | I185: 0 | J185: 0 | K185: 0 | L185: 0 | M185: 0 | N185: 0 | O185: 0 | P185: 0 | Q185: 0 | R185: 0 | S185: 0 | T185: 0 | U185: 0 | V185: 0 | W185: 0 | X185: 0 | Y185: 0 | Z185: 0 | AA185: 0 | AB185: 0 | AC185: 0 | AD185: 0 | AE185: 0 | AF185: 0 | AG185: 0 | AI185: 182 | AJ185: p90.1.g | AK185: Oil/hazardous waste for treatment: incineration | AL185: 1 | AM185: 1 | AN185: 1 | AO185: 1 | AP185: 1 | AQ185: 1 | AR185: 1 | AS185: 1 | AT185: 1 | AU185: 1 | AV185: 1 | AW185: 1 | AX185: 1 | AY185: 1 | AZ185: 1 | BA185: 1 | BB185: 1 | BC185: 1 | BD185: 1 | BE185: 1 | BF185: 1 | BG185: 1 | BH185: 1 | BI185: 1 | BJ185: 1
A186: 157 | B186: Railway transportation services | C186: 0 | F186: 183 | G186: p90.2.a | H186: Food waste for treatment: biogasification and land application | I186: 0 | J186: 0 | K186: 0 | L186: 0 | M186: 0 | N186: 0 | O186: 0 | P186: 0 | Q186: 0 | R186: 0 | S186: 0 | T186: 0 | U186: 0 | V186: 0 | W186: 0 | X186: 0 | Y186: 0 | Z186: 0 | AA186: 0 | AB186: 0 | AC186: 0 | AD186: 0 | AE186: 0 | AF186: 0 | AG186: 0 | AI186: 183 | AJ186: p90.2.a | AK186: Food waste for treatment: biogasification and land application | AL186: 1 | AM186: 1 | AN186: 1 | AO186: 1 | AP186: 1 | AQ186: 1 | AR186: 1 | AS186: 1 | AT186: 1 | AU186: 1 | AV186: 1 | AW186: 1 | AX186: 1 | AY186: 1 | AZ186: 1 | BA186: 1 | BB186: 1 | BC186: 1 | BD186: 1 | BE186: 1 | BF186: 1 | BG186: 1 | BH186: 1 | BI186: 1 | BJ186: 1
A187: 158 | B187: Other land transportation services | C187: 0 | F187: 184 | G187: p90.2.b | H187: Paper waste for treatment: biogasification and land application | I187: 0 | J187: 0 | K187: 0 | L187: 0 | M187: 0 | N187: 0 | O187: 0 | P187: 0 | Q187: 0 | R187: 0 | S187: 0 | T187: 0 | U187: 0 | V187: 0 | W187: 0 | X187: 0 | Y187: 0 | Z187: 0 | AA187: 0 | AB187: 0 | AC187: 0 | AD187: 0 | AE187: 0 | AF187: 0 | AG187: 0 | AI187: 184 | AJ187: p90.2.b | AK187: Paper waste for treatment: biogasification and land application | AL187: 1 | AM187: 1 | AN187: 1 | AO187: 1 | AP187: 1 | AQ187: 1 | AR187: 1 | AS187: 1 | AT187: 1 | AU187: 1 | AV187: 1 | AW187: 1 | AX187: 1 | AY187: 1 | AZ187: 1 | BA187: 1 | BB187: 1 | BC187: 1 | BD187: 1 | BE187: 1 | BF187: 1 | BG187: 1 | BH187: 1 | BI187: 1 | BJ187: 1
A188: 159 | B188: Transportation services via pipelines | C188: 0 | F188: 185 | G188: p90.2.c | H188: Sewage sludge for treatment: biogasification and land application | I188: 0 | J188: 0 | K188: 0 | L188: 0 | M188: 0 | N188: 0 | O188: 0 | P188: 0 | Q188: 0 | R188: 0 | S188: 0 | T188: 0 | U188: 0 | V188: 0 | W188: 0 | X188: 0 | Y188: 0 | Z188: 0 | AA188: 0 | AB188: 0 | AC188: 0 | AD188: 0 | AE188: 0 | AF188: 0 | AG188: 0 | AI188: 185 | AJ188: p90.2.c | AK188: Sewage sludge for treatment: biogasification and land application | AL188: 1 | AM188: 1 | AN188: 1 | AO188: 1 | AP188: 1 | AQ188: 1 | AR188: 1 | AS188: 1 | AT188: 1 | AU188: 1 | AV188: 1 | AW188: 1 | AX188: 1 | AY188: 1 | AZ188: 1 | BA188: 1 | BB188: 1 | BC188: 1 | BD188: 1 | BE188: 1 | BF188: 1 | BG188: 1 | BH188: 1 | BI188: 1 | BJ188: 1
A189: 160 | B189: Sea and coastal water transportation services | C189: 0 | F189: 186 | G189: p90.3.a | H189: Food waste for treatment: composting and land application | I189: 0 | J189: 0 | K189: 0 | L189: 0 | M189: 0 | N189: 0 | O189: 0 | P189: 0 | Q189: 0 | R189: 0 | S189: 0 | T189: 0 | U189: 0 | V189: 0 | W189: 0 | X189: 0 | Y189: 0 | Z189: 0 | AA189: 0 | AB189: 0 | AC189: 0 | AD189: 0 | AE189: 0 | AF189: 0 | AG189: 0 | AI189: 186 | AJ189: p90.3.a | AK189: Food waste for treatment: composting and land application | AL189: 1 | AM189: 1 | AN189: 1 | AO189: 1 | AP189: 1 | AQ189: 1 | AR189: 1 | AS189: 1 | AT189: 1 | AU189: 1 | AV189: 1 | AW189: 1 | AX189: 1 | AY189: 1 | AZ189: 1 | BA189: 1 | BB189: 1 | BC189: 1 | BD189: 1 | BE189: 1 | BF189: 1 | BG189: 1 | BH189: 1 | BI189: 1 | BJ189: 1
A190: 161 | B190: Inland water transportation services | C190: 0 | F190: 187 | G190: p90.3.b | H190: Paper and wood waste for treatment: composting and land application | I190: 0 | J190: 0 | K190: 0 | L190: 0 | M190: 0 | N190: 0 | O190: 0 | P190: 0 | Q190: 0 | R190: 0 | S190: 0 | T190: 0 | U190: 0 | V190: 0 | W190: 0 | X190: 0 | Y190: 0 | Z190: 0 | AA190: 0 | AB190: 0 | AC190: 0 | AD190: 0 | AE190: 0 | AF190: 0 | AG190: 0 | AI190: 187 | AJ190: p90.3.b | AK190: Paper and wood waste for treatment: composting and land application | AL190: 1 | AM190: 1 | AN190: 1 | AO190: 1 | AP190: 1 | AQ190: 1 | AR190: 1 | AS190: 1 | AT190: 1 | AU190: 1 | AV190: 1 | AW190: 1 | AX190: 1 | AY190: 1 | AZ190: 1 | BA190: 1 | BB190: 1 | BC190: 1 | BD190: 1 | BE190: 1 | BF190: 1 | BG190: 1 | BH190: 1 | BI190: 1 | BJ190: 1
A191: 162 | B191: Air transport services (62) | C191: 0 | F191: 188 | G191: p90.4.a | H191: Food waste for treatment: waste water treatment | I191: 0 | J191: 0 | K191: 0 | L191: 0 | M191: 0 | N191: 0 | O191: 0 | P191: 0 | Q191: 0 | R191: 0 | S191: 0 | T191: 0 | U191: 0 | V191: 0 | W191: 0 | X191: 0 | Y191: 0 | Z191: 0 | AA191: 0 | AB191: 0 | AC191: 0 | AD191: 0 | AE191: 0 | AF191: 0 | AG191: 0 | AI191: 188 | AJ191: p90.4.a | AK191: Food waste for treatment: waste water treatment | AL191: 1 | AM191: 1 | AN191: 1 | AO191: 1 | AP191: 1 | AQ191: 1 | AR191: 1 | AS191: 1 | AT191: 1 | AU191: 1 | AV191: 1 | AW191: 1 | AX191: 1 | AY191: 1 | AZ191: 1 | BA191: 1 | BB191: 1 | BC191: 1 | BD191: 1 | BE191: 1 | BF191: 1 | BG191: 1 | BH191: 1 | BI191: 1 | BJ191: 1
A192: 163 | B192: Supporting and auxiliary transport services; travel agency services (63) | C192: 0 | F192: 189 | G192: p90.4.b | H192: Other waste for treatment: waste water treatment | I192: 0 | J192: 0 | K192: 0 | L192: 0 | M192: 0 | N192: 0 | O192: 0 | P192: 0 | Q192: 0 | R192: 0 | S192: 0 | T192: 0 | U192: 0 | V192: 0 | W192: 0 | X192: 0 | Y192: 0 | Z192: 0 | AA192: 0 | AB192: 0 | AC192: 0 | AD192: 0 | AE192: 0 | AF192: 0 | AG192: 0 | AI192: 189 | AJ192: p90.4.b | AK192: Other waste for treatment: waste water treatment | AL192: 1 | AM192: 1 | AN192: 1 | AO192: 1 | AP192: 1 | AQ192: 1 | AR192: 1 | AS192: 1 | AT192: 1 | AU192: 1 | AV192: 1 | AW192: 1 | AX192: 1 | AY192: 1 | AZ192: 1 | BA192: 1 | BB192: 1 | BC192: 1 | BD192: 1 | BE192: 1 | BF192: 1 | BG192: 1 | BH192: 1 | BI192: 1 | BJ192: 1
A193: 164 | B193: Post and telecommunication services (64) | C193: 0 | F193: 190 | G193: p90.5.a | H193: Food waste for treatment: landfill | I193: 0 | J193: 0 | K193: 0 | L193: 0 | M193: 0 | N193: 0 | O193: 0 | P193: 0 | Q193: 0 | R193: 0 | S193: 0 | T193: 0 | U193: 0 | V193: 0 | W193: 0 | X193: 0 | Y193: 0 | Z193: 0 | AA193: 0 | AB193: 0 | AC193: 0 | AD193: 0 | AE193: 0 | AF193: 0 | AG193: 0 | AI193: 190 | AJ193: p90.5.a | AK193: Food waste for treatment: landfill | AL193: 1 | AM193: 1 | AN193: 1 | AO193: 1 | AP193: 1 | AQ193: 1 | AR193: 1 | AS193: 1 | AT193: 1 | AU193: 1 | AV193: 1 | AW193: 1 | AX193: 1 | AY193: 1 | AZ193: 1 | BA193: 1 | BB193: 1 | BC193: 1 | BD193: 1 | BE193: 1 | BF193: 1 | BG193: 1 | BH193: 1 | BI193: 1 | BJ193: 1
A194: 165 | B194: Financial intermediation services, except insurance and pension funding services (65) | C194: 0 | F194: 191 | G194: p90.5.b | H194: Paper for treatment: landfill | I194: 0 | J194: 0 | K194: 0 | L194: 0 | M194: 0 | N194: 0 | O194: 0 | P194: 0 | Q194: 0 | R194: 0 | S194: 0 | T194: 0 | U194: 0 | V194: 0 | W194: 0 | X194: 0 | Y194: 0 | Z194: 0 | AA194: 0 | AB194: 0 | AC194: 0 | AD194: 0 | AE194: 0 | AF194: 0 | AG194: 0 | AI194: 191 | AJ194: p90.5.b | AK194: Paper for treatment: landfill | AL194: 1 | AM194: 1 | AN194: 1 | AO194: 1 | AP194: 1 | AQ194: 1 | AR194: 1 | AS194: 1 | AT194: 1 | AU194: 1 | AV194: 1 | AW194: 1 | AX194: 1 | AY194: 1 | AZ194: 1 | BA194: 1 | BB194: 1 | BC194: 1 | BD194: 1 | BE194: 1 | BF194: 1 | BG194: 1 | BH194: 1 | BI194: 1 | BJ194: 1
A195: 166 | B195: Insurance and pension funding services, except compulsory social security services (66) | C195: 0 | F195: 192 | G195: p90.5.c | H195: Plastic waste for treatment: landfill | I195: 0 | J195: 0 | K195: 0 | L195: 0 | M195: 0 | N195: 0 | O195: 0 | P195: 0 | Q195: 0 | R195: 0 | S195: 0 | T195: 0 | U195: 0 | V195: 0 | W195: 0 | X195: 0 | Y195: 0 | Z195: 0 | AA195: 0 | AB195: 0 | AC195: 0 | AD195: 0 | AE195: 0 | AF195: 0 | AG195: 0 | AI195: 192 | AJ195: p90.5.c | AK195: Plastic waste for treatment: landfill | AL195: 1 | AM195: 1 | AN195: 1 | AO195: 1 | AP195: 1 | AQ195: 1 | AR195: 1 | AS195: 1 | AT195: 1 | AU195: 1 | AV195: 1 | AW195: 1 | AX195: 1 | AY195: 1 | AZ195: 1 | BA195: 1 | BB195: 1 | BC195: 1 | BD195: 1 | BE195: 1 | BF195: 1 | BG195: 1 | BH195: 1 | BI195: 1 | BJ195: 1
A196: 167 | B196: Services auxiliary to financial intermediation (67) | C196: 0 | F196: 193 | G196: p90.5.d | H196: Inert/metal/hazardous waste for treatment: landfill | I196: 0 | J196: 0 | K196: 0 | L196: 0 | M196: 0 | N196: 0 | O196: 0 | P196: 0 | Q196: 0 | R196: 0 | S196: 0 | T196: 0 | U196: 0 | V196: 0 | W196: 0 | X196: 0 | Y196: 0 | Z196: 0 | AA196: 0 | AB196: 0 | AC196: 0 | AD196: 0 | AE196: 0 | AF196: 0 | AG196: 0 | AI196: 193 | AJ196: p90.5.d | AK196: Inert/metal/hazardous waste for treatment: landfill | AL196: 1 | AM196: 1 | AN196: 1 | AO196: 1 | AP196: 1 | AQ196: 1 | AR196: 1 | AS196: 1 | AT196: 1 | AU196: 1 | AV196: 1 | AW196: 1 | AX196: 1 | AY196: 1 | AZ196: 1 | BA196: 1 | BB196: 1 | BC196: 1 | BD196: 1 | BE196: 1 | BF196: 1 | BG196: 1 | BH196: 1 | BI196: 1 | BJ196: 1
A197: 168 | B197: Real estate services (70) | C197: 0 | F197: =+F196+1 -> 194 | G197: p90.5.e | H197: Textiles waste for treatment: landfill | I197: 0 | J197: 0 | K197: 0 | L197: 0 | M197: 0 | N197: 0 | O197: 0 | P197: 0 | Q197: 0 | R197: 0 | S197: 0 | T197: 0 | U197: 0 | V197: 0 | W197: 0 | X197: 0 | Y197: 0 | Z197: 0 | AA197: 0 | AB197: 0 | AC197: 0 | AD197: 0 | AE197: 0 | AF197: 0 | AG197: 0 | AI197: =+AI196+1 -> 194 | AJ197: p90.5.e | AK197: Textiles waste for treatment: landfill | AL197: =IF(I197=1,0,1) -> 1 | AM197: =IF(J197=1,0,1) -> 1 | AN197: =IF(K197=1,0,1) -> 1 | AO197: =IF(L197=1,0,1) -> 1 | AP197: =IF(M197=1,0,1) -> 1 | AQ197: =IF(N197=1,0,1) -> 1 | AR197: =IF(O197=1,0,1) -> 1 | AS197: =IF(P197=1,0,1) -> 1 | AT197: =IF(Q197=1,0,1) -> 1 | AU197: =IF(R197=1,0,1) -> 1 | AV197: =IF(S197=1,0,1) -> 1 | AW197: =IF(T197=1,0,1) -> 1 | AX197: =IF(U197=1,0,1) -> 1 | AY197: =IF(V197=1,0,1) -> 1 | AZ197: =IF(W197=1,0,1) -> 1 | BA197: =IF(X197=1,0,1) -> 1 | BB197: =IF(Y197=1,0,1) -> 1 | BC197: =IF(Z197=1,0,1) -> 1 | BD197: =IF(AA197=1,0,1) -> 1 | BE197: =IF(AB197=1,0,1) -> 1 | BF197: =IF(AC197=1,0,1) -> 1 | BG197: =IF(AD197=1,0,1) -> 1 | BH197: =IF(AE197=1,0,1) -> 1 | BI197: =IF(AF197=1,0,1) -> 1 | BJ197: =IF(AG197=1,0,1) -> 1
A198: 169 | B198: Renting services of machinery and equipment without operator and of personal and household goods (71) | C198: 0 | F198: 195 | G198: p90.5.f | H198: Wood waste for treatment: landfill | I198: 0 | J198: 0 | K198: 0 | L198: 0 | M198: 0 | N198: 0 | O198: 0 | P198: 0 | Q198: 0 | R198: 0 | S198: 0 | T198: 0 | U198: 0 | V198: 0 | W198: 0 | X198: 0 | Y198: 0 | Z198: 0 | AA198: 0 | AB198: 0 | AC198: 0 | AD198: 0 | AE198: 0 | AF198: 0 | AG198: 0 | AI198: 195 | AJ198: p90.5.f | AK198: Wood waste for treatment: landfill | AL198: 1 | AM198: 1 | AN198: 1 | AO198: 1 | AP198: 1 | AQ198: 1 | AR198: 1 | AS198: 1 | AT198: 1 | AU198: 1 | AV198: 1 | AW198: 1 | AX198: 1 | AY198: 1 | AZ198: 1 | BA198: 1 | BB198: 1 | BC198: 1 | BD198: 1 | BE198: 1 | BF198: 1 | BG198: 1 | BH198: 1 | BI198: 1 | BJ198: 1
A199: 170 | B199: Computer and related services (72) | C199: 0 | F199: 196 | G199: p91 | H199: Membership organisation services n.e.c. (91) | I199: 0 | J199: 0 | K199: 0 | L199: 0 | M199: 0 | N199: 0 | O199: 0 | P199: 0 | Q199: 0 | R199: 0 | S199: 0 | T199: 0 | U199: 0 | V199: 0 | W199: 0 | X199: 0 | Y199: 0 | Z199: 0 | AA199: 0 | AB199: 0 | AC199: 0 | AD199: 0 | AE199: 0 | AF199: 0 | AG199: 0 | AI199: 196 | AJ199: p91 | AK199: Membership organisation services n.e.c. (91) | AL199: 1 | AM199: 1 | AN199: 1 | AO199: 1 | AP199: 1 | AQ199: 1 | AR199: 1 | AS199: 1 | AT199: 1 | AU199: 1 | AV199: 1 | AW199: 1 | AX199: 1 | AY199: 1 | AZ199: 1 | BA199: 1 | BB199: 1 | BC199: 1 | BD199: 1 | BE199: 1 | BF199: 1 | BG199: 1 | BH199: 1 | BI199: 1 | BJ199: 1
A200: 171 | B200: Research and development services (73) | C200: 0 | F200: 197 | G200: p92 | H200: Recreational, cultural and sporting services (92) | I200: 0 | J200: 0 | K200: 0 | L200: 0 | M200: 0 | N200: 0 | O200: 0 | P200: 0 | Q200: 0 | R200: 0 | S200: 0 | T200: 0 | U200: 0 | V200: 0 | W200: 0 | X200: 0 | Y200: 0 | Z200: 0 | AA200: 0 | AB200: 0 | AC200: 0 | AD200: 0 | AE200: 0 | AF200: 0 | AG200: 0 | AI200: 197 | AJ200: p92 | AK200: Recreational, cultural and sporting services (92) | AL200: 1 | AM200: 1 | AN200: 1 | AO200: 1 | AP200: 1 | AQ200: 1 | AR200: 1 | AS200: 1 | AT200: 1 | AU200: 1 | AV200: 1 | AW200: 1 | AX200: 1 | AY200: 1 | AZ200: 1 | BA200: 1 | BB200: 1 | BC200: 1 | BD200: 1 | BE200: 1 | BF200: 1 | BG200: 1 | BH200: 1 | BI200: 1 | BJ200: 1
... 29 more rows
